Workbook

Sheet Instructions
B2: Instructions for Completing KHC's Capital Reserve Replacement Schedule
B4: WHO SHOULD COMPLETE THIS WORKSHEET:
B5: ▪ Project Architect.
B6: ▪ Someone otherwise qualified per KHC guidelines to complete a PCNA.
B8: HOW THIS WORKSHEET WILL BE USED:
B9: ▪ This worksheet will be used by KHC during up-front project underwriting AND long-term asset management.
B10: ▪ This spreadsheet must be consistent with the submitted PCNA or Capital Needs Assessment.
B11: ▪ Applicants seeking KHC multifamily financing and funding will transfer the "Total Capital Needs" from this CRRS sheet to the KHC Underwriting Model. These numbers must match.
B13: FILLING OUT THE CRRS:
B14: 1) Project - Enter the project name.
B15: 2) Address - Enter the project address.
B16: 3) Number of Units - Enter the total number of units in the project.
B17: 4) Number of Buildings - Total buildings in the project. This would include non unit buildings such as standalone office buildings.
B18: 5) Project age - The project's age since original construction. If the project is to be new construction, enter "0."
B19: 6) KHC Loan Term - For KHC funding other than tax credits, enter the term of the KHC loan. If you are requesting multiple loans, enter the term of the longest one. Tax Credit-only projects should enter 15 years.
B20: 7) Inflation Factor - Preset and is not to be changed.
B21: 8) Annual Reserve Per Unit - The initial annual reserve payment to be paid each year. This is not a monthly amount, even if you will make smaller monthly payments.
B22: 9) % Increase in Annual Reserve Payment - A minimum of 3%. Normally not adjusted but it does allow adjustment up if you want to propose a higher annual increase.
B23: 10) Beginning Balance - Beginning balance of the reserve account. Does not include the first year's annual payment. This is an initial deposit to the account prior to start of operations.
B24: 11) Name of Person Completing this Form - Self explanatory.
B25: 12) Qualifications/Credentials - Qualification requirements are located in the multifamily guidelines. Enter how this person is qualified per the guidelines, and include the architect or engineer's license number and state in which the license was issued.
B26: 13) Name of Company/Firm - Name of the company/firm for which the preparer works.
B27: 14) Phone & Email - Enter this information for the person completing the form.
B28: 15) Item - Enter specific items under the heading marked "Item." For example, you could enter "Hot Water Heater."
B29: 16) EUL - Enter the Estimated Useful Life of the item from the Fannie Mae Expected Useful Life tables.
B30: 17) RUL - If this is a rehab and the listed item is not being replaced during rehab, list the Remaining Useful Life (RUL) as found in the PCNA. If items (stoves, for example) have varying RULs, just enter them as different items.
B31: 18) Quantity - Enter the quantity of the specific item.
B32: 19) Cost Per - Enter cost of each unit of the specific item. For example, if you have 24 stoves that cost $350 each, enter 350 (do not enter the dollar sign).
B33: 20) To add additional rows, Click the "Insert" button located in the heading row for the specifc section you are working on. This will require you to "Enable Content" when prompted. This will most likely be in a security warning at the top of the page and you will only have to do it once.
B35: RESERVE ACCOUNT ANALYSIS (Section at botton of page):
B36: 17) Annual Interest on Reserve Account - This is preset to 2%. KHC might consider allowing some change to this if we are not holding the account and you can verify why it should be different.
B37: 18) General Notes - Enter any general, non cost-related notes that you feel are necessary for explanation purposes.
B38: 19) Cost Notes - Enter any notes necessary to explain item costs, or refer to the PCNA or Capital Needs Assessment study.
B40: RESERVE ACCOUNT ACCEPTABILITY:
B41: ▪ Specific requirements as to the acceptability of the projection balances are found in the current multifamily guidelines.
B42: ▪ Variables that can be adjusted to produce an acceptable projection include:
B43: - KHC Loan Term
B44: - Annual Reserve Per Unit
B45: - Beginning Balance
B46: - Project specifics that create the need for the listed items.
B47: ▪ In all cases where a Physical Capital Needs Assessment (PCNA) has been performed, it should be consistent with this projection.

Sheet CRRS Template
B2: Capital Reserve Replacement Schedule
C4: Project: | L4: KHC Loan Term: | N4: Years | Q4: Name of Person Completing this Form:
C5: Address: | L5: Inflation Factor: | M5: 0.03 | Q5: Qualifications/Credentials:
C6: Number of Units: | L6: Annual Reserve Per Unit: | Q6: Name of Company/Firm:
C7: Number of Buildings: | E7: (including office) | L7: % Increase in Annual Reserve Payment: | M7: 0.03 | Q7: Phone #: | T7: Email:
C8: Project Age: | E8: (0 if new construction) | J8: Beginning Capital Reserve Balance: | Q8: Professional License #: | T8: State of Licensure:
B10: "Enable Content" when Prompted
G11: COST | H11: Year | I11: Year | J11: Year | K11: Year | L11: Year | M11: Year | N11: Year | O11: Year | P11: Year | Q11: Year | R11: Year | S11: Year | T11: Year | U11: Year | V11: Year | W11: Year | X11: Year | Y11: Year | Z11: Year | AA11: Year | AB11: Year | AC11: Year | AD11: Year | AE11: Year | AF11: Year | AG11: Year | AH11: Year | AI11: Year | AJ11: Year | AK11: Year | AL11: Year | AM11: Year | AN11: Year | AO11: Year | AP11: Year | AQ11: Year | AR11: Year | AS11: Year | AT11: Year | AU11: Year | AV11: Year | AW11: Total
B12: # | C12: ITEM | D12: EUL | E12: RUL | F12: QUANTITY | G12: PER | H12: 0 | I12: =H12+1 -> 1 | J12: =I12+1 -> 2 | K12: 3 | L12: 4 | M12: 5 | N12: 6 | O12: 7 | P12: 8 | Q12: 9 | R12: 10 | S12: 11 | T12: 12 | U12: 13 | V12: 14 | W12: 15 | X12: 16 | Y12: 17 | Z12: 18 | AA12: 19 | AB12: 20 | AC12: 21 | AD12: 22 | AE12: 23 | AF12: 24 | AG12: 25 | AH12: 26 | AI12: 27 | AJ12: 28 | AK12: 29 | AL12: 30 | AM12: 31 | AN12: 32 | AO12: 33 | AP12: 34 | AQ12: 35 | AR12: 36 | AS12: 37 | AT12: 38 | AU12: 39 | AV12: 40
H13: Inflation Factor: | I13: =(1+$M$5)^(I12) -> 1.03 | J13: =(1+$M$5)^(J12) -> 1.0609 | K13: 1.092727 | L13: 1.12550881 | M13: 1.159274074 | N13: 1.194052297 | O13: 1.229873865 | P13: 1.266770081 | Q13: 1.304773184 | R13: 1.343916379 | S13: 1.384233871 | T13: 1.425760887 | U13: 1.468533713 | V13: 1.512589725 | W13: 1.557967417 | X13: 1.604706439 | Y13: 1.652847632 | Z13: 1.702433061 | AA13: 1.753506053 | AB13: 1.806111235 | AC13: 1.860294572 | AD13: 1.916103409 | AE13: 1.973586511 | AF13: 2.032794106 | AG13: 2.09377793 | AH13: 2.156591268 | AI13: 2.221289006 | AJ13: 2.287927676 | AK13: 2.356565506 | AL13: 2.427262471 | AM13: 2.500080345 | AN13: 2.575082756 | AO13: 2.652335238 | AP13: 2.731905296 | AQ13: 2.813862454 | AR13: 2.898278328 | AS13: 2.985226678 | AT13: 3.074783478 | AU13: 3.167026983 | AV13: 3.262037792
B14: Site Elements
H15: =IF(E15>0,0,(F15*G15)) -> 0 | I15: =IF(OR((MOD(1-E15,D15)=0),E15=1),F15*G15*$I$13,0) ->  | J15: =IF(OR((MOD(2-E15,D15)=0),E15=2),F15*G15*$J$13,0) ->  | K15: =IF(OR((MOD(3-E15,D15)=0),E15=3),F15*G15*$K$13,0) ->  | L15: =IF(OR((MOD(4-E15,D15)=0),E15=4),F15*G15*$L$13,0) ->  | M15: =IF(OR((MOD(5-E15,D15)=0),E15=5),F15*G15*$M$13,0) ->  | N15: =IF(OR((MOD(6-E15,D15)=0),E15=6),F15*G15*$N$13,0) ->  | O15: =IF(OR((MOD(7-E15,D15)=0),E15=7),F15*G15*$O$13,0) ->  | P15: =IF(OR((MOD(8-E15,D15)=0),E15=8),F15*G15*$P$13,0) ->  | Q15: =IF(OR((MOD(9-E15,D15)=0),E15=9),F15*G15*$Q$13,0) ->  | R15: =IF(OR((MOD(10-E15,D15)=0),E15=10),F15*G15*$R$13,0) ->  | S15: =IF(OR((MOD(11-E15,D15)=0),E15=11),F15*G15*$S$13,0) ->  | T15: =IF(OR((MOD(12-E15,D15)=0),E15=12),F15*G15*$T$13,0) ->  | U15: =IF(OR((MOD(13-E15,D15)=0),E15=13),F15*G15*$U$13,0) ->  | V15: =IF(OR((MOD(14-E15,D15)=0),E15=14),F15*G15*$V$13,0) ->  | W15: =IF(OR((MOD(15-E15,D15)=0),E15=15),F15*G15*$W$13,0) ->  | X15: =IF(OR((MOD(16-E15,D15)=0),E15=16),F15*G15*$X$13,0) ->  | Y15: =IF(OR((MOD(17-E15,D15)=0),E15=17),F15*G15*$Y$13,0) ->  | Z15: =IF(OR((MOD(18-E15,D15)=0),E15=18),F15*G15*$Z$13,0) ->  | AA15: =IF(OR((MOD(19-E15,D15)=0),E15=19),F15*G15*$AA$13,0) ->  | AB15: =IF(OR((MOD(20-E15,D15)=0),E15=20),F15*G15*$AB$13,0) ->  | AC15: =IF(OR((MOD(21-E15,D15)=0),E15=21),F15*G15*$AC$13,0) ->  | AD15: =IF(OR((MOD(22-E15,D15)=0),E15=22),F15*G15*$AD$13,0) ->  | AE15: =IF(OR((MOD(23-E15,D15)=0),E15=23),F15*G15*$AE$13,0) ->  | AF15: =IF(OR((MOD(24-E15,D15)=0),E15=24),F15*G15*$AF$13,0) ->  | AG15: =IF(OR((MOD(25-E15,D15)=0),E15=25),F15*G15*$AG$13,0) ->  | AH15: =IF(OR((MOD(26-E15,D15)=0),E15=26),F15*G15*$AH$13,0) ->  | AI15: =IF(OR((MOD(27-E15,D15)=0),E15=27),F15*G15*$AI$13,0) ->  | AJ15: =IF(OR((MOD(28-E15,D15)=0),E15=28),F15*G15*$AJ$13,0) ->  | AK15: =IF(OR((MOD(29-E15,D15)=0),E15=29),F15*G15*$AK$13,0) ->  | AL15: =IF(OR((MOD(30-E15,D15)=0),E15=30),F15*G15*$AL$13,0) ->  | AM15: =IF(OR((MOD(31-E15,D15)=0),E15=31),F15*G15*$AM$13,0) ->  | AN15: =IF(OR((MOD(32-E15,D15)=0),E15=32),F15*G15*$AN$13,0) ->  | AO15: =IF(OR((MOD(33-E15,D15)=0),E15=33),F15*G15*$AO$13,0) ->  | AP15: =IF(OR((MOD(34-E15,D15)=0),E15=34),F15*G15*$AP$13,0) ->  | AQ15: =IF(OR((MOD(35-E15,D15)=0),E15=35),F15*G15*$AQ$13,0) ->  | AR15: =IF(OR((MOD(36-E15,D15)=0),E15=36),F15*G15*$AR$13,0) ->  | AS15: =IF(OR((MOD(37-E15,D15)=0),E15=37),F15*G15*$AS$13,0) ->  | AT15: =IF(OR((MOD(38-E15,D15)=0),E15=38),F15*G15*$AT$13,0) ->  | AU15: =IF(OR((MOD(39-E15,D15)=0),E15=39),F15*G15*$AU$13,0) ->  | AV15: =IF(OR((MOD(40-E15,D15)=0),E15=40),F15*G15*$AV$13,0) ->  | AW15: =SUM(I15:AV15) -> 
H16: =IF(E16>0,0,(F16*G16)) -> 0 | I16: =IF(OR((MOD(1-E16,D16)=0),E16=1),F16*G16*$I$13,0) ->  | J16: =IF(OR((MOD(2-E16,D16)=0),E16=2),F16*G16*$J$13,0) ->  | K16: =IF(OR((MOD(3-E16,D16)=0),E16=3),F16*G16*$K$13,0) ->  | L16: =IF(OR((MOD(4-E16,D16)=0),E16=4),F16*G16*$L$13,0) ->  | M16: =IF(OR((MOD(5-E16,D16)=0),E16=5),F16*G16*$M$13,0) ->  | N16: =IF(OR((MOD(6-E16,D16)=0),E16=6),F16*G16*$N$13,0) ->  | O16: =IF(OR((MOD(7-E16,D16)=0),E16=7),F16*G16*$O$13,0) ->  | P16: =IF(OR((MOD(8-E16,D16)=0),E16=8),F16*G16*$P$13,0) ->  | Q16: =IF(OR((MOD(9-E16,D16)=0),E16=9),F16*G16*$Q$13,0) ->  | R16: =IF(OR((MOD(10-E16,D16)=0),E16=10),F16*G16*$R$13,0) ->  | S16: =IF(OR((MOD(11-E16,D16)=0),E16=11),F16*G16*$S$13,0) ->  | T16: =IF(OR((MOD(12-E16,D16)=0),E16=12),F16*G16*$T$13,0) ->  | U16: =IF(OR((MOD(13-E16,D16)=0),E16=13),F16*G16*$U$13,0) ->  | V16: =IF(OR((MOD(14-E16,D16)=0),E16=14),F16*G16*$V$13,0) ->  | W16: =IF(OR((MOD(15-E16,D16)=0),E16=15),F16*G16*$W$13,0) ->  | X16: =IF(OR((MOD(16-E16,D16)=0),E16=16),F16*G16*$X$13,0) ->  | Y16: =IF(OR((MOD(17-E16,D16)=0),E16=17),F16*G16*$Y$13,0) ->  | Z16: =IF(OR((MOD(18-E16,D16)=0),E16=18),F16*G16*$Z$13,0) ->  | AA16: =IF(OR((MOD(19-E16,D16)=0),E16=19),F16*G16*$AA$13,0) ->  | AB16: =IF(OR((MOD(20-E16,D16)=0),E16=20),F16*G16*$AB$13,0) ->  | AC16: =IF(OR((MOD(21-E16,D16)=0),E16=21),F16*G16*$AC$13,0) ->  | AD16: =IF(OR((MOD(22-E16,D16)=0),E16=22),F16*G16*$AD$13,0) ->  | AE16: =IF(OR((MOD(23-E16,D16)=0),E16=23),F16*G16*$AE$13,0) ->  | AF16: =IF(OR((MOD(24-E16,D16)=0),E16=24),F16*G16*$AF$13,0) ->  | AG16: =IF(OR((MOD(25-E16,D16)=0),E16=25),F16*G16*$AG$13,0) ->  | AH16: =IF(OR((MOD(26-E16,D16)=0),E16=26),F16*G16*$AH$13,0) ->  | AI16: =IF(OR((MOD(27-E16,D16)=0),E16=27),F16*G16*$AI$13,0) ->  | AJ16: =IF(OR((MOD(28-E16,D16)=0),E16=28),F16*G16*$AJ$13,0) ->  | AK16: =IF(OR((MOD(29-E16,D16)=0),E16=29),F16*G16*$AK$13,0) ->  | AL16: =IF(OR((MOD(30-E16,D16)=0),E16=30),F16*G16*$AL$13,0) ->  | AM16: =IF(OR((MOD(31-E16,D16)=0),E16=31),F16*G16*$AM$13,0) ->  | AN16: =IF(OR((MOD(32-E16,D16)=0),E16=32),F16*G16*$AN$13,0) ->  | AO16: =IF(OR((MOD(33-E16,D16)=0),E16=33),F16*G16*$AO$13,0) ->  | AP16: =IF(OR((MOD(34-E16,D16)=0),E16=34),F16*G16*$AP$13,0) ->  | AQ16: =IF(OR((MOD(35-E16,D16)=0),E16=35),F16*G16*$AQ$13,0) ->  | AR16: =IF(OR((MOD(36-E16,D16)=0),E16=36),F16*G16*$AR$13,0) ->  | AS16: =IF(OR((MOD(37-E16,D16)=0),E16=37),F16*G16*$AS$13,0) ->  | AT16: =IF(OR((MOD(38-E16,D16)=0),E16=38),F16*G16*$AT$13,0) ->  | AU16: =IF(OR((MOD(39-E16,D16)=0),E16=39),F16*G16*$AU$13,0) ->  | AV16: =IF(OR((MOD(40-E16,D16)=0),E16=40),F16*G16*$AV$13,0) ->  | AW16: =SUM(I16:AV16) -> 
H17: =IF(E17>0,0,(F17*G17)) -> 0 | I17: =IF(OR((MOD(1-E17,D17)=0),E17=1),F17*G17*$I$13,0) ->  | J17: =IF(OR((MOD(2-E17,D17)=0),E17=2),F17*G17*$J$13,0) ->  | K17: =IF(OR((MOD(3-E17,D17)=0),E17=3),F17*G17*$K$13,0) ->  | L17: =IF(OR((MOD(4-E17,D17)=0),E17=4),F17*G17*$L$13,0) ->  | M17: =IF(OR((MOD(5-E17,D17)=0),E17=5),F17*G17*$M$13,0) ->  | N17: =IF(OR((MOD(6-E17,D17)=0),E17=6),F17*G17*$N$13,0) ->  | O17: =IF(OR((MOD(7-E17,D17)=0),E17=7),F17*G17*$O$13,0) ->  | P17: =IF(OR((MOD(8-E17,D17)=0),E17=8),F17*G17*$P$13,0) ->  | Q17: =IF(OR((MOD(9-E17,D17)=0),E17=9),F17*G17*$Q$13,0) ->  | R17: =IF(OR((MOD(10-E17,D17)=0),E17=10),F17*G17*$R$13,0) ->  | S17: =IF(OR((MOD(11-E17,D17)=0),E17=11),F17*G17*$S$13,0) ->  | T17: =IF(OR((MOD(12-E17,D17)=0),E17=12),F17*G17*$T$13,0) ->  | U17: =IF(OR((MOD(13-E17,D17)=0),E17=13),F17*G17*$U$13,0) ->  | V17: =IF(OR((MOD(14-E17,D17)=0),E17=14),F17*G17*$V$13,0) ->  | W17: =IF(OR((MOD(15-E17,D17)=0),E17=15),F17*G17*$W$13,0) ->  | X17: =IF(OR((MOD(16-E17,D17)=0),E17=16),F17*G17*$X$13,0) ->  | Y17: =IF(OR((MOD(17-E17,D17)=0),E17=17),F17*G17*$Y$13,0) ->  | Z17: =IF(OR((MOD(18-E17,D17)=0),E17=18),F17*G17*$Z$13,0) ->  | AA17: =IF(OR((MOD(19-E17,D17)=0),E17=19),F17*G17*$AA$13,0) ->  | AB17: =IF(OR((MOD(20-E17,D17)=0),E17=20),F17*G17*$AB$13,0) ->  | AC17: =IF(OR((MOD(21-E17,D17)=0),E17=21),F17*G17*$AC$13,0) ->  | AD17: =IF(OR((MOD(22-E17,D17)=0),E17=22),F17*G17*$AD$13,0) ->  | AE17: =IF(OR((MOD(23-E17,D17)=0),E17=23),F17*G17*$AE$13,0) ->  | AF17: =IF(OR((MOD(24-E17,D17)=0),E17=24),F17*G17*$AF$13,0) ->  | AG17: =IF(OR((MOD(25-E17,D17)=0),E17=25),F17*G17*$AG$13,0) ->  | AH17: =IF(OR((MOD(26-E17,D17)=0),E17=26),F17*G17*$AH$13,0) ->  | AI17: =IF(OR((MOD(27-E17,D17)=0),E17=27),F17*G17*$AI$13,0) ->  | AJ17: =IF(OR((MOD(28-E17,D17)=0),E17=28),F17*G17*$AJ$13,0) ->  | AK17: =IF(OR((MOD(29-E17,D17)=0),E17=29),F17*G17*$AK$13,0) ->  | AL17: =IF(OR((MOD(30-E17,D17)=0),E17=30),F17*G17*$AL$13,0) ->  | AM17: =IF(OR((MOD(31-E17,D17)=0),E17=31),F17*G17*$AM$13,0) ->  | AN17: =IF(OR((MOD(32-E17,D17)=0),E17=32),F17*G17*$AN$13,0) ->  | AO17: =IF(OR((MOD(33-E17,D17)=0),E17=33),F17*G17*$AO$13,0) ->  | AP17: =IF(OR((MOD(34-E17,D17)=0),E17=34),F17*G17*$AP$13,0) ->  | AQ17: =IF(OR((MOD(35-E17,D17)=0),E17=35),F17*G17*$AQ$13,0) ->  | AR17: =IF(OR((MOD(36-E17,D17)=0),E17=36),F17*G17*$AR$13,0) ->  | AS17: =IF(OR((MOD(37-E17,D17)=0),E17=37),F17*G17*$AS$13,0) ->  | AT17: =IF(OR((MOD(38-E17,D17)=0),E17=38),F17*G17*$AT$13,0) ->  | AU17: =IF(OR((MOD(39-E17,D17)=0),E17=39),F17*G17*$AU$13,0) ->  | AV17: =IF(OR((MOD(40-E17,D17)=0),E17=40),F17*G17*$AV$13,0) ->  | AW17: =SUM(I17:AV17) -> 
B18: Exterior Building Elements
H19: =IF(E19>0,0,(F19*G19)) -> 0 | I19: =IF(OR((MOD(1-E19,D19)=0),E19=1),F19*G19*$I$13,0) ->  | J19: =IF(OR((MOD(2-E19,D19)=0),E19=2),F19*G19*$J$13,0) ->  | K19: =IF(OR((MOD(3-E19,D19)=0),E19=3),F19*G19*$K$13,0) ->  | L19: =IF(OR((MOD(4-E19,D19)=0),E19=4),F19*G19*$L$13,0) ->  | M19: =IF(OR((MOD(5-E19,D19)=0),E19=5),F19*G19*$M$13,0) ->  | N19: =IF(OR((MOD(6-E19,D19)=0),E19=6),F19*G19*$N$13,0) ->  | O19: =IF(OR((MOD(7-E19,D19)=0),E19=7),F19*G19*$O$13,0) ->  | P19: =IF(OR((MOD(8-E19,D19)=0),E19=8),F19*G19*$P$13,0) ->  | Q19: =IF(OR((MOD(9-E19,D19)=0),E19=9),F19*G19*$Q$13,0) ->  | R19: =IF(OR((MOD(10-E19,D19)=0),E19=10),F19*G19*$R$13,0) ->  | S19: =IF(OR((MOD(11-E19,D19)=0),E19=11),F19*G19*$S$13,0) ->  | T19: =IF(OR((MOD(12-E19,D19)=0),E19=12),F19*G19*$T$13,0) ->  | U19: =IF(OR((MOD(13-E19,D19)=0),E19=13),F19*G19*$U$13,0) ->  | V19: =IF(OR((MOD(14-E19,D19)=0),E19=14),F19*G19*$V$13,0) ->  | W19: =IF(OR((MOD(15-E19,D19)=0),E19=15),F19*G19*$W$13,0) ->  | X19: =IF(OR((MOD(16-E19,D19)=0),E19=16),F19*G19*$X$13,0) ->  | Y19: =IF(OR((MOD(17-E19,D19)=0),E19=17),F19*G19*$Y$13,0) ->  | Z19: =IF(OR((MOD(18-E19,D19)=0),E19=18),F19*G19*$Z$13,0) ->  | AA19: =IF(OR((MOD(19-E19,D19)=0),E19=19),F19*G19*$AA$13,0) ->  | AB19: =IF(OR((MOD(20-E19,D19)=0),E19=20),F19*G19*$AB$13,0) ->  | AC19: =IF(OR((MOD(21-E19,D19)=0),E19=21),F19*G19*$AC$13,0) ->  | AD19: =IF(OR((MOD(22-E19,D19)=0),E19=22),F19*G19*$AD$13,0) ->  | AE19: =IF(OR((MOD(23-E19,D19)=0),E19=23),F19*G19*$AE$13,0) ->  | AF19: =IF(OR((MOD(24-E19,D19)=0),E19=24),F19*G19*$AF$13,0) ->  | AG19: =IF(OR((MOD(25-E19,D19)=0),E19=25),F19*G19*$AG$13,0) ->  | AH19: =IF(OR((MOD(26-E19,D19)=0),E19=26),F19*G19*$AH$13,0) ->  | AI19: =IF(OR((MOD(27-E19,D19)=0),E19=27),F19*G19*$AI$13,0) ->  | AJ19: =IF(OR((MOD(28-E19,D19)=0),E19=28),F19*G19*$AJ$13,0) ->  | AK19: =IF(OR((MOD(29-E19,D19)=0),E19=29),F19*G19*$AK$13,0) ->  | AL19: =IF(OR((MOD(30-E19,D19)=0),E19=30),F19*G19*$AL$13,0) ->  | AM19: =IF(OR((MOD(31-E19,D19)=0),E19=31),F19*G19*$AM$13,0) ->  | AN19: =IF(OR((MOD(32-E19,D19)=0),E19=32),F19*G19*$AN$13,0) ->  | AO19: =IF(OR((MOD(33-E19,D19)=0),E19=33),F19*G19*$AO$13,0) ->  | AP19: =IF(OR((MOD(34-E19,D19)=0),E19=34),F19*G19*$AP$13,0) ->  | AQ19: =IF(OR((MOD(35-E19,D19)=0),E19=35),F19*G19*$AQ$13,0) ->  | AR19: =IF(OR((MOD(36-E19,D19)=0),E19=36),F19*G19*$AR$13,0) ->  | AS19: =IF(OR((MOD(37-E19,D19)=0),E19=37),F19*G19*$AS$13,0) ->  | AT19: =IF(OR((MOD(38-E19,D19)=0),E19=38),F19*G19*$AT$13,0) ->  | AU19: =IF(OR((MOD(39-E19,D19)=0),E19=39),F19*G19*$AU$13,0) ->  | AV19: =IF(OR((MOD(40-E19,D19)=0),E19=40),F19*G19*$AV$13,0) ->  | AW19: =SUM(I19:AV19) -> 
H20: 0
B21: Mechanical & Electrical
H22: =IF(E22>0,0,(F22*G22)) -> 0 | I22: =IF(OR((MOD(1-E22,D22)=0),E22=1),F22*G22*$I$13,0) ->  | J22: =IF(OR((MOD(2-E22,D22)=0),E22=2),F22*G22*$J$13,0) ->  | K22: =IF(OR((MOD(3-E22,D22)=0),E22=3),F22*G22*$K$13,0) ->  | L22: =IF(OR((MOD(4-E22,D22)=0),E22=4),F22*G22*$L$13,0) ->  | M22: =IF(OR((MOD(5-E22,D22)=0),E22=5),F22*G22*$M$13,0) ->  | N22: =IF(OR((MOD(6-E22,D22)=0),E22=6),F22*G22*$N$13,0) ->  | O22: =IF(OR((MOD(7-E22,D22)=0),E22=7),F22*G22*$O$13,0) ->  | P22: =IF(OR((MOD(8-E22,D22)=0),E22=8),F22*G22*$P$13,0) ->  | Q22: =IF(OR((MOD(9-E22,D22)=0),E22=9),F22*G22*$Q$13,0) ->  | R22: =IF(OR((MOD(10-E22,D22)=0),E22=10),F22*G22*$R$13,0) ->  | S22: =IF(OR((MOD(11-E22,D22)=0),E22=11),F22*G22*$S$13,0) ->  | T22: =IF(OR((MOD(12-E22,D22)=0),E22=12),F22*G22*$T$13,0) ->  | U22: =IF(OR((MOD(13-E22,D22)=0),E22=13),F22*G22*$U$13,0) ->  | V22: =IF(OR((MOD(14-E22,D22)=0),E22=14),F22*G22*$V$13,0) ->  | W22: =IF(OR((MOD(15-E22,D22)=0),E22=15),F22*G22*$W$13,0) ->  | X22: =IF(OR((MOD(16-E22,D22)=0),E22=16),F22*G22*$X$13,0) ->  | Y22: =IF(OR((MOD(17-E22,D22)=0),E22=17),F22*G22*$Y$13,0) ->  | Z22: =IF(OR((MOD(18-E22,D22)=0),E22=18),F22*G22*$Z$13,0) ->  | AA22: =IF(OR((MOD(19-E22,D22)=0),E22=19),F22*G22*$AA$13,0) ->  | AB22: =IF(OR((MOD(20-E22,D22)=0),E22=20),F22*G22*$AB$13,0) ->  | AC22: =IF(OR((MOD(21-E22,D22)=0),E22=21),F22*G22*$AC$13,0) ->  | AD22: =IF(OR((MOD(22-E22,D22)=0),E22=22),F22*G22*$AD$13,0) ->  | AE22: =IF(OR((MOD(23-E22,D22)=0),E22=23),F22*G22*$AE$13,0) ->  | AF22: =IF(OR((MOD(24-E22,D22)=0),E22=24),F22*G22*$AF$13,0) ->  | AG22: =IF(OR((MOD(25-E22,D22)=0),E22=25),F22*G22*$AG$13,0) ->  | AH22: =IF(OR((MOD(26-E22,D22)=0),E22=26),F22*G22*$AH$13,0) ->  | AI22: =IF(OR((MOD(27-E22,D22)=0),E22=27),F22*G22*$AI$13,0) ->  | AJ22: =IF(OR((MOD(28-E22,D22)=0),E22=28),F22*G22*$AJ$13,0) ->  | AK22: =IF(OR((MOD(29-E22,D22)=0),E22=29),F22*G22*$AK$13,0) ->  | AL22: =IF(OR((MOD(30-E22,D22)=0),E22=30),F22*G22*$AL$13,0) ->  | AM22: =IF(OR((MOD(31-E22,D22)=0),E22=31),F22*G22*$AM$13,0) ->  | AN22: =IF(OR((MOD(32-E22,D22)=0),E22=32),F22*G22*$AN$13,0) ->  | AO22: =IF(OR((MOD(33-E22,D22)=0),E22=33),F22*G22*$AO$13,0) ->  | AP22: =IF(OR((MOD(34-E22,D22)=0),E22=34),F22*G22*$AP$13,0) ->  | AQ22: =IF(OR((MOD(35-E22,D22)=0),E22=35),F22*G22*$AQ$13,0) ->  | AR22: =IF(OR((MOD(36-E22,D22)=0),E22=36),F22*G22*$AR$13,0) ->  | AS22: =IF(OR((MOD(37-E22,D22)=0),E22=37),F22*G22*$AS$13,0) ->  | AT22: =IF(OR((MOD(38-E22,D22)=0),E22=38),F22*G22*$AT$13,0) ->  | AU22: =IF(OR((MOD(39-E22,D22)=0),E22=39),F22*G22*$AU$13,0) ->  | AV22: =IF(OR((MOD(40-E22,D22)=0),E22=40),F22*G22*$AV$13,0) ->  | AW22: =SUM(I22:AV22) -> 
H23: =IF(E23>0,0,(F23*G23)) -> 0 | I23: =IF(OR((MOD(1-E23,D23)=0),E23=1),F23*G23*$I$13,0) ->  | J23: =IF(OR((MOD(2-E23,D23)=0),E23=2),F23*G23*$J$13,0) ->  | K23: =IF(OR((MOD(3-E23,D23)=0),E23=3),F23*G23*$K$13,0) ->  | L23: =IF(OR((MOD(4-E23,D23)=0),E23=4),F23*G23*$L$13,0) ->  | M23: =IF(OR((MOD(5-E23,D23)=0),E23=5),F23*G23*$M$13,0) ->  | N23: =IF(OR((MOD(6-E23,D23)=0),E23=6),F23*G23*$N$13,0) ->  | O23: =IF(OR((MOD(7-E23,D23)=0),E23=7),F23*G23*$O$13,0) ->  | P23: =IF(OR((MOD(8-E23,D23)=0),E23=8),F23*G23*$P$13,0) ->  | Q23: =IF(OR((MOD(9-E23,D23)=0),E23=9),F23*G23*$Q$13,0) ->  | R23: =IF(OR((MOD(10-E23,D23)=0),E23=10),F23*G23*$R$13,0) ->  | S23: =IF(OR((MOD(11-E23,D23)=0),E23=11),F23*G23*$S$13,0) ->  | T23: =IF(OR((MOD(12-E23,D23)=0),E23=12),F23*G23*$T$13,0) ->  | U23: =IF(OR((MOD(13-E23,D23)=0),E23=13),F23*G23*$U$13,0) ->  | V23: =IF(OR((MOD(14-E23,D23)=0),E23=14),F23*G23*$V$13,0) ->  | W23: =IF(OR((MOD(15-E23,D23)=0),E23=15),F23*G23*$W$13,0) ->  | X23: =IF(OR((MOD(16-E23,D23)=0),E23=16),F23*G23*$X$13,0) ->  | Y23: =IF(OR((MOD(17-E23,D23)=0),E23=17),F23*G23*$Y$13,0) ->  | Z23: =IF(OR((MOD(18-E23,D23)=0),E23=18),F23*G23*$Z$13,0) ->  | AA23: =IF(OR((MOD(19-E23,D23)=0),E23=19),F23*G23*$AA$13,0) ->  | AB23: =IF(OR((MOD(20-E23,D23)=0),E23=20),F23*G23*$AB$13,0) ->  | AC23: =IF(OR((MOD(21-E23,D23)=0),E23=21),F23*G23*$AC$13,0) ->  | AD23: =IF(OR((MOD(22-E23,D23)=0),E23=22),F23*G23*$AD$13,0) ->  | AE23: =IF(OR((MOD(23-E23,D23)=0),E23=23),F23*G23*$AE$13,0) ->  | AF23: =IF(OR((MOD(24-E23,D23)=0),E23=24),F23*G23*$AF$13,0) ->  | AG23: =IF(OR((MOD(25-E23,D23)=0),E23=25),F23*G23*$AG$13,0) ->  | AH23: =IF(OR((MOD(26-E23,D23)=0),E23=26),F23*G23*$AH$13,0) ->  | AI23: =IF(OR((MOD(27-E23,D23)=0),E23=27),F23*G23*$AI$13,0) ->  | AJ23: =IF(OR((MOD(28-E23,D23)=0),E23=28),F23*G23*$AJ$13,0) ->  | AK23: =IF(OR((MOD(29-E23,D23)=0),E23=29),F23*G23*$AK$13,0) ->  | AL23: =IF(OR((MOD(30-E23,D23)=0),E23=30),F23*G23*$AL$13,0) ->  | AM23: =IF(OR((MOD(31-E23,D23)=0),E23=31),F23*G23*$AM$13,0) ->  | AN23: =IF(OR((MOD(32-E23,D23)=0),E23=32),F23*G23*$AN$13,0) ->  | AO23: =IF(OR((MOD(33-E23,D23)=0),E23=33),F23*G23*$AO$13,0) ->  | AP23: =IF(OR((MOD(34-E23,D23)=0),E23=34),F23*G23*$AP$13,0) ->  | AQ23: =IF(OR((MOD(35-E23,D23)=0),E23=35),F23*G23*$AQ$13,0) ->  | AR23: =IF(OR((MOD(36-E23,D23)=0),E23=36),F23*G23*$AR$13,0) ->  | AS23: =IF(OR((MOD(37-E23,D23)=0),E23=37),F23*G23*$AS$13,0) ->  | AT23: =IF(OR((MOD(38-E23,D23)=0),E23=38),F23*G23*$AT$13,0) ->  | AU23: =IF(OR((MOD(39-E23,D23)=0),E23=39),F23*G23*$AU$13,0) ->  | AV23: =IF(OR((MOD(40-E23,D23)=0),E23=40),F23*G23*$AV$13,0) ->  | AW23: =SUM(I23:AV23) -> 
H24: 0
B25: Life, Safety & Fire Protection
H26: =IF(E26>0,0,(F26*G26)) -> 0 | I26: =IF(OR((MOD(1-E26,D26)=0),E26=1),F26*G26*$I$13,0) ->  | J26: =IF(OR((MOD(2-E26,D26)=0),E26=2),F26*G26*$J$13,0) ->  | K26: =IF(OR((MOD(3-E26,D26)=0),E26=3),F26*G26*$K$13,0) ->  | L26: =IF(OR((MOD(4-E26,D26)=0),E26=4),F26*G26*$L$13,0) ->  | M26: =IF(OR((MOD(5-E26,D26)=0),E26=5),F26*G26*$M$13,0) ->  | N26: =IF(OR((MOD(6-E26,D26)=0),E26=6),F26*G26*$N$13,0) ->  | O26: =IF(OR((MOD(7-E26,D26)=0),E26=7),F26*G26*$O$13,0) ->  | P26: =IF(OR((MOD(8-E26,D26)=0),E26=8),F26*G26*$P$13,0) ->  | Q26: =IF(OR((MOD(9-E26,D26)=0),E26=9),F26*G26*$Q$13,0) ->  | R26: =IF(OR((MOD(10-E26,D26)=0),E26=10),F26*G26*$R$13,0) ->  | S26: =IF(OR((MOD(11-E26,D26)=0),E26=11),F26*G26*$S$13,0) ->  | T26: =IF(OR((MOD(12-E26,D26)=0),E26=12),F26*G26*$T$13,0) ->  | U26: =IF(OR((MOD(13-E26,D26)=0),E26=13),F26*G26*$U$13,0) ->  | V26: =IF(OR((MOD(14-E26,D26)=0),E26=14),F26*G26*$V$13,0) ->  | W26: =IF(OR((MOD(15-E26,D26)=0),E26=15),F26*G26*$W$13,0) ->  | X26: =IF(OR((MOD(16-E26,D26)=0),E26=16),F26*G26*$X$13,0) ->  | Y26: =IF(OR((MOD(17-E26,D26)=0),E26=17),F26*G26*$Y$13,0) ->  | Z26: =IF(OR((MOD(18-E26,D26)=0),E26=18),F26*G26*$Z$13,0) ->  | AA26: =IF(OR((MOD(19-E26,D26)=0),E26=19),F26*G26*$AA$13,0) ->  | AB26: =IF(OR((MOD(20-E26,D26)=0),E26=20),F26*G26*$AB$13,0) ->  | AC26: =IF(OR((MOD(21-E26,D26)=0),E26=21),F26*G26*$AC$13,0) ->  | AD26: =IF(OR((MOD(22-E26,D26)=0),E26=22),F26*G26*$AD$13,0) ->  | AE26: =IF(OR((MOD(23-E26,D26)=0),E26=23),F26*G26*$AE$13,0) ->  | AF26: =IF(OR((MOD(24-E26,D26)=0),E26=24),F26*G26*$AF$13,0) ->  | AG26: =IF(OR((MOD(25-E26,D26)=0),E26=25),F26*G26*$AG$13,0) ->  | AH26: =IF(OR((MOD(26-E26,D26)=0),E26=26),F26*G26*$AH$13,0) ->  | AI26: =IF(OR((MOD(27-E26,D26)=0),E26=27),F26*G26*$AI$13,0) ->  | AJ26: =IF(OR((MOD(28-E26,D26)=0),E26=28),F26*G26*$AJ$13,0) ->  | AK26: =IF(OR((MOD(29-E26,D26)=0),E26=29),F26*G26*$AK$13,0) ->  | AL26: =IF(OR((MOD(30-E26,D26)=0),E26=30),F26*G26*$AL$13,0) ->  | AM26: =IF(OR((MOD(31-E26,D26)=0),E26=31),F26*G26*$AM$13,0) ->  | AN26: =IF(OR((MOD(32-E26,D26)=0),E26=32),F26*G26*$AN$13,0) ->  | AO26: =IF(OR((MOD(33-E26,D26)=0),E26=33),F26*G26*$AO$13,0) ->  | AP26: =IF(OR((MOD(34-E26,D26)=0),E26=34),F26*G26*$AP$13,0) ->  | AQ26: =IF(OR((MOD(35-E26,D26)=0),E26=35),F26*G26*$AQ$13,0) ->  | AR26: =IF(OR((MOD(36-E26,D26)=0),E26=36),F26*G26*$AR$13,0) ->  | AS26: =IF(OR((MOD(37-E26,D26)=0),E26=37),F26*G26*$AS$13,0) ->  | AT26: =IF(OR((MOD(38-E26,D26)=0),E26=38),F26*G26*$AT$13,0) ->  | AU26: =IF(OR((MOD(39-E26,D26)=0),E26=39),F26*G26*$AU$13,0) ->  | AV26: =IF(OR((MOD(40-E26,D26)=0),E26=40),F26*G26*$AV$13,0) ->  | AW26: =SUM(I26:AV26) -> 
H27: 0
B28: Interior Elements
H29: =IF(E29>0,0,(F29*G29)) -> 0 | I29: =IF(OR((MOD(1-E29,D29)=0),E29=1),F29*G29*$I$13,0) ->  | J29: =IF(OR((MOD(2-E29,D29)=0),E29=2),F29*G29*$J$13,0) ->  | K29: =IF(OR((MOD(3-E29,D29)=0),E29=3),F29*G29*$K$13,0) ->  | L29: =IF(OR((MOD(4-E29,D29)=0),E29=4),F29*G29*$L$13,0) ->  | M29: =IF(OR((MOD(5-E29,D29)=0),E29=5),F29*G29*$M$13,0) ->  | N29: =IF(OR((MOD(6-E29,D29)=0),E29=6),F29*G29*$N$13,0) ->  | O29: =IF(OR((MOD(7-E29,D29)=0),E29=7),F29*G29*$O$13,0) ->  | P29: =IF(OR((MOD(8-E29,D29)=0),E29=8),F29*G29*$P$13,0) ->  | Q29: =IF(OR((MOD(9-E29,D29)=0),E29=9),F29*G29*$Q$13,0) ->  | R29: =IF(OR((MOD(10-E29,D29)=0),E29=10),F29*G29*$R$13,0) ->  | S29: =IF(OR((MOD(11-E29,D29)=0),E29=11),F29*G29*$S$13,0) ->  | T29: =IF(OR((MOD(12-E29,D29)=0),E29=12),F29*G29*$T$13,0) ->  | U29: =IF(OR((MOD(13-E29,D29)=0),E29=13),F29*G29*$U$13,0) ->  | V29: =IF(OR((MOD(14-E29,D29)=0),E29=14),F29*G29*$V$13,0) ->  | W29: =IF(OR((MOD(15-E29,D29)=0),E29=15),F29*G29*$W$13,0) ->  | X29: =IF(OR((MOD(16-E29,D29)=0),E29=16),F29*G29*$X$13,0) ->  | Y29: =IF(OR((MOD(17-E29,D29)=0),E29=17),F29*G29*$Y$13,0) ->  | Z29: =IF(OR((MOD(18-E29,D29)=0),E29=18),F29*G29*$Z$13,0) ->  | AA29: =IF(OR((MOD(19-E29,D29)=0),E29=19),F29*G29*$AA$13,0) ->  | AB29: =IF(OR((MOD(20-E29,D29)=0),E29=20),F29*G29*$AB$13,0) ->  | AC29: =IF(OR((MOD(21-E29,D29)=0),E29=21),F29*G29*$AC$13,0) ->  | AD29: =IF(OR((MOD(22-E29,D29)=0),E29=22),F29*G29*$AD$13,0) ->  | AE29: =IF(OR((MOD(23-E29,D29)=0),E29=23),F29*G29*$AE$13,0) ->  | AF29: =IF(OR((MOD(24-E29,D29)=0),E29=24),F29*G29*$AF$13,0) ->  | AG29: =IF(OR((MOD(25-E29,D29)=0),E29=25),F29*G29*$AG$13,0) ->  | AH29: =IF(OR((MOD(26-E29,D29)=0),E29=26),F29*G29*$AH$13,0) ->  | AI29: =IF(OR((MOD(27-E29,D29)=0),E29=27),F29*G29*$AI$13,0) ->  | AJ29: =IF(OR((MOD(28-E29,D29)=0),E29=28),F29*G29*$AJ$13,0) ->  | AK29: =IF(OR((MOD(29-E29,D29)=0),E29=29),F29*G29*$AK$13,0) ->  | AL29: =IF(OR((MOD(30-E29,D29)=0),E29=30),F29*G29*$AL$13,0) ->  | AM29: =IF(OR((MOD(31-E29,D29)=0),E29=31),F29*G29*$AM$13,0) ->  | AN29: =IF(OR((MOD(32-E29,D29)=0),E29=32),F29*G29*$AN$13,0) ->  | AO29: =IF(OR((MOD(33-E29,D29)=0),E29=33),F29*G29*$AO$13,0) ->  | AP29: =IF(OR((MOD(34-E29,D29)=0),E29=34),F29*G29*$AP$13,0) ->  | AQ29: =IF(OR((MOD(35-E29,D29)=0),E29=35),F29*G29*$AQ$13,0) ->  | AR29: =IF(OR((MOD(36-E29,D29)=0),E29=36),F29*G29*$AR$13,0) ->  | AS29: =IF(OR((MOD(37-E29,D29)=0),E29=37),F29*G29*$AS$13,0) ->  | AT29: =IF(OR((MOD(38-E29,D29)=0),E29=38),F29*G29*$AT$13,0) ->  | AU29: =IF(OR((MOD(39-E29,D29)=0),E29=39),F29*G29*$AU$13,0) ->  | AV29: =IF(OR((MOD(40-E29,D29)=0),E29=40),F29*G29*$AV$13,0) ->  | AW29: =SUM(I29:AV29) -> 
H30: 0
H31: 0
E32: Transfer these totals to the KHC Underwriting Model: | F32: Total Capital Needs: | H32: =SUM(H15:H31) -> 0 | I32: =SUM(IF(ISERROR(I15:I31),0,I15:I31)) -> 0 | J32: =SUM(IF(ISERROR(J15:J31),0,J15:J31)) -> 0 | K32: =SUM(IF(ISERROR(K15:K31),0,K15:K31)) -> 0 | L32: =SUM(IF(ISERROR(L15:L31),0,L15:L31)) -> 0 | M32: =SUM(IF(ISERROR(M15:M31),0,M15:M31)) -> 0 | N32: =SUM(IF(ISERROR(N15:N31),0,N15:N31)) -> 0 | O32: =SUM(IF(ISERROR(O15:O31),0,O15:O31)) -> 0 | P32: =SUM(IF(ISERROR(P15:P31),0,P15:P31)) -> 0 | Q32: =SUM(IF(ISERROR(Q15:Q31),0,Q15:Q31)) -> 0 | R32: =SUM(IF(ISERROR(R15:R31),0,R15:R31)) -> 0 | S32: =SUM(IF(ISERROR(S15:S31),0,S15:S31)) -> 0 | T32: =SUM(IF(ISERROR(T15:T31),0,T15:T31)) -> 0 | U32: =SUM(IF(ISERROR(U15:U31),0,U15:U31)) -> 0 | V32: =SUM(IF(ISERROR(V15:V31),0,V15:V31)) -> 0 | W32: =SUM(IF(ISERROR(W15:W31),0,W15:W31)) -> 0 | X32: =SUM(IF(ISERROR(X15:X31),0,X15:X31)) -> 0 | Y32: =SUM(IF(ISERROR(Y15:Y31),0,Y15:Y31)) -> 0 | Z32: =SUM(IF(ISERROR(Z15:Z31),0,Z15:Z31)) -> 0 | AA32: =SUM(IF(ISERROR(AA15:AA31),0,AA15:AA31)) -> 0 | AB32: =SUM(IF(ISERROR(AB15:AB31),0,AB15:AB31)) -> 0 | AC32: =SUM(IF(ISERROR(AC15:AC31),0,AC15:AC31)) -> 0 | AD32: =SUM(IF(ISERROR(AD15:AD31),0,AD15:AD31)) -> 0 | AE32: =SUM(IF(ISERROR(AE15:AE31),0,AE15:AE31)) -> 0 | AF32: =SUM(IF(ISERROR(AF15:AF31),0,AF15:AF31)) -> 0 | AG32: =SUM(IF(ISERROR(AG15:AG31),0,AG15:AG31)) -> 0 | AH32: =SUM(IF(ISERROR(AH15:AH31),0,AH15:AH31)) -> 0 | AI32: =SUM(IF(ISERROR(AI15:AI31),0,AI15:AI31)) -> 0 | AJ32: =SUM(IF(ISERROR(AJ15:AJ31),0,AJ15:AJ31)) -> 0 | AK32: =SUM(IF(ISERROR(AK15:AK31),0,AK15:AK31)) -> 0 | AL32: =SUM(IF(ISERROR(AL15:AL31),0,AL15:AL31)) -> 0 | AM32: =SUM(IF(ISERROR(AM15:AM31),0,AM15:AM31)) -> 0 | AN32: =SUM(IF(ISERROR(AN15:AN31),0,AN15:AN31)) -> 0 | AO32: =SUM(IF(ISERROR(AO15:AO31),0,AO15:AO31)) -> 0 | AP32: =SUM(IF(ISERROR(AP15:AP31),0,AP15:AP31)) -> 0 | AQ32: =SUM(IF(ISERROR(AQ15:AQ31),0,AQ15:AQ31)) -> 0 | AR32: =SUM(IF(ISERROR(AR15:AR31),0,AR15:AR31)) -> 0 | AS32: =SUM(IF(ISERROR(AS15:AS31),0,AS15:AS31)) -> 0 | AT32: =SUM(IF(ISERROR(AT15:AT31),0,AT15:AT31)) -> 0 | AU32: =SUM(IF(ISERROR(AU15:AU31),0,AU15:AU31)) -> 0 | AV32: =SUM(IF(ISERROR(AV15:AV31),0,AV15:AV31)) -> 0 | AW32: =SUM(IF(ISERROR(AW15:AW31),0,AW15:AW31)) -> 0
F33: Per Unit Amount | H33: =H32/D6 ->  | I33: =I32/D6 ->  | J33: =J32/D6 ->  | K33: =K32/D6 ->  | L33: =L32/D6 ->  | M33: =M32/D6 ->  | N33: =N32/D6 ->  | O33: =O32/D6 ->  | P33: =P32/D6 ->  | Q33: =Q32/D6 ->  | R33: =R32/D6 ->  | S33: =S32/D6 ->  | T33: =T32/D6 ->  | U33: =U32/D6 ->  | V33: =V32/D6 ->  | W33: =W32/D6 ->  | X33: =X32/D6 ->  | Y33: =Y32/D6 ->  | Z33: =Z32/D6 ->  | AA33: =AA32/D6 ->  | AB33: =AB32/D6 ->  | AC33: =AC32/D6 ->  | AD33: =AD32/D6 ->  | AE33: =AE32/D6 ->  | AF33: =AF32/D6 ->  | AG33: =AG32/D6 ->  | AH33: =AH32/D6 ->  | AI33: =AI32/D6 ->  | AJ33: =AJ32/D6 ->  | AK33: =AK32/D6 ->  | AL33: =AL32/D6 ->  | AM33: =AM32/D6 ->  | AN33: =AN32/D6 ->  | AO33: =AO32/D6 ->  | AP33: =AP32/D6 ->  | AQ33: =AQ32/D6 ->  | AR33: =AR32/D6 ->  | AS33: =AS32/D6 ->  | AT33: =AT32/D6 ->  | AU33: =AU32/D6 ->  | AV33: =AV32/D6 ->  | AW33: =AW32/D6 -> 
H34: Year 0 | I34: Year 1 | J34: Year 2 | K34: Year 3 | L34: Year 4 | M34: Year 5 | N34: Year 6 | O34: Year 7 | P34: Year 8 | Q34: Year 9 | R34: Year 10 | S34: Year 11 | T34: Year 12 | U34: Year 13 | V34: Year 14 | W34: Year 15 | X34: Year 16 | Y34: Year 17 | Z34: Year 18 | AA34: Year 19 | AB34: Year 20 | AC34: Year 21 | AD34: Year 22 | AE34: Year 23 | AF34: Year 24 | AG34: Year 25 | AH34: Year 26 | AI34: Year 27 | AJ34: Year 28 | AK34: Year 29 | AL34: Year 30 | AM34: Year 31 | AN34: Year 32 | AO34: Year 33 | AP34: Year 34 | AQ34: Year 35 | AR34: Year 36 | AS34: Year 37 | AT34: Year 38 | AU34: Year 39 | AV34: Year 40
C35: Reserve Account Analysis | G35: Beginning of the year balance: | H35: =M8 -> 0 | I35: =H41 -> 0 | J35: =I41 -> 0 | K35: 0 | L35: 0 | M35: 0 | N35: 0 | O35: 0 | P35: 0 | Q35: 0 | R35: 0 | S35: 0 | T35: 0 | U35: 0 | V35: 0 | W35: 0 | X35: 0 | Y35: 0 | Z35: 0 | AA35: 0 | AB35: 0 | AC35: 0 | AD35: 0 | AE35: 0 | AF35: 0 | AG35: 0 | AH35: 0 | AI35: 0 | AJ35: 0 | AK35: 0 | AL35: 0 | AM35: 0 | AN35: 0 | AO35: 0 | AP35: 0 | AQ35: 0 | AR35: 0 | AS35: 0 | AT35: 0 | AU35: 0 | AV35: 0
G36: Annual reserve deposits: | I36: =$M$6*$D$6 -> 0 | J36: =$I$36*I13 -> 0 | K36: 0 | L36: 0 | M36: 0 | N36: 0 | O36: 0 | P36: 0 | Q36: 0 | R36: 0 | S36: 0 | T36: 0 | U36: 0 | V36: 0 | W36: 0 | X36: 0 | Y36: 0 | Z36: 0 | AA36: 0 | AB36: 0 | AC36: 0 | AD36: 0 | AE36: 0 | AF36: 0 | AG36: 0 | AH36: 0 | AI36: 0 | AJ36: 0 | AK36: 0 | AL36: 0 | AM36: 0 | AN36: 0 | AO36: 0 | AP36: 0 | AQ36: 0 | AR36: 0 | AS36: 0 | AT36: 0 | AU36: 0 | AV36: 0
G37: Capital needs: | I37: =I32*-1 -> 0 | J37: 0 | K37: 0 | L37: 0 | M37: 0 | N37: 0 | O37: 0 | P37: 0 | Q37: 0 | R37: 0 | S37: 0 | T37: 0 | U37: 0 | V37: 0 | W37: 0 | X37: 0 | Y37: 0 | Z37: 0 | AA37: 0 | AB37: 0 | AC37: 0 | AD37: 0 | AE37: 0 | AF37: 0 | AG37: 0 | AH37: 0 | AI37: 0 | AJ37: 0 | AK37: 0 | AL37: 0 | AM37: 0 | AN37: 0 | AO37: 0 | AP37: 0 | AQ37: 0 | AR37: 0 | AS37: 0 | AT37: 0 | AU37: 0 | AV37: 0
G38: Annual net change: | I38: =I36+I37 -> 0 | J38: =J36+J37 -> 0 | K38: 0 | L38: 0 | M38: 0 | N38: 0 | O38: 0 | P38: 0 | Q38: 0 | R38: 0 | S38: 0 | T38: 0 | U38: 0 | V38: 0 | W38: 0 | X38: 0 | Y38: 0 | Z38: 0 | AA38: 0 | AB38: 0 | AC38: 0 | AD38: 0 | AE38: 0 | AF38: 0 | AG38: 0 | AH38: 0 | AI38: 0 | AJ38: 0 | AK38: 0 | AL38: 0 | AM38: 0 | AN38: 0 | AO38: 0 | AP38: 0 | AQ38: 0 | AR38: 0 | AS38: 0 | AT38: 0 | AU38: 0 | AV38: 0
G39: Sub-Total: | H39: =H35+H36-H37 -> 0 | I39: =SUM(I35:I37) -> 0 | J39: =SUM(J35:J37) -> 0 | K39: 0 | L39: 0 | M39: 0 | N39: 0 | O39: 0 | P39: 0 | Q39: 0 | R39: 0 | S39: 0 | T39: 0 | U39: 0 | V39: 0 | W39: 0 | X39: 0 | Y39: 0 | Z39: 0 | AA39: 0 | AB39: 0 | AC39: 0 | AD39: 0 | AE39: 0 | AF39: 0 | AG39: 0 | AH39: 0 | AI39: 0 | AJ39: 0 | AK39: 0 | AL39: 0 | AM39: 0 | AN39: 0 | AO39: 0 | AP39: 0 | AQ39: 0 | AR39: 0 | AS39: 0 | AT39: 0 | AU39: 0 | AV39: 0
F40: Annual Interest on Reserve Account: | G40: 0.02 | H40: 0 | I40: =IF(H41>0,$G$40*H41,0) -> 0 | J40: 0 | K40: 0 | L40: 0 | M40: 0 | N40: 0 | O40: 0 | P40: 0 | Q40: 0 | R40: 0 | S40: 0 | T40: 0 | U40: 0 | V40: 0 | W40: 0 | X40: =IF(W41>0,$G$40*W41,0) -> 0 | Y40: =IF(X41>0,$G$40*X41,0) -> 0 | Z40: 0 | AA40: 0 | AB40: 0 | AC40: 0 | AD40: 0 | AE40: 0 | AF40: 0 | AG40: 0 | AH40: 0 | AI40: 0 | AJ40: 0 | AK40: 0 | AL40: 0 | AM40: 0 | AN40: 0 | AO40: 0 | AP40: 0 | AQ40: 0 | AR40: 0 | AS40: 0 | AT40: 0 | AU40: 0 | AV40: 0
G41: End of the year balance: | H41: =H39+H40 -> 0 | I41: =I39+I40 -> 0 | J41: =J39+J40 -> 0 | K41: 0 | L41: 0 | M41: 0 | N41: 0 | O41: 0 | P41: 0 | Q41: 0 | R41: 0 | S41: 0 | T41: 0 | U41: 0 | V41: 0 | W41: 0 | X41: 0 | Y41: 0 | Z41: 0 | AA41: 0 | AB41: 0 | AC41: 0 | AD41: 0 | AE41: 0 | AF41: 0 | AG41: 0 | AH41: 0 | AI41: 0 | AJ41: 0 | AK41: 0 | AL41: 0 | AM41: 0 | AN41: 0 | AO41: 0 | AP41: 0 | AQ41: 0 | AR41: 0 | AS41: 0 | AT41: 0 | AU41: 0 | AV41: 0
H43: General Notes | P43: Cost Notes

Sheet 15 Year Example
B2: Capital Reserve Replacement Schedule
C4: Project: | D4: Lexington Gardens Apartments | L4: KHC Loan Term: | M4: 15 | N4: Years | Q4: Name of Person Completing this Form: | R4: John Doe, AIA
C5: Address: | D5: 120 Garden Lane, Lexington, KY 40503 | L5: Inflation Factor: | M5: 0.03 | Q5: Qualifications/Credentials: | R5: Project architect, 25 years commercial/residential experience
C6: Number of Units: | D6: 24 | L6: Annual Reserve Per Unit: | M6: 470 | Q6: Name of Company/Firm: | R6: DesignsRUs
C7: Number of Buildings: | D7: 2 | E7: (including office) | L7: % Increase in Annual Reserve Payment: | M7: 0.03 | Q7: Phone #: | R7: 859-265-1234 | T7: Email: | U7: john@designsrus.com
C8: Project Age: | D8: 0 | E8: (0 if new construction) | J8: Beginning Capital Reserve Balance: | M8: 75000 | O8: Professional License #: | R8: 840 | T8: State of Licensure: | V8: KY
BX9: Inflation Factor:
B10: See Instructions tab for help adding rows | BX10: Year | BY10: Year | BZ10: Year | CA10: Year | CB10: Year | CC10: Year | CD10: Year | CE10: Year | CF10: Year | CG10: Year | CH10: Year | CI10: Year | CJ10: Year | CK10: Year | CL10: Year | CM10: Year | CN10: Year | CO10: Year | CP10: Year | CQ10: Year | CR10: Year | CS10: Year | CT10: Year | CU10: Year | CV10: Year | CW10: Year | CX10: Year | CY10: Year | CZ10: Year | DA10: Year | DB10: Year | DC10: Year | DD10: Year | DE10: Year | DF10: Year | DG10: Year | DH10: Year | DI10: Year | DJ10: Year | DK10: Year
G11: COST | H11: Year | I11: Year | J11: Year | K11: Year | L11: Year | M11: Year | N11: Year | O11: Year | P11: Year | Q11: Year | R11: Year | S11: Year | T11: Year | U11: Year | V11: Year | W11: Year | X11: Year | Y11: Year | Z11: Year | AA11: Year | AB11: Year | AC11: Year | AD11: Year | AE11: Year | AF11: Year | AG11: Year | AH11: Year | AI11: Year | AJ11: Year | AK11: Year | AL11: Year | AM11: Year | AN11: Year | AO11: Year | AP11: Year | AQ11: Year | AR11: Year | AS11: Year | AT11: Year | AU11: Year | AV11: Year | AW11: Total | BX11: 1 | BY11: =BX11+1 -> 2 | BZ11: =BY11+1 -> 3 | CA11: =BZ11+1 -> 4 | CB11: 5 | CC11: 6 | CD11: 7 | CE11: 8 | CF11: 9 | CG11: 10 | CH11: 11 | CI11: 12 | CJ11: 13 | CK11: 14 | CL11: 15 | CM11: 16 | CN11: 17 | CO11: 18 | CP11: 19 | CQ11: 20 | CR11: 21 | CS11: 22 | CT11: 23 | CU11: 24 | CV11: 25 | CW11: 26 | CX11: 27 | CY11: 28 | CZ11: 29 | DA11: 30 | DB11: 31 | DC11: 32 | DD11: 33 | DE11: 34 | DF11: 35 | DG11: 36 | DH11: 37 | DI11: 38 | DJ11: 39 | DK11: 40
B12: # | C12: ITEM | D12: EUL | E12: RUL | F12: QUANTITY | G12: PER | H12: 0 | I12: =H12+1 -> 1 | J12: =I12+1 -> 2 | K12: 3 | L12: 4 | M12: 5 | N12: 6 | O12: 7 | P12: 8 | Q12: 9 | R12: 10 | S12: 11 | T12: 12 | U12: 13 | V12: 14 | W12: 15 | X12: 16 | Y12: 17 | Z12: 18 | AA12: 19 | AB12: 20 | AC12: 21 | AD12: 22 | AE12: 23 | AF12: 24 | AG12: 25 | AH12: 26 | AI12: 27 | AJ12: 28 | AK12: 29 | AL12: 30 | AM12: 31 | AN12: 32 | AO12: 33 | AP12: 34 | AQ12: 35 | AR12: 36 | AS12: 37 | AT12: 38 | AU12: 39 | AV12: 40 | BV12: =$M$5 -> 0.03 | BX12: =1*(1+BV12)^1 -> 1.03 | BY12: =1*(1+BV12)^2 -> 1.0609 | BZ12: =1*(1+BV12)^3 -> 1.092727 | CA12: =1*(1+BV12)^4 -> 1.12550881 | CB12: =1*(1+BV12)^5 -> 1.159274074 | CC12: =1*(1+BV12)^6 -> 1.194052297 | CD12: =1*(1+BV12)^7 -> 1.229873865 | CE12: =1*(1+BV12)^8 -> 1.266770081 | CF12: =1*(1+BV12)^9 -> 1.304773184 | CG12: =1*(1+BV12)^10 -> 1.343916379 | CH12: =1*(1+BV12)^11 -> 1.384233871 | CI12: =1*(1+BV12)^12 -> 1.425760887 | CJ12: =1*(1+BV12)^13 -> 1.468533713 | CK12: =1*(1+BV12)^14 -> 1.512589725 | CL12: =1*(1+BV12)^15 -> 1.557967417 | CM12: =1*(1+BV12)^16 -> 1.604706439 | CN12: =1*(1+BV12)^17 -> 1.652847632 | CO12: =1*(1+BV12)^18 -> 1.702433061 | CP12: =1*(1+BV12)^19 -> 1.753506053 | CQ12: =1*(1+BV12)^20 -> 1.806111235 | CR12: =1*(1+BV12)^21 -> 1.860294572 | CS12: =1*(1+BV12)^22 -> 1.916103409 | CT12: =1*(1+BV12)^23 -> 1.973586511 | CU12: =1*(1+BV12)^24 -> 2.032794106 | CV12: =1*(1+BV12)^25 -> 2.09377793 | CW12: =1*(1+BV12)^26 -> 2.156591268 | CX12: =1*(1+BV12)^27 -> 2.221289006 | CY12: =1*(1+BV12)^28 -> 2.287927676 | CZ12: =1*(1+BV12)^29 -> 2.356565506 | DA12: =1*(1+BV12)^30 -> 2.427262471 | DB12: =1*(1+BV12)^31 -> 2.500080345 | DC12: =1*(1+BV12)^32 -> 2.575082756 | DD12: =1*(1+BV12)^33 -> 2.652335238 | DE12: =1*(1+BV12)^34 -> 2.731905296 | DF12: =1*(1+BV12)^35 -> 2.813862454 | DG12: =1*(1+BV12)^36 -> 2.898278328 | DH12: =1*(1+BV12)^37 -> 2.985226678 | DI12: =1*(1+BV12)^38 -> 3.074783478 | DJ12: =1*(1+BV12)^39 -> 3.167026983 | DK12: =1*(1+BV12)^40 -> 3.262037792
H13: Inflation Factor: | I13: =(1+$M$5)^(I12) -> 1.03 | J13: =(1+$M$5)^(J12) -> 1.0609 | K13: 1.092727 | L13: 1.12550881 | M13: 1.159274074 | N13: 1.194052297 | O13: 1.229873865 | P13: 1.266770081 | Q13: 1.304773184 | R13: 1.343916379 | S13: 1.384233871 | T13: 1.425760887 | U13: 1.468533713 | V13: 1.512589725 | W13: 1.557967417 | X13: 1.604706439 | Y13: 1.652847632 | Z13: 1.702433061 | AA13: 1.753506053 | AB13: 1.806111235 | AC13: 1.860294572 | AD13: 1.916103409 | AE13: 1.973586511 | AF13: 2.032794106 | AG13: 2.09377793 | AH13: 2.156591268 | AI13: 2.221289006 | AJ13: 2.287927676 | AK13: 2.356565506 | AL13: 2.427262471 | AM13: 2.500080345 | AN13: 2.575082756 | AO13: 2.652335238 | AP13: 2.731905296 | AQ13: 2.813862454 | AR13: 2.898278328 | AS13: 2.985226678 | AT13: 3.074783478 | AU13: 3.167026983 | AV13: 3.262037792 | BV13: =$M$5 -> 0.03 | BX13: =1*(1+BV13)^1 -> 1.03 | BY13: =1*(1+BV13)^2 -> 1.0609 | BZ13: =1*(1+BV13)^3 -> 1.092727 | CA13: =1*(1+BV13)^4 -> 1.12550881 | CB13: =1*(1+BV13)^5 -> 1.159274074 | CC13: =1*(1+BV13)^6 -> 1.194052297 | CD13: =1*(1+BV13)^7 -> 1.229873865 | CE13: =1*(1+BV13)^8 -> 1.266770081 | CF13: =1*(1+BV13)^9 -> 1.304773184 | CG13: =1*(1+BV13)^10 -> 1.343916379 | CH13: =1*(1+BV13)^11 -> 1.384233871 | CI13: =1*(1+BV13)^12 -> 1.425760887 | CJ13: =1*(1+BV13)^13 -> 1.468533713 | CK13: =1*(1+BV13)^14 -> 1.512589725 | CL13: =1*(1+BV13)^15 -> 1.557967417 | CM13: =1*(1+BV13)^16 -> 1.604706439 | CN13: =1*(1+BV13)^17 -> 1.652847632 | CO13: =1*(1+BV13)^18 -> 1.702433061 | CP13: =1*(1+BV13)^19 -> 1.753506053 | CQ13: =1*(1+BV13)^20 -> 1.806111235 | CR13: =1*(1+BV13)^21 -> 1.860294572 | CS13: =1*(1+BV13)^22 -> 1.916103409 | CT13: =1*(1+BV13)^23 -> 1.973586511 | CU13: =1*(1+BV13)^24 -> 2.032794106 | CV13: =1*(1+BV13)^25 -> 2.09377793 | CW13: =1*(1+BV13)^26 -> 2.156591268 | CX13: =1*(1+BV13)^27 -> 2.221289006 | CY13: =1*(1+BV13)^28 -> 2.287927676 | CZ13: =1*(1+BV13)^29 -> 2.356565506 | DA13: =1*(1+BV13)^30 -> 2.427262471 | DB13: =1*(1+BV13)^31 -> 2.500080345 | DC13: =1*(1+BV13)^32 -> 2.575082756 | DD13: =1*(1+BV13)^33 -> 2.652335238 | DE13: =1*(1+BV13)^34 -> 2.731905296 | DF13: =1*(1+BV13)^35 -> 2.813862454 | DG13: =1*(1+BV13)^36 -> 2.898278328 | DH13: =1*(1+BV13)^37 -> 2.985226678 | DI13: =1*(1+BV13)^38 -> 3.074783478 | DJ13: =1*(1+BV13)^39 -> 3.167026983 | DK13: =1*(1+BV13)^40 -> 3.262037792
B14: Site Elements | BV14: 0.03 | BX14: 1.03 | BY14: 1.0609 | BZ14: 1.092727 | CA14: 1.12550881 | CB14: 1.159274074 | CC14: 1.194052297 | CD14: 1.229873865 | CE14: 1.266770081 | CF14: 1.304773184 | CG14: 1.343916379 | CH14: 1.384233871 | CI14: 1.425760887 | CJ14: 1.468533713 | CK14: 1.512589725 | CL14: 1.557967417 | CM14: 1.604706439 | CN14: 1.652847632 | CO14: 1.702433061 | CP14: 1.753506053 | CQ14: 1.806111235 | CR14: 1.860294572 | CS14: 1.916103409 | CT14: 1.973586511 | CU14: 2.032794106 | CV14: 2.09377793 | CW14: 2.156591268 | CX14: 2.221289006 | CY14: 2.287927676 | CZ14: 2.356565506 | DA14: 2.427262471 | DB14: 2.500080345 | DC14: 2.575082756 | DD14: 2.652335238 | DE14: 2.731905296 | DF14: 2.813862454 | DG14: 2.898278328 | DH14: 2.985226678 | DI14: 3.074783478 | DJ14: 3.167026983 | DK14: 3.262037792
C15: Re-grade and landscape | D15: 50 | F15: 1 | G15: 4800 | H15: =IF(E15>0,0,(F15*G15)) -> 4800 | I15: =IF(OR((MOD(1-E15,D15)=0),E15=1),F15*G15*$I$13,0) -> 0 | J15: =IF(OR((MOD(2-E15,D15)=0),E15=2),F15*G15*$J$13,0) -> 0 | K15: =IF(OR((MOD(3-E15,D15)=0),E15=3),F15*G15*$K$13,0) -> 0 | L15: =IF(OR((MOD(4-E15,D15)=0),E15=4),F15*G15*$L$13,0) -> 0 | M15: =IF(OR((MOD(5-E15,D15)=0),E15=5),F15*G15*$M$13,0) -> 0 | N15: =IF(OR((MOD(6-E15,D15)=0),E15=6),F15*G15*$N$13,0) -> 0 | O15: =IF(OR((MOD(7-E15,D15)=0),E15=7),F15*G15*$O$13,0) -> 0 | P15: =IF(OR((MOD(8-E15,D15)=0),E15=8),F15*G15*$P$13,0) -> 0 | Q15: =IF(OR((MOD(9-E15,D15)=0),E15=9),F15*G15*$Q$13,0) -> 0 | R15: =IF(OR((MOD(10-E15,D15)=0),E15=10),F15*G15*$R$13,0) -> 0 | S15: =IF(OR((MOD(11-E15,D15)=0),E15=11),F15*G15*$S$13,0) -> 0 | T15: =IF(OR((MOD(12-E15,D15)=0),E15=12),F15*G15*$T$13,0) -> 0 | U15: =IF(OR((MOD(13-E15,D15)=0),E15=13),F15*G15*$U$13,0) -> 0 | V15: =IF(OR((MOD(14-E15,D15)=0),E15=14),F15*G15*$V$13,0) -> 0 | W15: =IF(OR((MOD(15-E15,D15)=0),E15=15),F15*G15*$W$13,0) -> 0 | X15: =IF(OR((MOD(16-E15,D15)=0),E15=16),F15*G15*$X$13,0) -> 0 | Y15: =IF(OR((MOD(17-E15,D15)=0),E15=17),F15*G15*$Y$13,0) -> 0 | Z15: =IF(OR((MOD(18-E15,D15)=0),E15=18),F15*G15*$Z$13,0) -> 0 | AA15: =IF(OR((MOD(19-E15,D15)=0),E15=19),F15*G15*$AA$13,0) -> 0 | AB15: =IF(OR((MOD(20-E15,D15)=0),E15=20),F15*G15*$AB$13,0) -> 0 | AC15: =IF(OR((MOD(21-E15,D15)=0),E15=21),F15*G15*$AC$13,0) -> 0 | AD15: =IF(OR((MOD(22-E15,D15)=0),E15=22),F15*G15*$AD$13,0) -> 0 | AE15: =IF(OR((MOD(23-E15,D15)=0),E15=23),F15*G15*$AE$13,0) -> 0 | AF15: =IF(OR((MOD(24-E15,D15)=0),E15=24),F15*G15*$AF$13,0) -> 0 | AG15: =IF(OR((MOD(25-E15,D15)=0),E15=25),F15*G15*$AG$13,0) -> 0 | AH15: =IF(OR((MOD(26-E15,D15)=0),E15=26),F15*G15*$AH$13,0) -> 0 | AI15: =IF(OR((MOD(27-E15,D15)=0),E15=27),F15*G15*$AI$13,0) -> 0 | AJ15: =IF(OR((MOD(28-E15,D15)=0),E15=28),F15*G15*$AJ$13,0) -> 0 | AK15: =IF(OR((MOD(29-E15,D15)=0),E15=29),F15*G15*$AK$13,0) -> 0 | AL15: =IF(OR((MOD(30-E15,D15)=0),E15=30),F15*G15*$AL$13,0) -> 0 | AM15: =IF(OR((MOD(31-E15,D15)=0),E15=31),F15*G15*$AM$13,0) -> 0 | AN15: =IF(OR((MOD(32-E15,D15)=0),E15=32),F15*G15*$AN$13,0) -> 0 | AO15: =IF(OR((MOD(33-E15,D15)=0),E15=33),F15*G15*$AO$13,0) -> 0 | AP15: =IF(OR((MOD(34-E15,D15)=0),E15=34),F15*G15*$AP$13,0) -> 0 | AQ15: =IF(OR((MOD(35-E15,D15)=0),E15=35),F15*G15*$AQ$13,0) -> 0 | AR15: =IF(OR((MOD(36-E15,D15)=0),E15=36),F15*G15*$AR$13,0) -> 0 | AS15: =IF(OR((MOD(37-E15,D15)=0),E15=37),F15*G15*$AS$13,0) -> 0 | AT15: =IF(OR((MOD(38-E15,D15)=0),E15=38),F15*G15*$AT$13,0) -> 0 | AU15: =IF(OR((MOD(39-E15,D15)=0),E15=39),F15*G15*$AU$13,0) -> 0 | AV15: =IF(OR((MOD(40-E15,D15)=0),E15=40),F15*G15*$AV$13,0) -> 0 | AW15: =SUM(I15:AV15) -> 0 | BV15: 0.03 | BX15: 1.03 | BY15: 1.0609 | BZ15: 1.092727 | CA15: 1.12550881 | CB15: 1.159274074 | CC15: 1.194052297 | CD15: 1.229873865 | CE15: 1.266770081 | CF15: 1.304773184 | CG15: 1.343916379 | CH15: 1.384233871 | CI15: 1.425760887 | CJ15: 1.468533713 | CK15: 1.512589725 | CL15: 1.557967417 | CM15: 1.604706439 | CN15: 1.652847632 | CO15: 1.702433061 | CP15: 1.753506053 | CQ15: 1.806111235 | CR15: 1.860294572 | CS15: 1.916103409 | CT15: 1.973586511 | CU15: 2.032794106 | CV15: 2.09377793 | CW15: 2.156591268 | CX15: 2.221289006 | CY15: 2.287927676 | CZ15: 2.356565506 | DA15: 2.427262471 | DB15: 2.500080345 | DC15: 2.575082756 | DD15: 2.652335238 | DE15: 2.731905296 | DF15: 2.813862454 | DG15: 2.898278328 | DH15: 2.985226678 | DI15: 3.074783478 | DJ15: 3.167026983 | DK15: 3.262037792
C16: Parking lot repairs 7500 S.F. | D16: 5 | E16: 3 | F16: 1 | G16: 1128 | H16: =IF(E16>0,0,(F16*G16)) -> 0 | I16: =IF(OR((MOD(1-E16,D16)=0),E16=1),F16*G16*$I$13,0) -> 0 | J16: =IF(OR((MOD(2-E16,D16)=0),E16=2),F16*G16*$J$13,0) -> 0 | K16: =IF(OR((MOD(3-E16,D16)=0),E16=3),F16*G16*$K$13,0) -> 1232.596056 | L16: =IF(OR((MOD(4-E16,D16)=0),E16=4),F16*G16*$L$13,0) -> 0 | M16: =IF(OR((MOD(5-E16,D16)=0),E16=5),F16*G16*$M$13,0) -> 0 | N16: =IF(OR((MOD(6-E16,D16)=0),E16=6),F16*G16*$N$13,0) -> 0 | O16: =IF(OR((MOD(7-E16,D16)=0),E16=7),F16*G16*$O$13,0) -> 0 | P16: =IF(OR((MOD(8-E16,D16)=0),E16=8),F16*G16*$P$13,0) -> 1428.916652 | Q16: =IF(OR((MOD(9-E16,D16)=0),E16=9),F16*G16*$Q$13,0) -> 0 | R16: =IF(OR((MOD(10-E16,D16)=0),E16=10),F16*G16*$R$13,0) -> 0 | S16: =IF(OR((MOD(11-E16,D16)=0),E16=11),F16*G16*$S$13,0) -> 0 | T16: =IF(OR((MOD(12-E16,D16)=0),E16=12),F16*G16*$T$13,0) -> 0 | U16: =IF(OR((MOD(13-E16,D16)=0),E16=13),F16*G16*$U$13,0) -> 1656.506029 | V16: =IF(OR((MOD(14-E16,D16)=0),E16=14),F16*G16*$V$13,0) -> 0 | W16: =IF(OR((MOD(15-E16,D16)=0),E16=15),F16*G16*$W$13,0) -> 0 | X16: =IF(OR((MOD(16-E16,D16)=0),E16=16),F16*G16*$X$13,0) -> 0 | Y16: =IF(OR((MOD(17-E16,D16)=0),E16=17),F16*G16*$Y$13,0) -> 0 | Z16: =IF(OR((MOD(18-E16,D16)=0),E16=18),F16*G16*$Z$13,0) -> 1920.344493 | AA16: =IF(OR((MOD(19-E16,D16)=0),E16=19),F16*G16*$AA$13,0) -> 0 | AB16: =IF(OR((MOD(20-E16,D16)=0),E16=20),F16*G16*$AB$13,0) -> 0 | AC16: =IF(OR((MOD(21-E16,D16)=0),E16=21),F16*G16*$AC$13,0) -> 0 | AD16: =IF(OR((MOD(22-E16,D16)=0),E16=22),F16*G16*$AD$13,0) -> 0 | AE16: =IF(OR((MOD(23-E16,D16)=0),E16=23),F16*G16*$AE$13,0) -> 2226.205585 | AF16: =IF(OR((MOD(24-E16,D16)=0),E16=24),F16*G16*$AF$13,0) -> 0 | AG16: =IF(OR((MOD(25-E16,D16)=0),E16=25),F16*G16*$AG$13,0) -> 0 | AH16: =IF(OR((MOD(26-E16,D16)=0),E16=26),F16*G16*$AH$13,0) -> 0 | AI16: =IF(OR((MOD(27-E16,D16)=0),E16=27),F16*G16*$AI$13,0) -> 0 | AJ16: =IF(OR((MOD(28-E16,D16)=0),E16=28),F16*G16*$AJ$13,0) -> 2580.782418 | AK16: =IF(OR((MOD(29-E16,D16)=0),E16=29),F16*G16*$AK$13,0) -> 0 | AL16: =IF(OR((MOD(30-E16,D16)=0),E16=30),F16*G16*$AL$13,0) -> 0 | AM16: =IF(OR((MOD(31-E16,D16)=0),E16=31),F16*G16*$AM$13,0) -> 0 | AN16: =IF(OR((MOD(32-E16,D16)=0),E16=32),F16*G16*$AN$13,0) -> 0 | AO16: =IF(OR((MOD(33-E16,D16)=0),E16=33),F16*G16*$AO$13,0) -> 2991.834149 | AP16: =IF(OR((MOD(34-E16,D16)=0),E16=34),F16*G16*$AP$13,0) -> 0 | AQ16: =IF(OR((MOD(35-E16,D16)=0),E16=35),F16*G16*$AQ$13,0) -> 0 | AR16: =IF(OR((MOD(36-E16,D16)=0),E16=36),F16*G16*$AR$13,0) -> 0 | AS16: =IF(OR((MOD(37-E16,D16)=0),E16=37),F16*G16*$AS$13,0) -> 0 | AT16: =IF(OR((MOD(38-E16,D16)=0),E16=38),F16*G16*$AT$13,0) -> 3468.355763 | AU16: =IF(OR((MOD(39-E16,D16)=0),E16=39),F16*G16*$AU$13,0) -> 0 | AV16: =IF(OR((MOD(40-E16,D16)=0),E16=40),F16*G16*$AV$13,0) -> 0 | AW16: =SUM(I16:AV16) -> 17505.54114 | BV16: 0.03 | BX16: 1.03 | BY16: 1.0609 | BZ16: 1.092727 | CA16: 1.12550881 | CB16: 1.159274074 | CC16: 1.194052297 | CD16: 1.229873865 | CE16: 1.266770081 | CF16: 1.304773184 | CG16: 1.343916379 | CH16: 1.384233871 | CI16: 1.425760887 | CJ16: 1.468533713 | CK16: 1.512589725 | CL16: 1.557967417 | CM16: 1.604706439 | CN16: 1.652847632 | CO16: 1.702433061 | CP16: 1.753506053 | CQ16: 1.806111235 | CR16: 1.860294572 | CS16: 1.916103409 | CT16: 1.973586511 | CU16: 2.032794106 | CV16: 2.09377793 | CW16: 2.156591268 | CX16: 2.221289006 | CY16: 2.287927676 | CZ16: 2.356565506 | DA16: 2.427262471 | DB16: 2.500080345 | DC16: 2.575082756 | DD16: 2.652335238 | DE16: 2.731905296 | DF16: 2.813862454 | DG16: 2.898278328 | DH16: 2.985226678 | DI16: 3.074783478 | DJ16: 3.167026983 | DK16: 3.262037792
C17: Re-stripe parking 24 Stalls | D17: 10 | F17: 1 | G17: 240 | H17: =IF(E17>0,0,(F17*G17)) -> 240 | I17: 0 | J17: 0 | K17: 0 | L17: 0 | M17: 0 | N17: 0 | O17: 0 | P17: 0 | Q17: 0 | R17: 322.539931 | S17: 0 | T17: 0 | U17: 0 | V17: 0 | W17: 0 | X17: 0 | Y17: 0 | Z17: 0 | AA17: 0 | AB17: 433.4666963 | AC17: 0 | AD17: 0 | AE17: 0 | AF17: 0 | AG17: 0 | AH17: 0 | AI17: 0 | AJ17: 0 | AK17: 0 | AL17: 582.5429931 | AM17: 0 | AN17: 0 | AO17: 0 | AP17: 0 | AQ17: 0 | AR17: 0 | AS17: 0 | AT17: 0 | AU17: 0 | AV17: 782.8890701 | AW17: 2121.438691 | BV17: 0.03 | BX17: 1.03 | BY17: 1.0609 | BZ17: 1.092727 | CA17: 1.12550881 | CB17: 1.159274074 | CC17: 1.194052297 | CD17: 1.229873865 | CE17: 1.266770081 | CF17: 1.304773184 | CG17: 1.343916379 | CH17: 1.384233871 | CI17: 1.425760887 | CJ17: 1.468533713 | CK17: 1.512589725 | CL17: 1.557967417 | CM17: 1.604706439 | CN17: 1.652847632 | CO17: 1.702433061 | CP17: 1.753506053 | CQ17: 1.806111235 | CR17: 1.860294572 | CS17: 1.916103409 | CT17: 1.973586511 | CU17: 2.032794106 | CV17: 2.09377793 | CW17: 2.156591268 | CX17: 2.221289006 | CY17: 2.287927676 | CZ17: 2.356565506 | DA17: 2.427262471 | DB17: 2.500080345 | DC17: 2.575082756 | DD17: 2.652335238 | DE17: 2.731905296 | DF17: 2.813862454 | DG17: 2.898278328 | DH17: 2.985226678 | DI17: 3.074783478 | DJ17: 3.167026983 | DK17: 3.262037792
C18: Repave parking lots 7500 S. F. | D18: 25 | F18: 1 | G18: 5640 | H18: 5640 | I18: 0 | J18: 0 | K18: 0 | L18: 0 | M18: 0 | N18: 0 | O18: 0 | P18: 0 | Q18: 0 | R18: 0 | S18: 0 | T18: 0 | U18: 0 | V18: 0 | W18: 0 | X18: 0 | Y18: 0 | Z18: 0 | AA18: 0 | AB18: 0 | AC18: 0 | AD18: 0 | AE18: 0 | AF18: 0 | AG18: 11808.90752 | AH18: 0 | AI18: 0 | AJ18: 0 | AK18: 0 | AL18: 0 | AM18: 0 | AN18: 0 | AO18: 0 | AP18: 0 | AQ18: 0 | AR18: 0 | AS18: 0 | AT18: 0 | AU18: 0 | AV18: 0 | AW18: 11808.90752 | BV18: 0.03 | BX18: 1.03 | BY18: 1.0609 | BZ18: 1.092727 | CA18: 1.12550881 | CB18: 1.159274074 | CC18: 1.194052297 | CD18: 1.229873865 | CE18: 1.266770081 | CF18: 1.304773184 | CG18: 1.343916379 | CH18: 1.384233871 | CI18: 1.425760887 | CJ18: 1.468533713 | CK18: 1.512589725 | CL18: 1.557967417 | CM18: 1.604706439 | CN18: 1.652847632 | CO18: 1.702433061 | CP18: 1.753506053 | CQ18: 1.806111235 | CR18: 1.860294572 | CS18: 1.916103409 | CT18: 1.973586511 | CU18: 2.032794106 | CV18: 2.09377793 | CW18: 2.156591268 | CX18: 2.221289006 | CY18: 2.287927676 | CZ18: 2.356565506 | DA18: 2.427262471 | DB18: 2.500080345 | DC18: 2.575082756 | DD18: 2.652335238 | DE18: 2.731905296 | DF18: 2.813862454 | DG18: 2.898278328 | DH18: 2.985226678 | DI18: 3.074783478 | DJ18: 3.167026983 | DK18: 3.262037792
C19: Handicap ramp maintenance | D19: 15 | F19: 2 | G19: 1500 | H19: 3000 | I19: 0 | J19: 0 | K19: 0 | L19: 0 | M19: 0 | N19: 0 | O19: 0 | P19: 0 | Q19: 0 | R19: 0 | S19: 0 | T19: 0 | U19: 0 | V19: 0 | W19: 4673.90225 | X19: 0 | Y19: 0 | Z19: 0 | AA19: 0 | AB19: 0 | AC19: 0 | AD19: 0 | AE19: 0 | AF19: 0 | AG19: 0 | AH19: 0 | AI19: 0 | AJ19: 0 | AK19: 0 | AL19: 7281.787414 | AM19: 0 | AN19: 0 | AO19: 0 | AP19: 0 | AQ19: 0 | AR19: 0 | AS19: 0 | AT19: 0 | AU19: 0 | AV19: 0 | AW19: 11955.68966 | BV19: 0.03 | BX19: 1.03 | BY19: 1.0609 | BZ19: 1.092727 | CA19: 1.12550881 | CB19: 1.159274074 | CC19: 1.194052297 | CD19: 1.229873865 | CE19: 1.266770081 | CF19: 1.304773184 | CG19: 1.343916379 | CH19: 1.384233871 | CI19: 1.425760887 | CJ19: 1.468533713 | CK19: 1.512589725 | CL19: 1.557967417 | CM19: 1.604706439 | CN19: 1.652847632 | CO19: 1.702433061 | CP19: 1.753506053 | CQ19: 1.806111235 | CR19: 1.860294572 | CS19: 1.916103409 | CT19: 1.973586511 | CU19: 2.032794106 | CV19: 2.09377793 | CW19: 2.156591268 | CX19: 2.221289006 | CY19: 2.287927676 | CZ19: 2.356565506 | DA19: 2.427262471 | DB19: 2.500080345 | DC19: 2.575082756 | DD19: 2.652335238 | DE19: 2.731905296 | DF19: 2.813862454 | DG19: 2.898278328 | DH19: 2.985226678 | DI19: 3.074783478 | DJ19: 3.167026983 | DK19: 3.262037792
C20: Replace 500 S.F. sidewalk | D20: 15 | F20: 1 | G20: 624 | H20: 624 | I20: 0 | J20: 0 | K20: 0 | L20: 0 | M20: 0 | N20: 0 | O20: 0 | P20: 0 | Q20: 0 | R20: 0 | S20: 0 | T20: 0 | U20: 0 | V20: 0 | W20: 972.171668 | X20: 0 | Y20: 0 | Z20: 0 | AA20: 0 | AB20: 0 | AC20: 0 | AD20: 0 | AE20: 0 | AF20: 0 | AG20: 0 | AH20: 0 | AI20: 0 | AJ20: 0 | AK20: 0 | AL20: 1514.611782 | AM20: 0 | AN20: 0 | AO20: 0 | AP20: 0 | AQ20: 0 | AR20: 0 | AS20: 0 | AT20: 0 | AU20: 0 | AV20: 0 | AW20: 2486.78345 | BV20: 0.03 | BX20: 1.03 | BY20: 1.0609 | BZ20: 1.092727 | CA20: 1.12550881 | CB20: 1.159274074 | CC20: 1.194052297 | CD20: 1.229873865 | CE20: 1.266770081 | CF20: 1.304773184 | CG20: 1.343916379 | CH20: 1.384233871 | CI20: 1.425760887 | CJ20: 1.468533713 | CK20: 1.512589725 | CL20: 1.557967417 | CM20: 1.604706439 | CN20: 1.652847632 | CO20: 1.702433061 | CP20: 1.753506053 | CQ20: 1.806111235 | CR20: 1.860294572 | CS20: 1.916103409 | CT20: 1.973586511 | CU20: 2.032794106 | CV20: 2.09377793 | CW20: 2.156591268 | CX20: 2.221289006 | CY20: 2.287927676 | CZ20: 2.356565506 | DA20: 2.427262471 | DB20: 2.500080345 | DC20: 2.575082756 | DD20: 2.652335238 | DE20: 2.731905296 | DF20: 2.813862454 | DG20: 2.898278328 | DH20: 2.985226678 | DI20: 3.074783478 | DJ20: 3.167026983 | DK20: 3.262037792
C21: Building signage | D21: 15 | F21: 1 | G21: 750 | H21: 750 | I21: 0 | J21: 0 | K21: 0 | L21: 0 | M21: 0 | N21: 0 | O21: 0 | P21: 0 | Q21: 0 | R21: 0 | S21: 0 | T21: 0 | U21: 0 | V21: 0 | W21: 1168.475562 | X21: 0 | Y21: 0 | Z21: 0 | AA21: 0 | AB21: 0 | AC21: 0 | AD21: 0 | AE21: 0 | AF21: 0 | AG21: 0 | AH21: 0 | AI21: 0 | AJ21: 0 | AK21: 0 | AL21: 1820.446853 | AM21: 0 | AN21: 0 | AO21: 0 | AP21: 0 | AQ21: 0 | AR21: 0 | AS21: 0 | AT21: 0 | AU21: 0 | AV21: 0 | AW21: 2988.922416 | BV21: 0.03 | BX21: 1.03 | BY21: 1.0609 | BZ21: 1.092727 | CA21: 1.12550881 | CB21: 1.159274074 | CC21: 1.194052297 | CD21: 1.229873865 | CE21: 1.266770081 | CF21: 1.304773184 | CG21: 1.343916379 | CH21: 1.384233871 | CI21: 1.425760887 | CJ21: 1.468533713 | CK21: 1.512589725 | CL21: 1.557967417 | CM21: 1.604706439 | CN21: 1.652847632 | CO21: 1.702433061 | CP21: 1.753506053 | CQ21: 1.806111235 | CR21: 1.860294572 | CS21: 1.916103409 | CT21: 1.973586511 | CU21: 2.032794106 | CV21: 2.09377793 | CW21: 2.156591268 | CX21: 2.221289006 | CY21: 2.287927676 | CZ21: 2.356565506 | DA21: 2.427262471 | DB21: 2.500080345 | DC21: 2.575082756 | DD21: 2.652335238 | DE21: 2.731905296 | DF21: 2.813862454 | DG21: 2.898278328 | DH21: 2.985226678 | DI21: 3.074783478 | DJ21: 3.167026983 | DK21: 3.262037792
C22: Handicap signage | D22: 15 | F22: 2 | G22: 100 | H22: 200 | I22: 0 | J22: 0 | K22: 0 | L22: 0 | M22: 0 | N22: 0 | O22: 0 | P22: 0 | Q22: 0 | R22: 0 | S22: 0 | T22: 0 | U22: 0 | V22: 0 | W22: 311.5934833 | X22: 0 | Y22: 0 | Z22: 0 | AA22: 0 | AB22: 0 | AC22: 0 | AD22: 0 | AE22: 0 | AF22: 0 | AG22: 0 | AH22: 0 | AI22: 0 | AJ22: 0 | AK22: 0 | AL22: 485.4524942 | AM22: 0 | AN22: 0 | AO22: 0 | AP22: 0 | AQ22: 0 | AR22: 0 | AS22: 0 | AT22: 0 | AU22: 0 | AV22: 0 | AW22: 797.0459776 | BV22: 0.03 | BX22: 1.03 | BY22: 1.0609 | BZ22: 1.092727 | CA22: 1.12550881 | CB22: 1.159274074 | CC22: 1.194052297 | CD22: 1.229873865 | CE22: 1.266770081 | CF22: 1.304773184 | CG22: 1.343916379 | CH22: 1.384233871 | CI22: 1.425760887 | CJ22: 1.468533713 | CK22: 1.512589725 | CL22: 1.557967417 | CM22: 1.604706439 | CN22: 1.652847632 | CO22: 1.702433061 | CP22: 1.753506053 | CQ22: 1.806111235 | CR22: 1.860294572 | CS22: 1.916103409 | CT22: 1.973586511 | CU22: 2.032794106 | CV22: 2.09377793 | CW22: 2.156591268 | CX22: 2.221289006 | CY22: 2.287927676 | CZ22: 2.356565506 | DA22: 2.427262471 | DB22: 2.500080345 | DC22: 2.575082756 | DD22: 2.652335238 | DE22: 2.731905296 | DF22: 2.813862454 | DG22: 2.898278328 | DH22: 2.985226678 | DI22: 3.074783478 | DJ22: 3.167026983 | DK22: 3.262037792
C23: Dumpster Enclosure 1000 L.F. | D23: 15 | F23: 1 | G23: 12000 | H23: 12000 | I23: 0 | J23: 0 | K23: 0 | L23: 0 | M23: 0 | N23: 0 | O23: 0 | P23: 0 | Q23: 0 | R23: 0 | S23: 0 | T23: 0 | U23: 0 | V23: 0 | W23: 18695.609 | X23: 0 | Y23: 0 | Z23: 0 | AA23: 0 | AB23: 0 | AC23: 0 | AD23: 0 | AE23: 0 | AF23: 0 | AG23: 0 | AH23: 0 | AI23: 0 | AJ23: 0 | AK23: 0 | AL23: 29127.14965 | AM23: 0 | AN23: 0 | AO23: 0 | AP23: 0 | AQ23: 0 | AR23: 0 | AS23: 0 | AT23: 0 | AU23: 0 | AV23: 0 | AW23: 47822.75865 | BV23: 0.03 | BX23: 1.03 | BY23: 1.0609 | BZ23: 1.092727 | CA23: 1.12550881 | CB23: 1.159274074 | CC23: 1.194052297 | CD23: 1.229873865 | CE23: 1.266770081 | CF23: 1.304773184 | CG23: 1.343916379 | CH23: 1.384233871 | CI23: 1.425760887 | CJ23: 1.468533713 | CK23: 1.512589725 | CL23: 1.557967417 | CM23: 1.604706439 | CN23: 1.652847632 | CO23: 1.702433061 | CP23: 1.753506053 | CQ23: 1.806111235 | CR23: 1.860294572 | CS23: 1.916103409 | CT23: 1.973586511 | CU23: 2.032794106 | CV23: 2.09377793 | CW23: 2.156591268 | CX23: 2.221289006 | CY23: 2.287927676 | CZ23: 2.356565506 | DA23: 2.427262471 | DB23: 2.500080345 | DC23: 2.575082756 | DD23: 2.652335238 | DE23: 2.731905296 | DF23: 2.813862454 | DG23: 2.898278328 | DH23: 2.985226678 | DI23: 3.074783478 | DJ23: 3.167026983 | DK23: 3.262037792
C24: Dumpster Pad 225 S. F. | D24: 20 | F24: 1 | G24: 912 | H24: 912 | I24: 0 | J24: 0 | K24: 0 | L24: 0 | M24: 0 | N24: 0 | O24: 0 | P24: 0 | Q24: 0 | R24: 0 | S24: 0 | T24: 0 | U24: 0 | V24: 0 | W24: 0 | X24: 0 | Y24: 0 | Z24: 0 | AA24: 0 | AB24: 1647.173446 | AC24: 0 | AD24: 0 | AE24: 0 | AF24: 0 | AG24: 0 | AH24: 0 | AI24: 0 | AJ24: 0 | AK24: 0 | AL24: 0 | AM24: 0 | AN24: 0 | AO24: 0 | AP24: 0 | AQ24: 0 | AR24: 0 | AS24: 0 | AT24: 0 | AU24: 0 | AV24: 2974.978466 | AW24: 4622.151912 | BV24: 0.03 | BX24: 1.03 | BY24: 1.0609 | BZ24: 1.092727 | CA24: 1.12550881 | CB24: 1.159274074 | CC24: 1.194052297 | CD24: 1.229873865 | CE24: 1.266770081 | CF24: 1.304773184 | CG24: 1.343916379 | CH24: 1.384233871 | CI24: 1.425760887 | CJ24: 1.468533713 | CK24: 1.512589725 | CL24: 1.557967417 | CM24: 1.604706439 | CN24: 1.652847632 | CO24: 1.702433061 | CP24: 1.753506053 | CQ24: 1.806111235 | CR24: 1.860294572 | CS24: 1.916103409 | CT24: 1.973586511 | CU24: 2.032794106 | CV24: 2.09377793 | CW24: 2.156591268 | CX24: 2.221289006 | CY24: 2.287927676 | CZ24: 2.356565506 | DA24: 2.427262471 | DB24: 2.500080345 | DC24: 2.575082756 | DD24: 2.652335238 | DE24: 2.731905296 | DF24: 2.813862454 | DG24: 2.898278328 | DH24: 2.985226678 | DI24: 3.074783478 | DJ24: 3.167026983 | DK24: 3.262037792
C25: Other | D25: 30 | F25: 0 | G25: 0 | H25: 0 | I25: 0 | J25: 0 | K25: 0 | L25: 0 | M25: 0 | N25: 0 | O25: 0 | P25: 0 | Q25: 0 | R25: 0 | S25: 0 | T25: 0 | U25: 0 | V25: 0 | W25: 0 | X25: 0 | Y25: 0 | Z25: 0 | AA25: 0 | AB25: 0 | AC25: 0 | AD25: 0 | AE25: 0 | AF25: 0 | AG25: 0 | AH25: 0 | AI25: 0 | AJ25: 0 | AK25: 0 | AL25: 0 | AM25: 0 | AN25: 0 | AO25: 0 | AP25: 0 | AQ25: 0 | AR25: 0 | AS25: 0 | AT25: 0 | AU25: 0 | AV25: 0 | AW25: 0 | BV25: 0.03 | BX25: 1.03 | BY25: 1.0609 | BZ25: 1.092727 | CA25: 1.12550881 | CB25: 1.159274074 | CC25: 1.194052297 | CD25: 1.229873865 | CE25: 1.266770081 | CF25: 1.304773184 | CG25: 1.343916379 | CH25: 1.384233871 | CI25: 1.425760887 | CJ25: 1.468533713 | CK25: 1.512589725 | CL25: 1.557967417 | CM25: 1.604706439 | CN25: 1.652847632 | CO25: 1.702433061 | CP25: 1.753506053 | CQ25: 1.806111235 | CR25: 1.860294572 | CS25: 1.916103409 | CT25: 1.973586511 | CU25: 2.032794106 | CV25: 2.09377793 | CW25: 2.156591268 | CX25: 2.221289006 | CY25: 2.287927676 | CZ25: 2.356565506 | DA25: 2.427262471 | DB25: 2.500080345 | DC25: 2.575082756 | DD25: 2.652335238 | DE25: 2.731905296 | DF25: 2.813862454 | DG25: 2.898278328 | DH25: 2.985226678 | DI25: 3.074783478 | DJ25: 3.167026983 | DK25: 3.262037792
B26: Exterior Building Elements | BV26: 0.03 | BX26: 1.03 | BY26: 1.0609 | BZ26: 1.092727 | CA26: 1.12550881 | CB26: 1.159274074 | CC26: 1.194052297 | CD26: 1.229873865 | CE26: 1.266770081 | CF26: 1.304773184 | CG26: 1.343916379 | CH26: 1.384233871 | CI26: 1.425760887 | CJ26: 1.468533713 | CK26: 1.512589725 | CL26: 1.557967417 | CM26: 1.604706439 | CN26: 1.652847632 | CO26: 1.702433061 | CP26: 1.753506053 | CQ26: 1.806111235 | CR26: 1.860294572 | CS26: 1.916103409 | CT26: 1.973586511 | CU26: 2.032794106 | CV26: 2.09377793 | CW26: 2.156591268 | CX26: 2.221289006 | CY26: 2.287927676 | CZ26: 2.356565506 | DA26: 2.427262471 | DB26: 2.500080345 | DC26: 2.575082756 | DD26: 2.652335238 | DE26: 2.731905296 | DF26: 2.813862454 | DG26: 2.898278328 | DH26: 2.985226678 | DI26: 3.074783478 | DJ26: 3.167026983 | DK26: 3.262037792
C27: Hardie Plank 11,575 S.F. | D27: 20 | F27: 1 | G27: 115752 | H27: =IF(E27>0,0,(F27*G27)) -> 115752 | I27: =IF(OR((MOD(1-E27,D27)=0),E27=1),F27*G27*$I$13,0) -> 0 | J27: =IF(OR((MOD(2-E27,D27)=0),E27=2),F27*G27*$J$13,0) -> 0 | K27: =IF(OR((MOD(3-E27,D27)=0),E27=3),F27*G27*$K$13,0) -> 0 | L27: =IF(OR((MOD(4-E27,D27)=0),E27=4),F27*G27*$L$13,0) -> 0 | M27: =IF(OR((MOD(5-E27,D27)=0),E27=5),F27*G27*$M$13,0) -> 0 | N27: =IF(OR((MOD(6-E27,D27)=0),E27=6),F27*G27*$N$13,0) -> 0 | O27: =IF(OR((MOD(7-E27,D27)=0),E27=7),F27*G27*$O$13,0) -> 0 | P27: =IF(OR((MOD(8-E27,D27)=0),E27=8),F27*G27*$P$13,0) -> 0 | Q27: =IF(OR((MOD(9-E27,D27)=0),E27=9),F27*G27*$Q$13,0) -> 0 | R27: =IF(OR((MOD(10-E27,D27)=0),E27=10),F27*G27*$R$13,0) -> 0 | S27: =IF(OR((MOD(11-E27,D27)=0),E27=11),F27*G27*$S$13,0) -> 0 | T27: =IF(OR((MOD(12-E27,D27)=0),E27=12),F27*G27*$T$13,0) -> 0 | U27: =IF(OR((MOD(13-E27,D27)=0),E27=13),F27*G27*$U$13,0) -> 0 | V27: =IF(OR((MOD(14-E27,D27)=0),E27=14),F27*G27*$V$13,0) -> 0 | W27: =IF(OR((MOD(15-E27,D27)=0),E27=15),F27*G27*$W$13,0) -> 0 | X27: =IF(OR((MOD(16-E27,D27)=0),E27=16),F27*G27*$X$13,0) -> 0 | Y27: =IF(OR((MOD(17-E27,D27)=0),E27=17),F27*G27*$Y$13,0) -> 0 | Z27: =IF(OR((MOD(18-E27,D27)=0),E27=18),F27*G27*$Z$13,0) -> 0 | AA27: =IF(OR((MOD(19-E27,D27)=0),E27=19),F27*G27*$AA$13,0) -> 0 | AB27: =IF(OR((MOD(20-E27,D27)=0),E27=20),F27*G27*$AB$13,0) -> 209060.9876 | AC27: =IF(OR((MOD(21-E27,D27)=0),E27=21),F27*G27*$AC$13,0) -> 0 | AD27: =IF(OR((MOD(22-E27,D27)=0),E27=22),F27*G27*$AD$13,0) -> 0 | AE27: =IF(OR((MOD(23-E27,D27)=0),E27=23),F27*G27*$AE$13,0) -> 0 | AF27: =IF(OR((MOD(24-E27,D27)=0),E27=24),F27*G27*$AF$13,0) -> 0 | AG27: =IF(OR((MOD(25-E27,D27)=0),E27=25),F27*G27*$AG$13,0) -> 0 | AH27: =IF(OR((MOD(26-E27,D27)=0),E27=26),F27*G27*$AH$13,0) -> 0 | AI27: =IF(OR((MOD(27-E27,D27)=0),E27=27),F27*G27*$AI$13,0) -> 0 | AJ27: =IF(OR((MOD(28-E27,D27)=0),E27=28),F27*G27*$AJ$13,0) -> 0 | AK27: =IF(OR((MOD(29-E27,D27)=0),E27=29),F27*G27*$AK$13,0) -> 0 | AL27: =IF(OR((MOD(30-E27,D27)=0),E27=30),F27*G27*$AL$13,0) -> 0 | AM27: =IF(OR((MOD(31-E27,D27)=0),E27=31),F27*G27*$AM$13,0) -> 0 | AN27: =IF(OR((MOD(32-E27,D27)=0),E27=32),F27*G27*$AN$13,0) -> 0 | AO27: =IF(OR((MOD(33-E27,D27)=0),E27=33),F27*G27*$AO$13,0) -> 0 | AP27: =IF(OR((MOD(34-E27,D27)=0),E27=34),F27*G27*$AP$13,0) -> 0 | AQ27: =IF(OR((MOD(35-E27,D27)=0),E27=35),F27*G27*$AQ$13,0) -> 0 | AR27: =IF(OR((MOD(36-E27,D27)=0),E27=36),F27*G27*$AR$13,0) -> 0 | AS27: =IF(OR((MOD(37-E27,D27)=0),E27=37),F27*G27*$AS$13,0) -> 0 | AT27: =IF(OR((MOD(38-E27,D27)=0),E27=38),F27*G27*$AT$13,0) -> 0 | AU27: =IF(OR((MOD(39-E27,D27)=0),E27=39),F27*G27*$AU$13,0) -> 0 | AV27: =IF(OR((MOD(40-E27,D27)=0),E27=40),F27*G27*$AV$13,0) -> 377587.3985 | AW27: =SUM(I27:AV27) -> 586648.3861 | BV27: 0.03 | BX27: 1.03 | BY27: 1.0609 | BZ27: 1.092727 | CA27: 1.12550881 | CB27: 1.159274074 | CC27: 1.194052297 | CD27: 1.229873865 | CE27: 1.266770081 | CF27: 1.304773184 | CG27: 1.343916379 | CH27: 1.384233871 | CI27: 1.425760887 | CJ27: 1.468533713 | CK27: 1.512589725 | CL27: 1.557967417 | CM27: 1.604706439 | CN27: 1.652847632 | CO27: 1.702433061 | CP27: 1.753506053 | CQ27: 1.806111235 | CR27: 1.860294572 | CS27: 1.916103409 | CT27: 1.973586511 | CU27: 2.032794106 | CV27: 2.09377793 | CW27: 2.156591268 | CX27: 2.221289006 | CY27: 2.287927676 | CZ27: 2.356565506 | DA27: 2.427262471 | DB27: 2.500080345 | DC27: 2.575082756 | DD27: 2.652335238 | DE27: 2.731905296 | DF27: 2.813862454 | DG27: 2.898278328 | DH27: 2.985226678 | DI27: 3.074783478 | DJ27: 3.167026983 | DK27: 3.262037792
C28: Soffits 800 S.F. | D28: 15 | F28: 1 | G28: 3840 | H28: 3840 | I28: 0 | J28: 0 | K28: 0 | L28: 0 | M28: 0 | N28: 0 | O28: 0 | P28: 0 | Q28: 0 | R28: 0 | S28: 0 | T28: 0 | U28: 0 | V28: 0 | W28: 5982.59488 | X28: 0 | Y28: 0 | Z28: 0 | AA28: 0 | AB28: 0 | AC28: 0 | AD28: 0 | AE28: 0 | AF28: 0 | AG28: 0 | AH28: 0 | AI28: 0 | AJ28: 0 | AK28: 0 | AL28: 9320.687889 | AM28: 0 | AN28: 0 | AO28: 0 | AP28: 0 | AQ28: 0 | AR28: 0 | AS28: 0 | AT28: 0 | AU28: 0 | AV28: 0 | AW28: 15303.28277 | BV28: 0.03 | BX28: 1.03 | BY28: 1.0609 | BZ28: 1.092727 | CA28: 1.12550881 | CB28: 1.159274074 | CC28: 1.194052297 | CD28: 1.229873865 | CE28: 1.266770081 | CF28: 1.304773184 | CG28: 1.343916379 | CH28: 1.384233871 | CI28: 1.425760887 | CJ28: 1.468533713 | CK28: 1.512589725 | CL28: 1.557967417 | CM28: 1.604706439 | CN28: 1.652847632 | CO28: 1.702433061 | CP28: 1.753506053 | CQ28: 1.806111235 | CR28: 1.860294572 | CS28: 1.916103409 | CT28: 1.973586511 | CU28: 2.032794106 | CV28: 2.09377793 | CW28: 2.156591268 | CX28: 2.221289006 | CY28: 2.287927676 | CZ28: 2.356565506 | DA28: 2.427262471 | DB28: 2.500080345 | DC28: 2.575082756 | DD28: 2.652335238 | DE28: 2.731905296 | DF28: 2.813862454 | DG28: 2.898278328 | DH28: 2.985226678 | DI28: 3.074783478 | DJ28: 3.167026983 | DK28: 3.262037792
C29: Breezeway 1100 S.F. | D29: 20 | F29: 1 | G29: 10992 | H29: 10992 | I29: 0 | J29: 0 | K29: 0 | L29: 0 | M29: 0 | N29: 0 | O29: 0 | P29: 0 | Q29: 0 | R29: 0 | S29: 0 | T29: 0 | U29: 0 | V29: 0 | W29: 0 | X29: 0 | Y29: 0 | Z29: 0 | AA29: 0 | AB29: 19852.77469 | AC29: 0 | AD29: 0 | AE29: 0 | AF29: 0 | AG29: 0 | AH29: 0 | AI29: 0 | AJ29: 0 | AK29: 0 | AL29: 0 | AM29: 0 | AN29: 0 | AO29: 0 | AP29: 0 | AQ29: 0 | AR29: 0 | AS29: 0 | AT29: 0 | AU29: 0 | AV29: 35856.31941 | AW29: 55709.0941 | BV29: 0.03 | BX29: 1.03 | BY29: 1.0609 | BZ29: 1.092727 | CA29: 1.12550881 | CB29: 1.159274074 | CC29: 1.194052297 | CD29: 1.229873865 | CE29: 1.266770081 | CF29: 1.304773184 | CG29: 1.343916379 | CH29: 1.384233871 | CI29: 1.425760887 | CJ29: 1.468533713 | CK29: 1.512589725 | CL29: 1.557967417 | CM29: 1.604706439 | CN29: 1.652847632 | CO29: 1.702433061 | CP29: 1.753506053 | CQ29: 1.806111235 | CR29: 1.860294572 | CS29: 1.916103409 | CT29: 1.973586511 | CU29: 2.032794106 | CV29: 2.09377793 | CW29: 2.156591268 | CX29: 2.221289006 | CY29: 2.287927676 | CZ29: 2.356565506 | DA29: 2.427262471 | DB29: 2.500080345 | DC29: 2.575082756 | DD29: 2.652335238 | DE29: 2.731905296 | DF29: 2.813862454 | DG29: 2.898278328 | DH29: 2.985226678 | DI29: 3.074783478 | DJ29: 3.167026983 | DK29: 3.262037792
C30: Exterior Painting | D30: 5 | F30: 1 | G30: 12000 | H30: 12000 | I30: 0 | J30: 0 | K30: 0 | L30: 0 | M30: 13911.28889 | N30: 0 | O30: 0 | P30: 0 | Q30: 0 | R30: 16126.99655 | S30: 0 | T30: 0 | U30: 0 | V30: 0 | W30: 18695.609 | X30: 0 | Y30: 0 | Z30: 0 | AA30: 0 | AB30: 21673.33482 | AC30: 0 | AD30: 0 | AE30: 0 | AF30: 0 | AG30: 25125.33516 | AH30: 0 | AI30: 0 | AJ30: 0 | AK30: 0 | AL30: 29127.14965 | AM30: 0 | AN30: 0 | AO30: 0 | AP30: 0 | AQ30: 33766.34945 | AR30: 0 | AS30: 0 | AT30: 0 | AU30: 0 | AV30: 39144.4535 | AW30: 197570.517 | BV30: 0.03 | BX30: 1.03 | BY30: 1.0609 | BZ30: 1.092727 | CA30: 1.12550881 | CB30: 1.159274074 | CC30: 1.194052297 | CD30: 1.229873865 | CE30: 1.266770081 | CF30: 1.304773184 | CG30: 1.343916379 | CH30: 1.384233871 | CI30: 1.425760887 | CJ30: 1.468533713 | CK30: 1.512589725 | CL30: 1.557967417 | CM30: 1.604706439 | CN30: 1.652847632 | CO30: 1.702433061 | CP30: 1.753506053 | CQ30: 1.806111235 | CR30: 1.860294572 | CS30: 1.916103409 | CT30: 1.973586511 | CU30: 2.032794106 | CV30: 2.09377793 | CW30: 2.156591268 | CX30: 2.221289006 | CY30: 2.287927676 | CZ30: 2.356565506 | DA30: 2.427262471 | DB30: 2.500080345 | DC30: 2.575082756 | DD30: 2.652335238 | DE30: 2.731905296 | DF30: 2.813862454 | DG30: 2.898278328 | DH30: 2.985226678 | DI30: 3.074783478 | DJ30: 3.167026983 | DK30: 3.262037792
C31: Roof replacement 9600 S.F. | D31: 20 | F31: 2 | G31: 9120 | H31: 18240 | I31: 0 | J31: 0 | K31: 0 | L31: 0 | M31: 0 | N31: 0 | O31: 0 | P31: 0 | Q31: 0 | R31: 0 | S31: 0 | T31: 0 | U31: 0 | V31: 0 | W31: 0 | X31: 0 | Y31: 0 | Z31: 0 | AA31: 0 | AB31: 32943.46892 | AC31: 0 | AD31: 0 | AE31: 0 | AF31: 0 | AG31: 0 | AH31: 0 | AI31: 0 | AJ31: 0 | AK31: 0 | AL31: 0 | AM31: 0 | AN31: 0 | AO31: 0 | AP31: 0 | AQ31: 0 | AR31: 0 | AS31: 0 | AT31: 0 | AU31: 0 | AV31: 59499.56933 | AW31: 92443.03825 | BV31: 0.03 | BX31: 1.03 | BY31: 1.0609 | BZ31: 1.092727 | CA31: 1.12550881 | CB31: 1.159274074 | CC31: 1.194052297 | CD31: 1.229873865 | CE31: 1.266770081 | CF31: 1.304773184 | CG31: 1.343916379 | CH31: 1.384233871 | CI31: 1.425760887 | CJ31: 1.468533713 | CK31: 1.512589725 | CL31: 1.557967417 | CM31: 1.604706439 | CN31: 1.652847632 | CO31: 1.702433061 | CP31: 1.753506053 | CQ31: 1.806111235 | CR31: 1.860294572 | CS31: 1.916103409 | CT31: 1.973586511 | CU31: 2.032794106 | CV31: 2.09377793 | CW31: 2.156591268 | CX31: 2.221289006 | CY31: 2.287927676 | CZ31: 2.356565506 | DA31: 2.427262471 | DB31: 2.500080345 | DC31: 2.575082756 | DD31: 2.652335238 | DE31: 2.731905296 | DF31: 2.813862454 | DG31: 2.898278328 | DH31: 2.985226678 | DI31: 3.074783478 | DJ31: 3.167026983 | DK31: 3.262037792
C32: Refurbish stairs | D32: 15 | F32: 2 | G32: 6000 | H32: 12000 | I32: 0 | J32: 0 | K32: 0 | L32: 0 | M32: 0 | N32: 0 | O32: 0 | P32: 0 | Q32: 0 | R32: 0 | S32: 0 | T32: 0 | U32: 0 | V32: 0 | W32: 18695.609 | X32: 0 | Y32: 0 | Z32: 0 | AA32: 0 | AB32: 0 | AC32: 0 | AD32: 0 | AE32: 0 | AF32: 0 | AG32: 0 | AH32: 0 | AI32: 0 | AJ32: 0 | AK32: 0 | AL32: 29127.14965 | AM32: 0 | AN32: 0 | AO32: 0 | AP32: 0 | AQ32: 0 | AR32: 0 | AS32: 0 | AT32: 0 | AU32: 0 | AV32: 0 | AW32: 47822.75865 | BV32: 0.03 | BX32: 1.03 | BY32: 1.0609 | BZ32: 1.092727 | CA32: 1.12550881 | CB32: 1.159274074 | CC32: 1.194052297 | CD32: 1.229873865 | CE32: 1.266770081 | CF32: 1.304773184 | CG32: 1.343916379 | CH32: 1.384233871 | CI32: 1.425760887 | CJ32: 1.468533713 | CK32: 1.512589725 | CL32: 1.557967417 | CM32: 1.604706439 | CN32: 1.652847632 | CO32: 1.702433061 | CP32: 1.753506053 | CQ32: 1.806111235 | CR32: 1.860294572 | CS32: 1.916103409 | CT32: 1.973586511 | CU32: 2.032794106 | CV32: 2.09377793 | CW32: 2.156591268 | CX32: 2.221289006 | CY32: 2.287927676 | CZ32: 2.356565506 | DA32: 2.427262471 | DB32: 2.500080345 | DC32: 2.575082756 | DD32: 2.652335238 | DE32: 2.731905296 | DF32: 2.813862454 | DG32: 2.898278328 | DH32: 2.985226678 | DI32: 3.074783478 | DJ32: 3.167026983 | DK32: 3.262037792
C33: Replace stairs | D33: 30 | F33: 2 | G33: 12000 | H33: 24000 | I33: 0 | J33: 0 | K33: 0 | L33: 0 | M33: 0 | N33: 0 | O33: 0 | P33: 0 | Q33: 0 | R33: 0 | S33: 0 | T33: 0 | U33: 0 | V33: 0 | W33: 0 | X33: 0 | Y33: 0 | Z33: 0 | AA33: 0 | AB33: 0 | AC33: 0 | AD33: 0 | AE33: 0 | AF33: 0 | AG33: 0 | AH33: 0 | AI33: 0 | AJ33: 0 | AK33: 0 | AL33: 58254.29931 | AM33: 0 | AN33: 0 | AO33: 0 | AP33: 0 | AQ33: 0 | AR33: 0 | AS33: 0 | AT33: 0 | AU33: 0 | AV33: 0 | AW33: 58254.29931 | BV33: 0.03 | BX33: 1.03 | BY33: 1.0609 | BZ33: 1.092727 | CA33: 1.12550881 | CB33: 1.159274074 | CC33: 1.194052297 | CD33: 1.229873865 | CE33: 1.266770081 | CF33: 1.304773184 | CG33: 1.343916379 | CH33: 1.384233871 | CI33: 1.425760887 | CJ33: 1.468533713 | CK33: 1.512589725 | CL33: 1.557967417 | CM33: 1.604706439 | CN33: 1.652847632 | CO33: 1.702433061 | CP33: 1.753506053 | CQ33: 1.806111235 | CR33: 1.860294572 | CS33: 1.916103409 | CT33: 1.973586511 | CU33: 2.032794106 | CV33: 2.09377793 | CW33: 2.156591268 | CX33: 2.221289006 | CY33: 2.287927676 | CZ33: 2.356565506 | DA33: 2.427262471 | DB33: 2.500080345 | DC33: 2.575082756 | DD33: 2.652335238 | DE33: 2.731905296 | DF33: 2.813862454 | DG33: 2.898278328 | DH33: 2.985226678 | DI33: 3.074783478 | DJ33: 3.167026983 | DK33: 3.262037792
C34: Awning | D34: 10 | F34: 4 | G34: 4200 | H34: 16800 | I34: 0 | J34: 0 | K34: 0 | L34: 0 | M34: 0 | N34: 0 | O34: 0 | P34: 0 | Q34: 0 | R34: 22577.79517 | S34: 0 | T34: 0 | U34: 0 | V34: 0 | W34: 0 | X34: 0 | Y34: 0 | Z34: 0 | AA34: 0 | AB34: 30342.66874 | AC34: 0 | AD34: 0 | AE34: 0 | AF34: 0 | AG34: 0 | AH34: 0 | AI34: 0 | AJ34: 0 | AK34: 0 | AL34: 40778.00952 | AM34: 0 | AN34: 0 | AO34: 0 | AP34: 0 | AQ34: 0 | AR34: 0 | AS34: 0 | AT34: 0 | AU34: 0 | AV34: 54802.23491 | AW34: 148500.7083 | BV34: 0.03 | BX34: 1.03 | BY34: 1.0609 | BZ34: 1.092727 | CA34: 1.12550881 | CB34: 1.159274074 | CC34: 1.194052297 | CD34: 1.229873865 | CE34: 1.266770081 | CF34: 1.304773184 | CG34: 1.343916379 | CH34: 1.384233871 | CI34: 1.425760887 | CJ34: 1.468533713 | CK34: 1.512589725 | CL34: 1.557967417 | CM34: 1.604706439 | CN34: 1.652847632 | CO34: 1.702433061 | CP34: 1.753506053 | CQ34: 1.806111235 | CR34: 1.860294572 | CS34: 1.916103409 | CT34: 1.973586511 | CU34: 2.032794106 | CV34: 2.09377793 | CW34: 2.156591268 | CX34: 2.221289006 | CY34: 2.287927676 | CZ34: 2.356565506 | DA34: 2.427262471 | DB34: 2.500080345 | DC34: 2.575082756 | DD34: 2.652335238 | DE34: 2.731905296 | DF34: 2.813862454 | DG34: 2.898278328 | DH34: 2.985226678 | DI34: 3.074783478 | DJ34: 3.167026983 | DK34: 3.262037792
C35: Exterior doors | D35: 15 | F35: 48 | G35: 175 | H35: 8400 | I35: 0 | J35: 0 | K35: 0 | L35: 0 | M35: 0 | N35: 0 | O35: 0 | P35: 0 | Q35: 0 | R35: 0 | S35: 0 | T35: 0 | U35: 0 | V35: 0 | W35: 13086.9263 | X35: 0 | Y35: 0 | Z35: 0 | AA35: 0 | AB35: 0 | AC35: 0 | AD35: 0 | AE35: 0 | AF35: 0 | AG35: 0 | AH35: 0 | AI35: 0 | AJ35: 0 | AK35: 0 | AL35: 20389.00476 | AM35: 0 | AN35: 0 | AO35: 0 | AP35: 0 | AQ35: 0 | AR35: 0 | AS35: 0 | AT35: 0 | AU35: 0 | AV35: 0 | AW35: 33475.93106 | BV35: 0.03 | BX35: 1.03 | BY35: 1.0609 | BZ35: 1.092727 | CA35: 1.12550881 | CB35: 1.159274074 | CC35: 1.194052297 | CD35: 1.229873865 | CE35: 1.266770081 | CF35: 1.304773184 | CG35: 1.343916379 | CH35: 1.384233871 | CI35: 1.425760887 | CJ35: 1.468533713 | CK35: 1.512589725 | CL35: 1.557967417 | CM35: 1.604706439 | CN35: 1.652847632 | CO35: 1.702433061 | CP35: 1.753506053 | CQ35: 1.806111235 | CR35: 1.860294572 | CS35: 1.916103409 | CT35: 1.973586511 | CU35: 2.032794106 | CV35: 2.09377793 | CW35: 2.156591268 | CX35: 2.221289006 | CY35: 2.287927676 | CZ35: 2.356565506 | DA35: 2.427262471 | DB35: 2.500080345 | DC35: 2.575082756 | DD35: 2.652335238 | DE35: 2.731905296 | DF35: 2.813862454 | DG35: 2.898278328 | DH35: 2.985226678 | DI35: 3.074783478 | DJ35: 3.167026983 | DK35: 3.262037792
C36: Exterior Storm Screens | D36: 7 | F36: 24 | G36: 200 | H36: 4800 | I36: 0 | J36: 0 | K36: 0 | L36: 0 | M36: 0 | N36: 0 | O36: 5903.394554 | P36: 0 | Q36: 0 | R36: 0 | S36: 0 | T36: 0 | U36: 0 | V36: 7260.430679 | W36: 0 | X36: 0 | Y36: 0 | Z36: 0 | AA36: 0 | AB36: 0 | AC36: 8929.413944 | AD36: 0 | AE36: 0 | AF36: 0 | AG36: 0 | AH36: 0 | AI36: 0 | AJ36: 10982.05284 | AK36: 0 | AL36: 0 | AM36: 0 | AN36: 0 | AO36: 0 | AP36: 0 | AQ36: 13506.53978 | AR36: 0 | AS36: 0 | AT36: 0 | AU36: 0 | AV36: 0 | AW36: 46581.8318 | BV36: 0.03 | BX36: 1.03 | BY36: 1.0609 | BZ36: 1.092727 | CA36: 1.12550881 | CB36: 1.159274074 | CC36: 1.194052297 | CD36: 1.229873865 | CE36: 1.266770081 | CF36: 1.304773184 | CG36: 1.343916379 | CH36: 1.384233871 | CI36: 1.425760887 | CJ36: 1.468533713 | CK36: 1.512589725 | CL36: 1.557967417 | CM36: 1.604706439 | CN36: 1.652847632 | CO36: 1.702433061 | CP36: 1.753506053 | CQ36: 1.806111235 | CR36: 1.860294572 | CS36: 1.916103409 | CT36: 1.973586511 | CU36: 2.032794106 | CV36: 2.09377793 | CW36: 2.156591268 | CX36: 2.221289006 | CY36: 2.287927676 | CZ36: 2.356565506 | DA36: 2.427262471 | DB36: 2.500080345 | DC36: 2.575082756 | DD36: 2.652335238 | DE36: 2.731905296 | DF36: 2.813862454 | DG36: 2.898278328 | DH36: 2.985226678 | DI36: 3.074783478 | DJ36: 3.167026983 | DK36: 3.262037792
C37: Exterior windows per unit | D37: 20 | F37: 24 | G37: 1718 | H37: 41232 | I37: 0 | J37: 0 | K37: 0 | L37: 0 | M37: 0 | N37: 0 | O37: 0 | P37: 0 | Q37: 0 | R37: 0 | S37: 0 | T37: 0 | U37: 0 | V37: 0 | W37: 0 | X37: 0 | Y37: 0 | Z37: 0 | AA37: 0 | AB37: 74469.57843 | AC37: 0 | AD37: 0 | AE37: 0 | AF37: 0 | AG37: 0 | AH37: 0 | AI37: 0 | AJ37: 0 | AK37: 0 | AL37: 0 | AM37: 0 | AN37: 0 | AO37: 0 | AP37: 0 | AQ37: 0 | AR37: 0 | AS37: 0 | AT37: 0 | AU37: 0 | AV37: 134500.3422 | AW37: 208969.9207 | BV37: 0.03 | BX37: 1.03 | BY37: 1.0609 | BZ37: 1.092727 | CA37: 1.12550881 | CB37: 1.159274074 | CC37: 1.194052297 | CD37: 1.229873865 | CE37: 1.266770081 | CF37: 1.304773184 | CG37: 1.343916379 | CH37: 1.384233871 | CI37: 1.425760887 | CJ37: 1.468533713 | CK37: 1.512589725 | CL37: 1.557967417 | CM37: 1.604706439 | CN37: 1.652847632 | CO37: 1.702433061 | CP37: 1.753506053 | CQ37: 1.806111235 | CR37: 1.860294572 | CS37: 1.916103409 | CT37: 1.973586511 | CU37: 2.032794106 | CV37: 2.09377793 | CW37: 2.156591268 | CX37: 2.221289006 | CY37: 2.287927676 | CZ37: 2.356565506 | DA37: 2.427262471 | DB37: 2.500080345 | DC37: 2.575082756 | DD37: 2.652335238 | DE37: 2.731905296 | DF37: 2.813862454 | DG37: 2.898278328 | DH37: 2.985226678 | DI37: 3.074783478 | DJ37: 3.167026983 | DK37: 3.262037792
C38: Other | D38: 30 | F38: 0 | G38: 0 | H38: 0 | I38: 0 | J38: 0 | K38: 0 | L38: 0 | M38: 0 | N38: 0 | O38: 0 | P38: 0 | Q38: 0 | R38: 0 | S38: 0 | T38: 0 | U38: 0 | V38: 0 | W38: 0 | X38: 0 | Y38: 0 | Z38: 0 | AA38: 0 | AB38: 0 | AC38: 0 | AD38: 0 | AE38: 0 | AF38: 0 | AG38: 0 | AH38: 0 | AI38: 0 | AJ38: 0 | AK38: 0 | AL38: 0 | AM38: 0 | AN38: 0 | AO38: 0 | AP38: 0 | AQ38: 0 | AR38: 0 | AS38: 0 | AT38: 0 | AU38: 0 | AV38: 0 | AW38: 0 | BV38: 0.03 | BX38: 1.03 | BY38: 1.0609 | BZ38: 1.092727 | CA38: 1.12550881 | CB38: 1.159274074 | CC38: 1.194052297 | CD38: 1.229873865 | CE38: 1.266770081 | CF38: 1.304773184 | CG38: 1.343916379 | CH38: 1.384233871 | CI38: 1.425760887 | CJ38: 1.468533713 | CK38: 1.512589725 | CL38: 1.557967417 | CM38: 1.604706439 | CN38: 1.652847632 | CO38: 1.702433061 | CP38: 1.753506053 | CQ38: 1.806111235 | CR38: 1.860294572 | CS38: 1.916103409 | CT38: 1.973586511 | CU38: 2.032794106 | CV38: 2.09377793 | CW38: 2.156591268 | CX38: 2.221289006 | CY38: 2.287927676 | CZ38: 2.356565506 | DA38: 2.427262471 | DB38: 2.500080345 | DC38: 2.575082756 | DD38: 2.652335238 | DE38: 2.731905296 | DF38: 2.813862454 | DG38: 2.898278328 | DH38: 2.985226678 | DI38: 3.074783478 | DJ38: 3.167026983 | DK38: 3.262037792
B39: Mechanical & Electrical | BV39: 0.03 | BX39: 1.03 | BY39: 1.0609 | BZ39: 1.092727 | CA39: 1.12550881 | CB39: 1.159274074 | CC39: 1.194052297 | CD39: 1.229873865 | CE39: 1.266770081 | CF39: 1.304773184 | CG39: 1.343916379 | CH39: 1.384233871 | CI39: 1.425760887 | CJ39: 1.468533713 | CK39: 1.512589725 | CL39: 1.557967417 | CM39: 1.604706439 | CN39: 1.652847632 | CO39: 1.702433061 | CP39: 1.753506053 | CQ39: 1.806111235 | CR39: 1.860294572 | CS39: 1.916103409 | CT39: 1.973586511 | CU39: 2.032794106 | CV39: 2.09377793 | CW39: 2.156591268 | CX39: 2.221289006 | CY39: 2.287927676 | CZ39: 2.356565506 | DA39: 2.427262471 | DB39: 2.500080345 | DC39: 2.575082756 | DD39: 2.652335238 | DE39: 2.731905296 | DF39: 2.813862454 | DG39: 2.898278328 | DH39: 2.985226678 | DI39: 3.074783478 | DJ39: 3.167026983 | DK39: 3.262037792
C40: HVAC Split System (3) | D40: 15 | F40: 24 | G40: 5000 | H40: =IF(E40>0,0,(F40*G40)) -> 120000 | I40: =IF(OR((MOD(1-E40,D40)=0),E40=1),F40*G40*$I$13,0) -> 0 | J40: =IF(OR((MOD(2-E40,D40)=0),E40=2),F40*G40*$J$13,0) -> 0 | K40: =IF(OR((MOD(3-E40,D40)=0),E40=3),F40*G40*$K$13,0) -> 0 | L40: =IF(OR((MOD(4-E40,D40)=0),E40=4),F40*G40*$L$13,0) -> 0 | M40: =IF(OR((MOD(5-E40,D40)=0),E40=5),F40*G40*$M$13,0) -> 0 | N40: =IF(OR((MOD(6-E40,D40)=0),E40=6),F40*G40*$N$13,0) -> 0 | O40: =IF(OR((MOD(7-E40,D40)=0),E40=7),F40*G40*$O$13,0) -> 0 | P40: =IF(OR((MOD(8-E40,D40)=0),E40=8),F40*G40*$P$13,0) -> 0 | Q40: =IF(OR((MOD(9-E40,D40)=0),E40=9),F40*G40*$Q$13,0) -> 0 | R40: =IF(OR((MOD(10-E40,D40)=0),E40=10),F40*G40*$R$13,0) -> 0 | S40: =IF(OR((MOD(11-E40,D40)=0),E40=11),F40*G40*$S$13,0) -> 0 | T40: =IF(OR((MOD(12-E40,D40)=0),E40=12),F40*G40*$T$13,0) -> 0 | U40: =IF(OR((MOD(13-E40,D40)=0),E40=13),F40*G40*$U$13,0) -> 0 | V40: =IF(OR((MOD(14-E40,D40)=0),E40=14),F40*G40*$V$13,0) -> 0 | W40: =IF(OR((MOD(15-E40,D40)=0),E40=15),F40*G40*$W$13,0) -> 186956.09 | X40: =IF(OR((MOD(16-E40,D40)=0),E40=16),F40*G40*$X$13,0) -> 0 | Y40: =IF(OR((MOD(17-E40,D40)=0),E40=17),F40*G40*$Y$13,0) -> 0 | Z40: =IF(OR((MOD(18-E40,D40)=0),E40=18),F40*G40*$Z$13,0) -> 0 | AA40: =IF(OR((MOD(19-E40,D40)=0),E40=19),F40*G40*$AA$13,0) -> 0 | AB40: =IF(OR((MOD(20-E40,D40)=0),E40=20),F40*G40*$AB$13,0) -> 0 | AC40: =IF(OR((MOD(21-E40,D40)=0),E40=21),F40*G40*$AC$13,0) -> 0 | AD40: =IF(OR((MOD(22-E40,D40)=0),E40=22),F40*G40*$AD$13,0) -> 0 | AE40: =IF(OR((MOD(23-E40,D40)=0),E40=23),F40*G40*$AE$13,0) -> 0 | AF40: =IF(OR((MOD(24-E40,D40)=0),E40=24),F40*G40*$AF$13,0) -> 0 | AG40: =IF(OR((MOD(25-E40,D40)=0),E40=25),F40*G40*$AG$13,0) -> 0 | AH40: =IF(OR((MOD(26-E40,D40)=0),E40=26),F40*G40*$AH$13,0) -> 0 | AI40: =IF(OR((MOD(27-E40,D40)=0),E40=27),F40*G40*$AI$13,0) -> 0 | AJ40: =IF(OR((MOD(28-E40,D40)=0),E40=28),F40*G40*$AJ$13,0) -> 0 | AK40: =IF(OR((MOD(29-E40,D40)=0),E40=29),F40*G40*$AK$13,0) -> 0 | AL40: =IF(OR((MOD(30-E40,D40)=0),E40=30),F40*G40*$AL$13,0) -> 291271.4965 | AM40: =IF(OR((MOD(31-E40,D40)=0),E40=31),F40*G40*$AM$13,0) -> 0 | AN40: =IF(OR((MOD(32-E40,D40)=0),E40=32),F40*G40*$AN$13,0) -> 0 | AO40: =IF(OR((MOD(33-E40,D40)=0),E40=33),F40*G40*$AO$13,0) -> 0 | AP40: =IF(OR((MOD(34-E40,D40)=0),E40=34),F40*G40*$AP$13,0) -> 0 | AQ40: =IF(OR((MOD(35-E40,D40)=0),E40=35),F40*G40*$AQ$13,0) -> 0 | AR40: =IF(OR((MOD(36-E40,D40)=0),E40=36),F40*G40*$AR$13,0) -> 0 | AS40: =IF(OR((MOD(37-E40,D40)=0),E40=37),F40*G40*$AS$13,0) -> 0 | AT40: =IF(OR((MOD(38-E40,D40)=0),E40=38),F40*G40*$AT$13,0) -> 0 | AU40: =IF(OR((MOD(39-E40,D40)=0),E40=39),F40*G40*$AU$13,0) -> 0 | AV40: =IF(OR((MOD(40-E40,D40)=0),E40=40),F40*G40*$AV$13,0) -> 0 | AW40: =SUM(I40:AV40) -> 478227.5865 | BV40: 0.03 | BX40: 1.03 | BY40: 1.0609 | BZ40: 1.092727 | CA40: 1.12550881 | CB40: 1.159274074 | CC40: 1.194052297 | CD40: 1.229873865 | CE40: 1.266770081 | CF40: 1.304773184 | CG40: 1.343916379 | CH40: 1.384233871 | CI40: 1.425760887 | CJ40: 1.468533713 | CK40: 1.512589725 | CL40: 1.557967417 | CM40: 1.604706439 | CN40: 1.652847632 | CO40: 1.702433061 | CP40: 1.753506053 | CQ40: 1.806111235 | CR40: 1.860294572 | CS40: 1.916103409 | CT40: 1.973586511 | CU40: 2.032794106 | CV40: 2.09377793 | CW40: 2.156591268 | CX40: 2.221289006 | CY40: 2.287927676 | CZ40: 2.356565506 | DA40: 2.427262471 | DB40: 2.500080345 | DC40: 2.575082756 | DD40: 2.652335238 | DE40: 2.731905296 | DF40: 2.813862454 | DG40: 2.898278328 | DH40: 2.985226678 | DI40: 3.074783478 | DJ40: 3.167026983 | DK40: 3.262037792
C41: Hot water heaters (3) | D41: 15 | F41: 24 | G41: 1500 | H41: 36000 | I41: 0 | J41: 0 | K41: 0 | L41: 0 | M41: 0 | N41: 0 | O41: 0 | P41: 0 | Q41: 0 | R41: 0 | S41: 0 | T41: 0 | U41: 0 | V41: 0 | W41: 56086.827 | X41: 0 | Y41: 0 | Z41: 0 | AA41: 0 | AB41: 0 | AC41: 0 | AD41: 0 | AE41: 0 | AF41: 0 | AG41: 0 | AH41: 0 | AI41: 0 | AJ41: 0 | AK41: 0 | AL41: 87381.44896 | AM41: 0 | AN41: 0 | AO41: 0 | AP41: 0 | AQ41: 0 | AR41: 0 | AS41: 0 | AT41: 0 | AU41: 0 | AV41: 0 | AW41: 143468.276 | BV41: 0.03 | BX41: 1.03 | BY41: 1.0609 | BZ41: 1.092727 | CA41: 1.12550881 | CB41: 1.159274074 | CC41: 1.194052297 | CD41: 1.229873865 | CE41: 1.266770081 | CF41: 1.304773184 | CG41: 1.343916379 | CH41: 1.384233871 | CI41: 1.425760887 | CJ41: 1.468533713 | CK41: 1.512589725 | CL41: 1.557967417 | CM41: 1.604706439 | CN41: 1.652847632 | CO41: 1.702433061 | CP41: 1.753506053 | CQ41: 1.806111235 | CR41: 1.860294572 | CS41: 1.916103409 | CT41: 1.973586511 | CU41: 2.032794106 | CV41: 2.09377793 | CW41: 2.156591268 | CX41: 2.221289006 | CY41: 2.287927676 | CZ41: 2.356565506 | DA41: 2.427262471 | DB41: 2.500080345 | DC41: 2.575082756 | DD41: 2.652335238 | DE41: 2.731905296 | DF41: 2.813862454 | DG41: 2.898278328 | DH41: 2.985226678 | DI41: 3.074783478 | DJ41: 3.167026983 | DK41: 3.262037792
C42: Range hoods | D42: 15 | F42: 24 | G42: 400 | H42: 9600 | I42: 0 | J42: 0 | K42: 0 | L42: 0 | M42: 0 | N42: 0 | O42: 0 | P42: 0 | Q42: 0 | R42: 0 | S42: 0 | T42: 0 | U42: 0 | V42: 0 | W42: 14956.4872 | X42: 0 | Y42: 0 | Z42: 0 | AA42: 0 | AB42: 0 | AC42: 0 | AD42: 0 | AE42: 0 | AF42: 0 | AG42: 0 | AH42: 0 | AI42: 0 | AJ42: 0 | AK42: 0 | AL42: 23301.71972 | AM42: 0 | AN42: 0 | AO42: 0 | AP42: 0 | AQ42: 0 | AR42: 0 | AS42: 0 | AT42: 0 | AU42: 0 | AV42: 0 | AW42: 38258.20692 | BV42: 0.03 | BX42: 1.03 | BY42: 1.0609 | BZ42: 1.092727 | CA42: 1.12550881 | CB42: 1.159274074 | CC42: 1.194052297 | CD42: 1.229873865 | CE42: 1.266770081 | CF42: 1.304773184 | CG42: 1.343916379 | CH42: 1.384233871 | CI42: 1.425760887 | CJ42: 1.468533713 | CK42: 1.512589725 | CL42: 1.557967417 | CM42: 1.604706439 | CN42: 1.652847632 | CO42: 1.702433061 | CP42: 1.753506053 | CQ42: 1.806111235 | CR42: 1.860294572 | CS42: 1.916103409 | CT42: 1.973586511 | CU42: 2.032794106 | CV42: 2.09377793 | CW42: 2.156591268 | CX42: 2.221289006 | CY42: 2.287927676 | CZ42: 2.356565506 | DA42: 2.427262471 | DB42: 2.500080345 | DC42: 2.575082756 | DD42: 2.652335238 | DE42: 2.731905296 | DF42: 2.813862454 | DG42: 2.898278328 | DH42: 2.985226678 | DI42: 3.074783478 | DJ42: 3.167026983 | DK42: 3.262037792
C43: Exterior Lighting / Breezeways | D43: 25 | F43: 2 | G43: 500 | H43: 1000 | I43: 0 | J43: 0 | K43: 0 | L43: 0 | M43: 0 | N43: 0 | O43: 0 | P43: 0 | Q43: 0 | R43: 0 | S43: 0 | T43: 0 | U43: 0 | V43: 0 | W43: 0 | X43: 0 | Y43: 0 | Z43: 0 | AA43: 0 | AB43: 0 | AC43: 0 | AD43: 0 | AE43: 0 | AF43: 0 | AG43: 2093.77793 | AH43: 0 | AI43: 0 | AJ43: 0 | AK43: 0 | AL43: 0 | AM43: 0 | AN43: 0 | AO43: 0 | AP43: 0 | AQ43: 0 | AR43: 0 | AS43: 0 | AT43: 0 | AU43: 0 | AV43: 0 | AW43: 2093.77793 | BV43: 0.03 | BX43: 1.03 | BY43: 1.0609 | BZ43: 1.092727 | CA43: 1.12550881 | CB43: 1.159274074 | CC43: 1.194052297 | CD43: 1.229873865 | CE43: 1.266770081 | CF43: 1.304773184 | CG43: 1.343916379 | CH43: 1.384233871 | CI43: 1.425760887 | CJ43: 1.468533713 | CK43: 1.512589725 | CL43: 1.557967417 | CM43: 1.604706439 | CN43: 1.652847632 | CO43: 1.702433061 | CP43: 1.753506053 | CQ43: 1.806111235 | CR43: 1.860294572 | CS43: 1.916103409 | CT43: 1.973586511 | CU43: 2.032794106 | CV43: 2.09377793 | CW43: 2.156591268 | CX43: 2.221289006 | CY43: 2.287927676 | CZ43: 2.356565506 | DA43: 2.427262471 | DB43: 2.500080345 | DC43: 2.575082756 | DD43: 2.652335238 | DE43: 2.731905296 | DF43: 2.813862454 | DG43: 2.898278328 | DH43: 2.985226678 | DI43: 3.074783478 | DJ43: 3.167026983 | DK43: 3.262037792
C44: Interior Unit lighting | D44: 25 | F44: 24 | G44: 500 | H44: 12000 | I44: 0 | J44: 0 | K44: 0 | L44: 0 | M44: 0 | N44: 0 | O44: 0 | P44: 0 | Q44: 0 | R44: 0 | S44: 0 | T44: 0 | U44: 0 | V44: 0 | W44: 0 | X44: 0 | Y44: 0 | Z44: 0 | AA44: 0 | AB44: 0 | AC44: 0 | AD44: 0 | AE44: 0 | AF44: 0 | AG44: 25125.33516 | AH44: 0 | AI44: 0 | AJ44: 0 | AK44: 0 | AL44: 0 | AM44: 0 | AN44: 0 | AO44: 0 | AP44: 0 | AQ44: 0 | AR44: 0 | AS44: 0 | AT44: 0 | AU44: 0 | AV44: 0 | AW44: 25125.33516 | BV44: 0.03 | BX44: 1.03 | BY44: 1.0609 | BZ44: 1.092727 | CA44: 1.12550881 | CB44: 1.159274074 | CC44: 1.194052297 | CD44: 1.229873865 | CE44: 1.266770081 | CF44: 1.304773184 | CG44: 1.343916379 | CH44: 1.384233871 | CI44: 1.425760887 | CJ44: 1.468533713 | CK44: 1.512589725 | CL44: 1.557967417 | CM44: 1.604706439 | CN44: 1.652847632 | CO44: 1.702433061 | CP44: 1.753506053 | CQ44: 1.806111235 | CR44: 1.860294572 | CS44: 1.916103409 | CT44: 1.973586511 | CU44: 2.032794106 | CV44: 2.09377793 | CW44: 2.156591268 | CX44: 2.221289006 | CY44: 2.287927676 | CZ44: 2.356565506 | DA44: 2.427262471 | DB44: 2.500080345 | DC44: 2.575082756 | DD44: 2.652335238 | DE44: 2.731905296 | DF44: 2.813862454 | DG44: 2.898278328 | DH44: 2.985226678 | DI44: 3.074783478 | DJ44: 3.167026983 | DK44: 3.262037792
C45: Other | D45: 30 | F45: 0 | G45: 0 | H45: 0 | I45: 0 | J45: 0 | K45: 0 | L45: 0 | M45: 0 | N45: 0 | O45: 0 | P45: 0 | Q45: 0 | R45: 0 | S45: 0 | T45: 0 | U45: 0 | V45: 0 | W45: 0 | X45: 0 | Y45: 0 | Z45: 0 | AA45: 0 | AB45: 0 | AC45: 0 | AD45: 0 | AE45: 0 | AF45: 0 | AG45: 0 | AH45: 0 | AI45: 0 | AJ45: 0 | AK45: 0 | AL45: 0 | AM45: 0 | AN45: 0 | AO45: 0 | AP45: 0 | AQ45: 0 | AR45: 0 | AS45: 0 | AT45: 0 | AU45: 0 | AV45: 0 | AW45: 0 | BV45: 0.03 | BX45: 1.03 | BY45: 1.0609 | BZ45: 1.092727 | CA45: 1.12550881 | CB45: 1.159274074 | CC45: 1.194052297 | CD45: 1.229873865 | CE45: 1.266770081 | CF45: 1.304773184 | CG45: 1.343916379 | CH45: 1.384233871 | CI45: 1.425760887 | CJ45: 1.468533713 | CK45: 1.512589725 | CL45: 1.557967417 | CM45: 1.604706439 | CN45: 1.652847632 | CO45: 1.702433061 | CP45: 1.753506053 | CQ45: 1.806111235 | CR45: 1.860294572 | CS45: 1.916103409 | CT45: 1.973586511 | CU45: 2.032794106 | CV45: 2.09377793 | CW45: 2.156591268 | CX45: 2.221289006 | CY45: 2.287927676 | CZ45: 2.356565506 | DA45: 2.427262471 | DB45: 2.500080345 | DC45: 2.575082756 | DD45: 2.652335238 | DE45: 2.731905296 | DF45: 2.813862454 | DG45: 2.898278328 | DH45: 2.985226678 | DI45: 3.074783478 | DJ45: 3.167026983 | DK45: 3.262037792
B46: Life, Safety & Fire Protection | BV46: 0.03 | BX46: 1.03 | BY46: 1.0609 | BZ46: 1.092727 | CA46: 1.12550881 | CB46: 1.159274074 | CC46: 1.194052297 | CD46: 1.229873865 | CE46: 1.266770081 | CF46: 1.304773184 | CG46: 1.343916379 | CH46: 1.384233871 | CI46: 1.425760887 | CJ46: 1.468533713 | CK46: 1.512589725 | CL46: 1.557967417 | CM46: 1.604706439 | CN46: 1.652847632 | CO46: 1.702433061 | CP46: 1.753506053 | CQ46: 1.806111235 | CR46: 1.860294572 | CS46: 1.916103409 | CT46: 1.973586511 | CU46: 2.032794106 | CV46: 2.09377793 | CW46: 2.156591268 | CX46: 2.221289006 | CY46: 2.287927676 | CZ46: 2.356565506 | DA46: 2.427262471 | DB46: 2.500080345 | DC46: 2.575082756 | DD46: 2.652335238 | DE46: 2.731905296 | DF46: 2.813862454 | DG46: 2.898278328 | DH46: 2.985226678 | DI46: 3.074783478 | DJ46: 3.167026983 | DK46: 3.262037792
C47: Smoke detectors | D47: 10 | F47: 96 | G47: 50 | H47: =IF(E47>0,0,(F47*G47)) -> 4800 | I47: =IF(OR((MOD(1-E47,D47)=0),E47=1),F47*G47*$I$13,0) -> 0 | J47: =IF(OR((MOD(2-E47,D47)=0),E47=2),F47*G47*$J$13,0) -> 0 | K47: =IF(OR((MOD(3-E47,D47)=0),E47=3),F47*G47*$K$13,0) -> 0 | L47: =IF(OR((MOD(4-E47,D47)=0),E47=4),F47*G47*$L$13,0) -> 0 | M47: =IF(OR((MOD(5-E47,D47)=0),E47=5),F47*G47*$M$13,0) -> 0 | N47: =IF(OR((MOD(6-E47,D47)=0),E47=6),F47*G47*$N$13,0) -> 0 | O47: =IF(OR((MOD(7-E47,D47)=0),E47=7),F47*G47*$O$13,0) -> 0 | P47: =IF(OR((MOD(8-E47,D47)=0),E47=8),F47*G47*$P$13,0) -> 0 | Q47: =IF(OR((MOD(9-E47,D47)=0),E47=9),F47*G47*$Q$13,0) -> 0 | R47: =IF(OR((MOD(10-E47,D47)=0),E47=10),F47*G47*$R$13,0) -> 6450.798621 | S47: =IF(OR((MOD(11-E47,D47)=0),E47=11),F47*G47*$S$13,0) -> 0 | T47: =IF(OR((MOD(12-E47,D47)=0),E47=12),F47*G47*$T$13,0) -> 0 | U47: =IF(OR((MOD(13-E47,D47)=0),E47=13),F47*G47*$U$13,0) -> 0 | V47: =IF(OR((MOD(14-E47,D47)=0),E47=14),F47*G47*$V$13,0) -> 0 | W47: =IF(OR((MOD(15-E47,D47)=0),E47=15),F47*G47*$W$13,0) -> 0 | X47: =IF(OR((MOD(16-E47,D47)=0),E47=16),F47*G47*$X$13,0) -> 0 | Y47: =IF(OR((MOD(17-E47,D47)=0),E47=17),F47*G47*$Y$13,0) -> 0 | Z47: =IF(OR((MOD(18-E47,D47)=0),E47=18),F47*G47*$Z$13,0) -> 0 | AA47: =IF(OR((MOD(19-E47,D47)=0),E47=19),F47*G47*$AA$13,0) -> 0 | AB47: =IF(OR((MOD(20-E47,D47)=0),E47=20),F47*G47*$AB$13,0) -> 8669.333926 | AC47: =IF(OR((MOD(21-E47,D47)=0),E47=21),F47*G47*$AC$13,0) -> 0 | AD47: =IF(OR((MOD(22-E47,D47)=0),E47=22),F47*G47*$AD$13,0) -> 0 | AE47: =IF(OR((MOD(23-E47,D47)=0),E47=23),F47*G47*$AE$13,0) -> 0 | AF47: =IF(OR((MOD(24-E47,D47)=0),E47=24),F47*G47*$AF$13,0) -> 0 | AG47: =IF(OR((MOD(25-E47,D47)=0),E47=25),F47*G47*$AG$13,0) -> 0 | AH47: =IF(OR((MOD(26-E47,D47)=0),E47=26),F47*G47*$AH$13,0) -> 0 | AI47: =IF(OR((MOD(27-E47,D47)=0),E47=27),F47*G47*$AI$13,0) -> 0 | AJ47: =IF(OR((MOD(28-E47,D47)=0),E47=28),F47*G47*$AJ$13,0) -> 0 | AK47: =IF(OR((MOD(29-E47,D47)=0),E47=29),F47*G47*$AK$13,0) -> 0 | AL47: =IF(OR((MOD(30-E47,D47)=0),E47=30),F47*G47*$AL$13,0) -> 11650.85986 | AM47: =IF(OR((MOD(31-E47,D47)=0),E47=31),F47*G47*$AM$13,0) -> 0 | AN47: =IF(OR((MOD(32-E47,D47)=0),E47=32),F47*G47*$AN$13,0) -> 0 | AO47: =IF(OR((MOD(33-E47,D47)=0),E47=33),F47*G47*$AO$13,0) -> 0 | AP47: =IF(OR((MOD(34-E47,D47)=0),E47=34),F47*G47*$AP$13,0) -> 0 | AQ47: =IF(OR((MOD(35-E47,D47)=0),E47=35),F47*G47*$AQ$13,0) -> 0 | AR47: =IF(OR((MOD(36-E47,D47)=0),E47=36),F47*G47*$AR$13,0) -> 0 | AS47: =IF(OR((MOD(37-E47,D47)=0),E47=37),F47*G47*$AS$13,0) -> 0 | AT47: =IF(OR((MOD(38-E47,D47)=0),E47=38),F47*G47*$AT$13,0) -> 0 | AU47: =IF(OR((MOD(39-E47,D47)=0),E47=39),F47*G47*$AU$13,0) -> 0 | AV47: =IF(OR((MOD(40-E47,D47)=0),E47=40),F47*G47*$AV$13,0) -> 15657.7814 | AW47: =SUM(I47:AV47) -> 42428.77381 | BV47: 0.03 | BX47: 1.03 | BY47: 1.0609 | BZ47: 1.092727 | CA47: 1.12550881 | CB47: 1.159274074 | CC47: 1.194052297 | CD47: 1.229873865 | CE47: 1.266770081 | CF47: 1.304773184 | CG47: 1.343916379 | CH47: 1.384233871 | CI47: 1.425760887 | CJ47: 1.468533713 | CK47: 1.512589725 | CL47: 1.557967417 | CM47: 1.604706439 | CN47: 1.652847632 | CO47: 1.702433061 | CP47: 1.753506053 | CQ47: 1.806111235 | CR47: 1.860294572 | CS47: 1.916103409 | CT47: 1.973586511 | CU47: 2.032794106 | CV47: 2.09377793 | CW47: 2.156591268 | CX47: 2.221289006 | CY47: 2.287927676 | CZ47: 2.356565506 | DA47: 2.427262471 | DB47: 2.500080345 | DC47: 2.575082756 | DD47: 2.652335238 | DE47: 2.731905296 | DF47: 2.813862454 | DG47: 2.898278328 | DH47: 2.985226678 | DI47: 3.074783478 | DJ47: 3.167026983 | DK47: 3.262037792
C48: Other | D48: 30 | F48: 0 | G48: 0 | H48: 0 | I48: 0 | J48: 0 | K48: 0 | L48: 0 | M48: 0 | N48: 0 | O48: 0 | P48: 0 | Q48: 0 | R48: 0 | S48: 0 | T48: 0 | U48: 0 | V48: 0 | W48: 0 | X48: 0 | Y48: 0 | Z48: 0 | AA48: 0 | AB48: 0 | AC48: 0 | AD48: 0 | AE48: 0 | AF48: 0 | AG48: 0 | AH48: 0 | AI48: 0 | AJ48: 0 | AK48: 0 | AL48: 0 | AM48: 0 | AN48: 0 | AO48: 0 | AP48: 0 | AQ48: 0 | AR48: 0 | AS48: 0 | AT48: 0 | AU48: 0 | AV48: 0 | AW48: 0 | BV48: 0.03 | BX48: 1.03 | BY48: 1.0609 | BZ48: 1.092727 | CA48: 1.12550881 | CB48: 1.159274074 | CC48: 1.194052297 | CD48: 1.229873865 | CE48: 1.266770081 | CF48: 1.304773184 | CG48: 1.343916379 | CH48: 1.384233871 | CI48: 1.425760887 | CJ48: 1.468533713 | CK48: 1.512589725 | CL48: 1.557967417 | CM48: 1.604706439 | CN48: 1.652847632 | CO48: 1.702433061 | CP48: 1.753506053 | CQ48: 1.806111235 | CR48: 1.860294572 | CS48: 1.916103409 | CT48: 1.973586511 | CU48: 2.032794106 | CV48: 2.09377793 | CW48: 2.156591268 | CX48: 2.221289006 | CY48: 2.287927676 | CZ48: 2.356565506 | DA48: 2.427262471 | DB48: 2.500080345 | DC48: 2.575082756 | DD48: 2.652335238 | DE48: 2.731905296 | DF48: 2.813862454 | DG48: 2.898278328 | DH48: 2.985226678 | DI48: 3.074783478 | DJ48: 3.167026983 | DK48: 3.262037792
B49: Interior Elements | BV49: 0.03 | BX49: 1.03 | BY49: 1.0609 | BZ49: 1.092727 | CA49: 1.12550881 | CB49: 1.159274074 | CC49: 1.194052297 | CD49: 1.229873865 | CE49: 1.266770081 | CF49: 1.304773184 | CG49: 1.343916379 | CH49: 1.384233871 | CI49: 1.425760887 | CJ49: 1.468533713 | CK49: 1.512589725 | CL49: 1.557967417 | CM49: 1.604706439 | CN49: 1.652847632 | CO49: 1.702433061 | CP49: 1.753506053 | CQ49: 1.806111235 | CR49: 1.860294572 | CS49: 1.916103409 | CT49: 1.973586511 | CU49: 2.032794106 | CV49: 2.09377793 | CW49: 2.156591268 | CX49: 2.221289006 | CY49: 2.287927676 | CZ49: 2.356565506 | DA49: 2.427262471 | DB49: 2.500080345 | DC49: 2.575082756 | DD49: 2.652335238 | DE49: 2.731905296 | DF49: 2.813862454 | DG49: 2.898278328 | DH49: 2.985226678 | DI49: 3.074783478 | DJ49: 3.167026983 | DK49: 3.262037792
C50: Gypsum repair | D50: 15 | F50: 24 | G50: 150 | H50: =IF(E50>0,0,(F50*G50)) -> 3600 | I50: =IF(OR((MOD(1-E50,D50)=0),E50=1),F50*G50*$I$13,0) -> 0 | J50: =IF(OR((MOD(2-E50,D50)=0),E50=2),F50*G50*$J$13,0) -> 0 | K50: =IF(OR((MOD(3-E50,D50)=0),E50=3),F50*G50*$K$13,0) -> 0 | L50: =IF(OR((MOD(4-E50,D50)=0),E50=4),F50*G50*$L$13,0) -> 0 | M50: =IF(OR((MOD(5-E50,D50)=0),E50=5),F50*G50*$M$13,0) -> 0 | N50: =IF(OR((MOD(6-E50,D50)=0),E50=6),F50*G50*$N$13,0) -> 0 | O50: =IF(OR((MOD(7-E50,D50)=0),E50=7),F50*G50*$O$13,0) -> 0 | P50: =IF(OR((MOD(8-E50,D50)=0),E50=8),F50*G50*$P$13,0) -> 0 | Q50: =IF(OR((MOD(9-E50,D50)=0),E50=9),F50*G50*$Q$13,0) -> 0 | R50: =IF(OR((MOD(10-E50,D50)=0),E50=10),F50*G50*$R$13,0) -> 0 | S50: =IF(OR((MOD(11-E50,D50)=0),E50=11),F50*G50*$S$13,0) -> 0 | T50: =IF(OR((MOD(12-E50,D50)=0),E50=12),F50*G50*$T$13,0) -> 0 | U50: =IF(OR((MOD(13-E50,D50)=0),E50=13),F50*G50*$U$13,0) -> 0 | V50: =IF(OR((MOD(14-E50,D50)=0),E50=14),F50*G50*$V$13,0) -> 0 | W50: =IF(OR((MOD(15-E50,D50)=0),E50=15),F50*G50*$W$13,0) -> 5608.6827 | X50: =IF(OR((MOD(16-E50,D50)=0),E50=16),F50*G50*$X$13,0) -> 0 | Y50: =IF(OR((MOD(17-E50,D50)=0),E50=17),F50*G50*$Y$13,0) -> 0 | Z50: =IF(OR((MOD(18-E50,D50)=0),E50=18),F50*G50*$Z$13,0) -> 0 | AA50: =IF(OR((MOD(19-E50,D50)=0),E50=19),F50*G50*$AA$13,0) -> 0 | AB50: =IF(OR((MOD(20-E50,D50)=0),E50=20),F50*G50*$AB$13,0) -> 0 | AC50: =IF(OR((MOD(21-E50,D50)=0),E50=21),F50*G50*$AC$13,0) -> 0 | AD50: =IF(OR((MOD(22-E50,D50)=0),E50=22),F50*G50*$AD$13,0) -> 0 | AE50: =IF(OR((MOD(23-E50,D50)=0),E50=23),F50*G50*$AE$13,0) -> 0 | AF50: =IF(OR((MOD(24-E50,D50)=0),E50=24),F50*G50*$AF$13,0) -> 0 | AG50: =IF(OR((MOD(25-E50,D50)=0),E50=25),F50*G50*$AG$13,0) -> 0 | AH50: =IF(OR((MOD(26-E50,D50)=0),E50=26),F50*G50*$AH$13,0) -> 0 | AI50: =IF(OR((MOD(27-E50,D50)=0),E50=27),F50*G50*$AI$13,0) -> 0 | AJ50: =IF(OR((MOD(28-E50,D50)=0),E50=28),F50*G50*$AJ$13,0) -> 0 | AK50: =IF(OR((MOD(29-E50,D50)=0),E50=29),F50*G50*$AK$13,0) -> 0 | AL50: =IF(OR((MOD(30-E50,D50)=0),E50=30),F50*G50*$AL$13,0) -> 8738.144896 | AM50: =IF(OR((MOD(31-E50,D50)=0),E50=31),F50*G50*$AM$13,0) -> 0 | AN50: =IF(OR((MOD(32-E50,D50)=0),E50=32),F50*G50*$AN$13,0) -> 0 | AO50: =IF(OR((MOD(33-E50,D50)=0),E50=33),F50*G50*$AO$13,0) -> 0 | AP50: =IF(OR((MOD(34-E50,D50)=0),E50=34),F50*G50*$AP$13,0) -> 0 | AQ50: =IF(OR((MOD(35-E50,D50)=0),E50=35),F50*G50*$AQ$13,0) -> 0 | AR50: =IF(OR((MOD(36-E50,D50)=0),E50=36),F50*G50*$AR$13,0) -> 0 | AS50: =IF(OR((MOD(37-E50,D50)=0),E50=37),F50*G50*$AS$13,0) -> 0 | AT50: =IF(OR((MOD(38-E50,D50)=0),E50=38),F50*G50*$AT$13,0) -> 0 | AU50: =IF(OR((MOD(39-E50,D50)=0),E50=39),F50*G50*$AU$13,0) -> 0 | AV50: =IF(OR((MOD(40-E50,D50)=0),E50=40),F50*G50*$AV$13,0) -> 0 | AW50: =SUM(I50:AV50) -> 14346.8276 | BV50: 0.03 | BX50: 1.03 | BY50: 1.0609 | BZ50: 1.092727 | CA50: 1.12550881 | CB50: 1.159274074 | CC50: 1.194052297 | CD50: 1.229873865 | CE50: 1.266770081 | CF50: 1.304773184 | CG50: 1.343916379 | CH50: 1.384233871 | CI50: 1.425760887 | CJ50: 1.468533713 | CK50: 1.512589725 | CL50: 1.557967417 | CM50: 1.604706439 | CN50: 1.652847632 | CO50: 1.702433061 | CP50: 1.753506053 | CQ50: 1.806111235 | CR50: 1.860294572 | CS50: 1.916103409 | CT50: 1.973586511 | CU50: 2.032794106 | CV50: 2.09377793 | CW50: 2.156591268 | CX50: 2.221289006 | CY50: 2.287927676 | CZ50: 2.356565506 | DA50: 2.427262471 | DB50: 2.500080345 | DC50: 2.575082756 | DD50: 2.652335238 | DE50: 2.731905296 | DF50: 2.813862454 | DG50: 2.898278328 | DH50: 2.985226678 | DI50: 3.074783478 | DJ50: 3.167026983 | DK50: 3.262037792
C51: Painting | D51: 5 | F51: 24 | G51: 800 | H51: 19200 | I51: 0 | J51: 0 | K51: 0 | L51: 0 | M51: 22258.06223 | N51: 0 | O51: 0 | P51: 0 | Q51: 0 | R51: 25803.19448 | S51: 0 | T51: 0 | U51: 0 | V51: 0 | W51: 29912.9744 | X51: 0 | Y51: 0 | Z51: 0 | AA51: 0 | AB51: 34677.33571 | AC51: 0 | AD51: 0 | AE51: 0 | AF51: 0 | AG51: 40200.53625 | AH51: 0 | AI51: 0 | AJ51: 0 | AK51: 0 | AL51: 46603.43945 | AM51: 0 | AN51: 0 | AO51: 0 | AP51: 0 | AQ51: 54026.15912 | AR51: 0 | AS51: 0 | AT51: 0 | AU51: 0 | AV51: 62631.12561 | AW51: 316112.8272 | BV51: 0.03 | BX51: 1.03 | BY51: 1.0609 | BZ51: 1.092727 | CA51: 1.12550881 | CB51: 1.159274074 | CC51: 1.194052297 | CD51: 1.229873865 | CE51: 1.266770081 | CF51: 1.304773184 | CG51: 1.343916379 | CH51: 1.384233871 | CI51: 1.425760887 | CJ51: 1.468533713 | CK51: 1.512589725 | CL51: 1.557967417 | CM51: 1.604706439 | CN51: 1.652847632 | CO51: 1.702433061 | CP51: 1.753506053 | CQ51: 1.806111235 | CR51: 1.860294572 | CS51: 1.916103409 | CT51: 1.973586511 | CU51: 2.032794106 | CV51: 2.09377793 | CW51: 2.156591268 | CX51: 2.221289006 | CY51: 2.287927676 | CZ51: 2.356565506 | DA51: 2.427262471 | DB51: 2.500080345 | DC51: 2.575082756 | DD51: 2.652335238 | DE51: 2.731905296 | DF51: 2.813862454 | DG51: 2.898278328 | DH51: 2.985226678 | DI51: 3.074783478 | DJ51: 3.167026983 | DK51: 3.262037792
C52: Carpeting 500 S.F. | D52: 7 | F52: 24 | G52: 1750 | H52: 42000 | I52: 0 | J52: 0 | K52: 0 | L52: 0 | M52: 0 | N52: 0 | O52: 51654.70235 | P52: 0 | Q52: 0 | R52: 0 | S52: 0 | T52: 0 | U52: 0 | V52: 63528.76844 | W52: 0 | X52: 0 | Y52: 0 | Z52: 0 | AA52: 0 | AB52: 0 | AC52: 78132.37201 | AD52: 0 | AE52: 0 | AF52: 0 | AG52: 0 | AH52: 0 | AI52: 0 | AJ52: 96092.96238 | AK52: 0 | AL52: 0 | AM52: 0 | AN52: 0 | AO52: 0 | AP52: 0 | AQ52: 118182.2231 | AR52: 0 | AS52: 0 | AT52: 0 | AU52: 0 | AV52: 0 | AW52: 407591.0283 | BV52: 0.03 | BX52: 1.03 | BY52: 1.0609 | BZ52: 1.092727 | CA52: 1.12550881 | CB52: 1.159274074 | CC52: 1.194052297 | CD52: 1.229873865 | CE52: 1.266770081 | CF52: 1.304773184 | CG52: 1.343916379 | CH52: 1.384233871 | CI52: 1.425760887 | CJ52: 1.468533713 | CK52: 1.512589725 | CL52: 1.557967417 | CM52: 1.604706439 | CN52: 1.652847632 | CO52: 1.702433061 | CP52: 1.753506053 | CQ52: 1.806111235 | CR52: 1.860294572 | CS52: 1.916103409 | CT52: 1.973586511 | CU52: 2.032794106 | CV52: 2.09377793 | CW52: 2.156591268 | CX52: 2.221289006 | CY52: 2.287927676 | CZ52: 2.356565506 | DA52: 2.427262471 | DB52: 2.500080345 | DC52: 2.575082756 | DD52: 2.652335238 | DE52: 2.731905296 | DF52: 2.813862454 | DG52: 2.898278328 | DH52: 2.985226678 | DI52: 3.074783478 | DJ52: 3.167026983 | DK52: 3.262037792
C53: Water Closet | D53: 20 | F53: 24 | G53: 450 | H53: 10800 | I53: 0 | J53: 0 | K53: 0 | L53: 0 | M53: 0 | N53: 0 | O53: 0 | P53: 0 | Q53: 0 | R53: 0 | S53: 0 | T53: 0 | U53: 0 | V53: 0 | W53: 0 | X53: 0 | Y53: 0 | Z53: 0 | AA53: 0 | AB53: 19506.00133 | AC53: 0 | AD53: 0 | AE53: 0 | AF53: 0 | AG53: 0 | AH53: 0 | AI53: 0 | AJ53: 0 | AK53: 0 | AL53: 0 | AM53: 0 | AN53: 0 | AO53: 0 | AP53: 0 | AQ53: 0 | AR53: 0 | AS53: 0 | AT53: 0 | AU53: 0 | AV53: 35230.00815 | AW53: 54736.00949 | BV53: 0.03 | BX53: 1.03 | BY53: 1.0609 | BZ53: 1.092727 | CA53: 1.12550881 | CB53: 1.159274074 | CC53: 1.194052297 | CD53: 1.229873865 | CE53: 1.266770081 | CF53: 1.304773184 | CG53: 1.343916379 | CH53: 1.384233871 | CI53: 1.425760887 | CJ53: 1.468533713 | CK53: 1.512589725 | CL53: 1.557967417 | CM53: 1.604706439 | CN53: 1.652847632 | CO53: 1.702433061 | CP53: 1.753506053 | CQ53: 1.806111235 | CR53: 1.860294572 | CS53: 1.916103409 | CT53: 1.973586511 | CU53: 2.032794106 | CV53: 2.09377793 | CW53: 2.156591268 | CX53: 2.221289006 | CY53: 2.287927676 | CZ53: 2.356565506 | DA53: 2.427262471 | DB53: 2.500080345 | DC53: 2.575082756 | DD53: 2.652335238 | DE53: 2.731905296 | DF53: 2.813862454 | DG53: 2.898278328 | DH53: 2.985226678 | DI53: 3.074783478 | DJ53: 3.167026983 | DK53: 3.262037792
C54: Tub/Shower Unit | D54: 20 | F54: 24 | G54: 900 | H54: 21600 | I54: 0 | J54: 0 | K54: 0 | L54: 0 | M54: 0 | N54: 0 | O54: 0 | P54: 0 | Q54: 0 | R54: 0 | S54: 0 | T54: 0 | U54: 0 | V54: 0 | W54: 0 | X54: 0 | Y54: 0 | Z54: 0 | AA54: 0 | AB54: 39012.00267 | AC54: 0 | AD54: 0 | AE54: 0 | AF54: 0 | AG54: 0 | AH54: 0 | AI54: 0 | AJ54: 0 | AK54: 0 | AL54: 0 | AM54: 0 | AN54: 0 | AO54: 0 | AP54: 0 | AQ54: 0 | AR54: 0 | AS54: 0 | AT54: 0 | AU54: 0 | AV54: 70460.01631 | AW54: 109472.019 | BV54: 0.03 | BX54: 1.03 | BY54: 1.0609 | BZ54: 1.092727 | CA54: 1.12550881 | CB54: 1.159274074 | CC54: 1.194052297 | CD54: 1.229873865 | CE54: 1.266770081 | CF54: 1.304773184 | CG54: 1.343916379 | CH54: 1.384233871 | CI54: 1.425760887 | CJ54: 1.468533713 | CK54: 1.512589725 | CL54: 1.557967417 | CM54: 1.604706439 | CN54: 1.652847632 | CO54: 1.702433061 | CP54: 1.753506053 | CQ54: 1.806111235 | CR54: 1.860294572 | CS54: 1.916103409 | CT54: 1.973586511 | CU54: 2.032794106 | CV54: 2.09377793 | CW54: 2.156591268 | CX54: 2.221289006 | CY54: 2.287927676 | CZ54: 2.356565506 | DA54: 2.427262471 | DB54: 2.500080345 | DC54: 2.575082756 | DD54: 2.652335238 | DE54: 2.731905296 | DF54: 2.813862454 | DG54: 2.898278328 | DH54: 2.985226678 | DI54: 3.074783478 | DJ54: 3.167026983 | DK54: 3.262037792
C55: Interior bi-fold doors | D55: 15 | F55: 24 | G55: 150 | H55: 3600 | I55: 0 | J55: 0 | K55: 0 | L55: 0 | M55: 0 | N55: 0 | O55: 0 | P55: 0 | Q55: 0 | R55: 0 | S55: 0 | T55: 0 | U55: 0 | V55: 0 | W55: 5608.6827 | X55: 0 | Y55: 0 | Z55: 0 | AA55: 0 | AB55: 0 | AC55: 0 | AD55: 0 | AE55: 0 | AF55: 0 | AG55: 0 | AH55: 0 | AI55: 0 | AJ55: 0 | AK55: 0 | AL55: 8738.144896 | AM55: 0 | AN55: 0 | AO55: 0 | AP55: 0 | AQ55: 0 | AR55: 0 | AS55: 0 | AT55: 0 | AU55: 0 | AV55: 0 | AW55: 14346.8276 | BV55: 0.03 | BX55: 1.03 | BY55: 1.0609 | BZ55: 1.092727 | CA55: 1.12550881 | CB55: 1.159274074 | CC55: 1.194052297 | CD55: 1.229873865 | CE55: 1.266770081 | CF55: 1.304773184 | CG55: 1.343916379 | CH55: 1.384233871 | CI55: 1.425760887 | CJ55: 1.468533713 | CK55: 1.512589725 | CL55: 1.557967417 | CM55: 1.604706439 | CN55: 1.652847632 | CO55: 1.702433061 | CP55: 1.753506053 | CQ55: 1.806111235 | CR55: 1.860294572 | CS55: 1.916103409 | CT55: 1.973586511 | CU55: 2.032794106 | CV55: 2.09377793 | CW55: 2.156591268 | CX55: 2.221289006 | CY55: 2.287927676 | CZ55: 2.356565506 | DA55: 2.427262471 | DB55: 2.500080345 | DC55: 2.575082756 | DD55: 2.652335238 | DE55: 2.731905296 | DF55: 2.813862454 | DG55: 2.898278328 | DH55: 2.985226678 | DI55: 3.074783478 | DJ55: 3.167026983 | DK55: 3.262037792
C56: New door hardware | D56: 15 | F56: 24 | G56: 40 | H56: 960 | I56: 0 | J56: 0 | K56: 0 | L56: 0 | M56: 0 | N56: 0 | O56: 0 | P56: 0 | Q56: 0 | R56: 0 | S56: 0 | T56: 0 | U56: 0 | V56: 0 | W56: 1495.64872 | X56: 0 | Y56: 0 | Z56: 0 | AA56: 0 | AB56: 0 | AC56: 0 | AD56: 0 | AE56: 0 | AF56: 0 | AG56: 0 | AH56: 0 | AI56: 0 | AJ56: 0 | AK56: 0 | AL56: 2330.171972 | AM56: 0 | AN56: 0 | AO56: 0 | AP56: 0 | AQ56: 0 | AR56: 0 | AS56: 0 | AT56: 0 | AU56: 0 | AV56: 0 | AW56: 3825.820692 | BV56: 0.03 | BX56: 1.03 | BY56: 1.0609 | BZ56: 1.092727 | CA56: 1.12550881 | CB56: 1.159274074 | CC56: 1.194052297 | CD56: 1.229873865 | CE56: 1.266770081 | CF56: 1.304773184 | CG56: 1.343916379 | CH56: 1.384233871 | CI56: 1.425760887 | CJ56: 1.468533713 | CK56: 1.512589725 | CL56: 1.557967417 | CM56: 1.604706439 | CN56: 1.652847632 | CO56: 1.702433061 | CP56: 1.753506053 | CQ56: 1.806111235 | CR56: 1.860294572 | CS56: 1.916103409 | CT56: 1.973586511 | CU56: 2.032794106 | CV56: 2.09377793 | CW56: 2.156591268 | CX56: 2.221289006 | CY56: 2.287927676 | CZ56: 2.356565506 | DA56: 2.427262471 | DB56: 2.500080345 | DC56: 2.575082756 | DD56: 2.652335238 | DE56: 2.731905296 | DF56: 2.813862454 | DG56: 2.898278328 | DH56: 2.985226678 | DI56: 3.074783478 | DJ56: 3.167026983 | DK56: 3.262037792
C57: Vinyl tile 200 S.F. | D57: 15 | F57: 24 | G57: 750 | H57: 18000 | I57: 0 | J57: 0 | K57: 0 | L57: 0 | M57: 0 | N57: 0 | O57: 0 | P57: 0 | Q57: 0 | R57: 0 | S57: 0 | T57: 0 | U57: 0 | V57: 0 | W57: 28043.4135 | X57: 0 | Y57: 0 | Z57: 0 | AA57: 0 | AB57: 0 | AC57: 0 | AD57: 0 | AE57: 0 | AF57: 0 | AG57: 0 | AH57: 0 | AI57: 0 | AJ57: 0 | AK57: 0 | AL57: 43690.72448 | AM57: 0 | AN57: 0 | AO57: 0 | AP57: 0 | AQ57: 0 | AR57: 0 | AS57: 0 | AT57: 0 | AU57: 0 | AV57: 0 | AW57: 71734.13798 | BV57: 0.03 | BX57: 1.03 | BY57: 1.0609 | BZ57: 1.092727 | CA57: 1.12550881 | CB57: 1.159274074 | CC57: 1.194052297 | CD57: 1.229873865 | CE57: 1.266770081 | CF57: 1.304773184 | CG57: 1.343916379 | CH57: 1.384233871 | CI57: 1.425760887 | CJ57: 1.468533713 | CK57: 1.512589725 | CL57: 1.557967417 | CM57: 1.604706439 | CN57: 1.652847632 | CO57: 1.702433061 | CP57: 1.753506053 | CQ57: 1.806111235 | CR57: 1.860294572 | CS57: 1.916103409 | CT57: 1.973586511 | CU57: 2.032794106 | CV57: 2.09377793 | CW57: 2.156591268 | CX57: 2.221289006 | CY57: 2.287927676 | CZ57: 2.356565506 | DA57: 2.427262471 | DB57: 2.500080345 | DC57: 2.575082756 | DD57: 2.652335238 | DE57: 2.731905296 | DF57: 2.813862454 | DG57: 2.898278328 | DH57: 2.985226678 | DI57: 3.074783478 | DJ57: 3.167026983 | DK57: 3.262037792
C58: Bath countertops & sink | D58: 10 | F58: 24 | G58: 300 | H58: 7200 | I58: 0 | J58: 0 | K58: 0 | L58: 0 | M58: 0 | N58: 0 | O58: 0 | P58: 0 | Q58: 0 | R58: 9676.197931 | S58: 0 | T58: 0 | U58: 0 | V58: 0 | W58: 0 | X58: 0 | Y58: 0 | Z58: 0 | AA58: 0 | AB58: 13004.00089 | AC58: 0 | AD58: 0 | AE58: 0 | AF58: 0 | AG58: 0 | AH58: 0 | AI58: 0 | AJ58: 0 | AK58: 0 | AL58: 17476.28979 | AM58: 0 | AN58: 0 | AO58: 0 | AP58: 0 | AQ58: 0 | AR58: 0 | AS58: 0 | AT58: 0 | AU58: 0 | AV58: 23486.6721 | AW58: 63643.16072 | BV58: 0.03 | BX58: 1.03 | BY58: 1.0609 | BZ58: 1.092727 | CA58: 1.12550881 | CB58: 1.159274074 | CC58: 1.194052297 | CD58: 1.229873865 | CE58: 1.266770081 | CF58: 1.304773184 | CG58: 1.343916379 | CH58: 1.384233871 | CI58: 1.425760887 | CJ58: 1.468533713 | CK58: 1.512589725 | CL58: 1.557967417 | CM58: 1.604706439 | CN58: 1.652847632 | CO58: 1.702433061 | CP58: 1.753506053 | CQ58: 1.806111235 | CR58: 1.860294572 | CS58: 1.916103409 | CT58: 1.973586511 | CU58: 2.032794106 | CV58: 2.09377793 | CW58: 2.156591268 | CX58: 2.221289006 | CY58: 2.287927676 | CZ58: 2.356565506 | DA58: 2.427262471 | DB58: 2.500080345 | DC58: 2.575082756 | DD58: 2.652335238 | DE58: 2.731905296 | DF58: 2.813862454 | DG58: 2.898278328 | DH58: 2.985226678 | DI58: 3.074783478 | DJ58: 3.167026983 | DK58: 3.262037792
C59: Kitchen countertops & sink | D59: 10 | F59: 24 | G59: 1000 | H59: 24000 | I59: 0 | J59: 0 | K59: 0 | L59: 0 | M59: 0 | N59: 0 | O59: 0 | P59: 0 | Q59: 0 | R59: 32253.9931 | S59: 0 | T59: 0 | U59: 0 | V59: 0 | W59: 0 | X59: 0 | Y59: 0 | Z59: 0 | AA59: 0 | AB59: 43346.66963 | AC59: 0 | AD59: 0 | AE59: 0 | AF59: 0 | AG59: 0 | AH59: 0 | AI59: 0 | AJ59: 0 | AK59: 0 | AL59: 58254.29931 | AM59: 0 | AN59: 0 | AO59: 0 | AP59: 0 | AQ59: 0 | AR59: 0 | AS59: 0 | AT59: 0 | AU59: 0 | AV59: 78288.90701 | AW59: 212143.8691 | BV59: 0.03 | BX59: 1.03 | BY59: 1.0609 | BZ59: 1.092727 | CA59: 1.12550881 | CB59: 1.159274074 | CC59: 1.194052297 | CD59: 1.229873865 | CE59: 1.266770081 | CF59: 1.304773184 | CG59: 1.343916379 | CH59: 1.384233871 | CI59: 1.425760887 | CJ59: 1.468533713 | CK59: 1.512589725 | CL59: 1.557967417 | CM59: 1.604706439 | CN59: 1.652847632 | CO59: 1.702433061 | CP59: 1.753506053 | CQ59: 1.806111235 | CR59: 1.860294572 | CS59: 1.916103409 | CT59: 1.973586511 | CU59: 2.032794106 | CV59: 2.09377793 | CW59: 2.156591268 | CX59: 2.221289006 | CY59: 2.287927676 | CZ59: 2.356565506 | DA59: 2.427262471 | DB59: 2.500080345 | DC59: 2.575082756 | DD59: 2.652335238 | DE59: 2.731905296 | DF59: 2.813862454 | DG59: 2.898278328 | DH59: 2.985226678 | DI59: 3.074783478 | DJ59: 3.167026983 | DK59: 3.262037792
C60: Washers (3) | D60: 15 | F60: 24 | G60: 650 | H60: 15600 | I60: 0 | J60: 0 | K60: 0 | L60: 0 | M60: 0 | N60: 0 | O60: 0 | P60: 0 | Q60: 0 | R60: 0 | S60: 0 | T60: 0 | U60: 0 | V60: 0 | W60: 24304.2917 | X60: 0 | Y60: 0 | Z60: 0 | AA60: 0 | AB60: 0 | AC60: 0 | AD60: 0 | AE60: 0 | AF60: 0 | AG60: 0 | AH60: 0 | AI60: 0 | AJ60: 0 | AK60: 0 | AL60: 37865.29455 | AM60: 0 | AN60: 0 | AO60: 0 | AP60: 0 | AQ60: 0 | AR60: 0 | AS60: 0 | AT60: 0 | AU60: 0 | AV60: 0 | AW60: 62169.58625 | BV60: 0.03 | BX60: 1.03 | BY60: 1.0609 | BZ60: 1.092727 | CA60: 1.12550881 | CB60: 1.159274074 | CC60: 1.194052297 | CD60: 1.229873865 | CE60: 1.266770081 | CF60: 1.304773184 | CG60: 1.343916379 | CH60: 1.384233871 | CI60: 1.425760887 | CJ60: 1.468533713 | CK60: 1.512589725 | CL60: 1.557967417 | CM60: 1.604706439 | CN60: 1.652847632 | CO60: 1.702433061 | CP60: 1.753506053 | CQ60: 1.806111235 | CR60: 1.860294572 | CS60: 1.916103409 | CT60: 1.973586511 | CU60: 2.032794106 | CV60: 2.09377793 | CW60: 2.156591268 | CX60: 2.221289006 | CY60: 2.287927676 | CZ60: 2.356565506 | DA60: 2.427262471 | DB60: 2.500080345 | DC60: 2.575082756 | DD60: 2.652335238 | DE60: 2.731905296 | DF60: 2.813862454 | DG60: 2.898278328 | DH60: 2.985226678 | DI60: 3.074783478 | DJ60: 3.167026983 | DK60: 3.262037792
C61: Dryers | D61: 15 | F61: 24 | G61: 650 | H61: 15600 | I61: 0 | J61: 0 | K61: 0 | L61: 0 | M61: 0 | N61: 0 | O61: 0 | P61: 0 | Q61: 0 | R61: 0 | S61: 0 | T61: 0 | U61: 0 | V61: 0 | W61: 24304.2917 | X61: 0 | Y61: 0 | Z61: 0 | AA61: 0 | AB61: 0 | AC61: 0 | AD61: 0 | AE61: 0 | AF61: 0 | AG61: 0 | AH61: 0 | AI61: 0 | AJ61: 0 | AK61: 0 | AL61: 37865.29455 | AM61: 0 | AN61: 0 | AO61: 0 | AP61: 0 | AQ61: 0 | AR61: 0 | AS61: 0 | AT61: 0 | AU61: 0 | AV61: 0 | AW61: 62169.58625 | BV61: 0.03 | BX61: 1.03 | BY61: 1.0609 | BZ61: 1.092727 | CA61: 1.12550881 | CB61: 1.159274074 | CC61: 1.194052297 | CD61: 1.229873865 | CE61: 1.266770081 | CF61: 1.304773184 | CG61: 1.343916379 | CH61: 1.384233871 | CI61: 1.425760887 | CJ61: 1.468533713 | CK61: 1.512589725 | CL61: 1.557967417 | CM61: 1.604706439 | CN61: 1.652847632 | CO61: 1.702433061 | CP61: 1.753506053 | CQ61: 1.806111235 | CR61: 1.860294572 | CS61: 1.916103409 | CT61: 1.973586511 | CU61: 2.032794106 | CV61: 2.09377793 | CW61: 2.156591268 | CX61: 2.221289006 | CY61: 2.287927676 | CZ61: 2.356565506 | DA61: 2.427262471 | DB61: 2.500080345 | DC61: 2.575082756 | DD61: 2.652335238 | DE61: 2.731905296 | DF61: 2.813862454 | DG61: 2.898278328 | DH61: 2.985226678 | DI61: 3.074783478 | DJ61: 3.167026983 | DK61: 3.262037792
C62: Refrigerator (3) | D62: 15 | F62: 24 | G62: 900 | H62: 21600 | I62: 0 | J62: 0 | K62: 0 | L62: 0 | M62: 0 | N62: 0 | O62: 0 | P62: 0 | Q62: 0 | R62: 0 | S62: 0 | T62: 0 | U62: 0 | V62: 0 | W62: 33652.0962 | X62: 0 | Y62: 0 | Z62: 0 | AA62: 0 | AB62: 0 | AC62: 0 | AD62: 0 | AE62: 0 | AF62: 0 | AG62: 0 | AH62: 0 | AI62: 0 | AJ62: 0 | AK62: 0 | AL62: 52428.86938 | AM62: 0 | AN62: 0 | AO62: 0 | AP62: 0 | AQ62: 0 | AR62: 0 | AS62: 0 | AT62: 0 | AU62: 0 | AV62: 0 | AW62: 86080.96558 | BV62: 0.03 | BX62: 1.03 | BY62: 1.0609 | BZ62: 1.092727 | CA62: 1.12550881 | CB62: 1.159274074 | CC62: 1.194052297 | CD62: 1.229873865 | CE62: 1.266770081 | CF62: 1.304773184 | CG62: 1.343916379 | CH62: 1.384233871 | CI62: 1.425760887 | CJ62: 1.468533713 | CK62: 1.512589725 | CL62: 1.557967417 | CM62: 1.604706439 | CN62: 1.652847632 | CO62: 1.702433061 | CP62: 1.753506053 | CQ62: 1.806111235 | CR62: 1.860294572 | CS62: 1.916103409 | CT62: 1.973586511 | CU62: 2.032794106 | CV62: 2.09377793 | CW62: 2.156591268 | CX62: 2.221289006 | CY62: 2.287927676 | CZ62: 2.356565506 | DA62: 2.427262471 | DB62: 2.500080345 | DC62: 2.575082756 | DD62: 2.652335238 | DE62: 2.731905296 | DF62: 2.813862454 | DG62: 2.898278328 | DH62: 2.985226678 | DI62: 3.074783478 | DJ62: 3.167026983 | DK62: 3.262037792
C63: Stove | D63: 15 | F63: 24 | G63: 600 | H63: 14400 | I63: 0 | J63: 0 | K63: 0 | L63: 0 | M63: 0 | N63: 0 | O63: 0 | P63: 0 | Q63: 0 | R63: 0 | S63: 0 | T63: 0 | U63: 0 | V63: 0 | W63: 22434.7308 | X63: 0 | Y63: 0 | Z63: 0 | AA63: 0 | AB63: 0 | AC63: 0 | AD63: 0 | AE63: 0 | AF63: 0 | AG63: 0 | AH63: 0 | AI63: 0 | AJ63: 0 | AK63: 0 | AL63: 34952.57959 | AM63: 0 | AN63: 0 | AO63: 0 | AP63: 0 | AQ63: 0 | AR63: 0 | AS63: 0 | AT63: 0 | AU63: 0 | AV63: 0 | AW63: 57387.31038 | BV63: 0.03 | BX63: 1.03 | BY63: 1.0609 | BZ63: 1.092727 | CA63: 1.12550881 | CB63: 1.159274074 | CC63: 1.194052297 | CD63: 1.229873865 | CE63: 1.266770081 | CF63: 1.304773184 | CG63: 1.343916379 | CH63: 1.384233871 | CI63: 1.425760887 | CJ63: 1.468533713 | CK63: 1.512589725 | CL63: 1.557967417 | CM63: 1.604706439 | CN63: 1.652847632 | CO63: 1.702433061 | CP63: 1.753506053 | CQ63: 1.806111235 | CR63: 1.860294572 | CS63: 1.916103409 | CT63: 1.973586511 | CU63: 2.032794106 | CV63: 2.09377793 | CW63: 2.156591268 | CX63: 2.221289006 | CY63: 2.287927676 | CZ63: 2.356565506 | DA63: 2.427262471 | DB63: 2.500080345 | DC63: 2.575082756 | DD63: 2.652335238 | DE63: 2.731905296 | DF63: 2.813862454 | DG63: 2.898278328 | DH63: 2.985226678 | DI63: 3.074783478 | DJ63: 3.167026983 | DK63: 3.262037792
C64: Dishwasher (3) | D64: 15 | F64: 24 | G64: 600 | H64: 14400 | I64: 0 | J64: 0 | K64: 0 | L64: 0 | M64: 0 | N64: 0 | O64: 0 | P64: 0 | Q64: 0 | R64: 0 | S64: 0 | T64: 0 | U64: 0 | V64: 0 | W64: 22434.7308 | X64: 0 | Y64: 0 | Z64: 0 | AA64: 0 | AB64: 0 | AC64: 0 | AD64: 0 | AE64: 0 | AF64: 0 | AG64: 0 | AH64: 0 | AI64: 0 | AJ64: 0 | AK64: 0 | AL64: 34952.57959 | AM64: 0 | AN64: 0 | AO64: 0 | AP64: 0 | AQ64: 0 | AR64: 0 | AS64: 0 | AT64: 0 | AU64: 0 | AV64: 0 | AW64: 57387.31038 | BV64: 0.03 | BX64: 1.03 | BY64: 1.0609 | BZ64: 1.092727 | CA64: 1.12550881 | CB64: 1.159274074 | CC64: 1.194052297 | CD64: 1.229873865 | CE64: 1.266770081 | CF64: 1.304773184 | CG64: 1.343916379 | CH64: 1.384233871 | CI64: 1.425760887 | CJ64: 1.468533713 | CK64: 1.512589725 | CL64: 1.557967417 | CM64: 1.604706439 | CN64: 1.652847632 | CO64: 1.702433061 | CP64: 1.753506053 | CQ64: 1.806111235 | CR64: 1.860294572 | CS64: 1.916103409 | CT64: 1.973586511 | CU64: 2.032794106 | CV64: 2.09377793 | CW64: 2.156591268 | CX64: 2.221289006 | CY64: 2.287927676 | CZ64: 2.356565506 | DA64: 2.427262471 | DB64: 2.500080345 | DC64: 2.575082756 | DD64: 2.652335238 | DE64: 2.731905296 | DF64: 2.813862454 | DG64: 2.898278328 | DH64: 2.985226678 | DI64: 3.074783478 | DJ64: 3.167026983 | DK64: 3.262037792
C65: Garbage disposal | D65: 15 | F65: 24 | G65: 200 | H65: 4800 | I65: 0 | J65: 0 | K65: 0 | L65: 0 | M65: 0 | N65: 0 | O65: 0 | P65: 0 | Q65: 0 | R65: 0 | S65: 0 | T65: 0 | U65: 0 | V65: 0 | W65: 7478.2436 | X65: 0 | Y65: 0 | Z65: 0 | AA65: 0 | AB65: 0 | AC65: 0 | AD65: 0 | AE65: 0 | AF65: 0 | AG65: 0 | AH65: 0 | AI65: 0 | AJ65: 0 | AK65: 0 | AL65: 11650.85986 | AM65: 0 | AN65: 0 | AO65: 0 | AP65: 0 | AQ65: 0 | AR65: 0 | AS65: 0 | AT65: 0 | AU65: 0 | AV65: 0 | AW65: 19129.10346 | BV65: 0.03 | BX65: 1.03 | BY65: 1.0609 | BZ65: 1.092727 | CA65: 1.12550881 | CB65: 1.159274074 | CC65: 1.194052297 | CD65: 1.229873865 | CE65: 1.266770081 | CF65: 1.304773184 | CG65: 1.343916379 | CH65: 1.384233871 | CI65: 1.425760887 | CJ65: 1.468533713 | CK65: 1.512589725 | CL65: 1.557967417 | CM65: 1.604706439 | CN65: 1.652847632 | CO65: 1.702433061 | CP65: 1.753506053 | CQ65: 1.806111235 | CR65: 1.860294572 | CS65: 1.916103409 | CT65: 1.973586511 | CU65: 2.032794106 | CV65: 2.09377793 | CW65: 2.156591268 | CX65: 2.221289006 | CY65: 2.287927676 | CZ65: 2.356565506 | DA65: 2.427262471 | DB65: 2.500080345 | DC65: 2.575082756 | DD65: 2.652335238 | DE65: 2.731905296 | DF65: 2.813862454 | DG65: 2.898278328 | DH65: 2.985226678 | DI65: 3.074783478 | DJ65: 3.167026983 | DK65: 3.262037792
C66: Window coverings (miniblinds) | D66: 5 | F66: 48 | G66: 60 | H66: 2880 | I66: 0 | J66: 0 | K66: 0 | L66: 0 | M66: 3338.709334 | N66: 0 | O66: 0 | P66: 0 | Q66: 0 | R66: 3870.479173 | S66: 0 | T66: 0 | U66: 0 | V66: 0 | W66: 4486.94616 | X66: 0 | Y66: 0 | Z66: 0 | AA66: 0 | AB66: 5201.600356 | AC66: 0 | AD66: 0 | AE66: 0 | AF66: 0 | AG66: 6030.080437 | AH66: 0 | AI66: 0 | AJ66: 0 | AK66: 0 | AL66: 6990.515917 | AM66: 0 | AN66: 0 | AO66: 0 | AP66: 0 | AQ66: 8103.923869 | AR66: 0 | AS66: 0 | AT66: 0 | AU66: 0 | AV66: 9394.668841 | AW66: 47416.92409 | BV66: 0.03 | BX66: 1.03 | BY66: =1*(1+BV66)^2 -> 1.0609 | BZ66: 1.092727 | CA66: 1.12550881 | CB66: 1.159274074 | CC66: 1.194052297 | CD66: 1.229873865 | CE66: 1.266770081 | CF66: 1.304773184 | CG66: 1.343916379 | CH66: 1.384233871 | CI66: 1.425760887 | CJ66: 1.468533713 | CK66: 1.512589725 | CL66: 1.557967417 | CM66: 1.604706439 | CN66: 1.652847632 | CO66: 1.702433061 | CP66: 1.753506053 | CQ66: 1.806111235 | CR66: 1.860294572 | CS66: 1.916103409 | CT66: 1.973586511 | CU66: 2.032794106 | CV66: 2.09377793 | CW66: 2.156591268 | CX66: 2.221289006 | CY66: 2.287927676 | CZ66: 2.356565506 | DA66: 2.427262471 | DB66: 2.500080345 | DC66: 2.575082756 | DD66: 2.652335238 | DE66: 2.731905296 | DF66: 2.813862454 | DG66: 2.898278328 | DH66: 2.985226678 | DI66: 3.074783478 | DJ66: 3.167026983 | DK66: 3.262037792
B67: Tranfser these totals to the KHC Underwriting Model: | F67: Total Capital Needs: | H67: =SUM(H15:H66) -> 719862 | I67: 0 | J67: 0 | K67: 1232.596056 | L67: 0 | M67: 39508.06045 | N67: 0 | O67: 57558.0969 | P67: 1428.916652 | Q67: 0 | R67: 117081.995 | S67: 0 | T67: 0 | U67: 1656.506029 | V67: 70789.19912 | W67: 550046.6283 | X67: 0 | Y67: 0 | Z67: 1920.344493 | AA67: 0 | AB67: 553840.3979 | AC67: 87061.78596 | AD67: 0 | AE67: 2226.205585 | AF67: 0 | AG67: 110383.9725 | AH67: 0 | AI67: 0 | AJ67: 109655.7976 | AK67: 0 | AL67: 1043951.025 | AM67: 0 | AN67: 0 | AO67: 2991.834149 | AP67: 0 | AQ67: 227585.1953 | AR67: 0 | AS67: 0 | AT67: 3468.355763 | AU67: 0 | AV67: 1000297.365 | AW67: =SUM(I67:AV67) -> 3982684.278
F68: Per Unit Amount | H68: =H67/D6 -> 29994.25 | I68: =I67/D6 -> 0 | J68: =J67/D6 -> 0 | K68: =K67/D6 -> 51.358169 | L68: =L67/D6 -> 0 | M68: =M67/D6 -> 1646.169186 | N68: =N67/D6 -> 0 | O68: =O67/D6 -> 2398.254038 | P68: =P67/D6 -> 59.53819383 | Q68: =Q67/D6 -> 0 | R68: =R67/D6 -> 4878.416457 | S68: =S67/D6 -> 0 | T68: =T67/D6 -> 0 | U68: =U67/D6 -> 69.02108453 | V68: =V67/D6 -> 2949.549963 | W68: =W67/D6 -> 22918.60951 | X68: =X67/D6 -> 0 | Y68: =Y67/D6 -> 0 | Z68: =Z67/D6 -> 80.01435388 | AA68: =AA67/D6 -> 0 | AB68: =AB67/D6 -> 23076.68325 | AC68: =AC67/D6 -> 3627.574415 | AD68: =AD67/D6 -> 0 | AE68: =AE67/D6 -> 92.75856602 | AF68: =AF67/D6 -> 0 | AG68: =AG67/D6 -> 4599.332185 | AH68: =AH67/D6 -> 0 | AI68: =AI67/D6 -> 0 | AJ68: =AJ67/D6 -> 4568.991568 | AK68: =AK67/D6 -> 0 | AL68: =AL67/D6 -> 43497.95939 | AM68: =AM67/D6 -> 0 | AN68: =AN67/D6 -> 0 | AO68: =AO67/D6 -> 124.6597562 | AP68: =AP67/D6 -> 0 | AQ68: =AQ67/D6 -> 9482.716471 | AR68: =AR67/D6 -> 0 | AS68: =AS67/D6 -> 0 | AT68: =AT67/D6 -> 144.5148235 | AU68: =AU67/D6 -> 0 | AV68: =AV67/D6 -> 41679.05687 | AW68: =AW67/D6 -> 165945.1782
H69: Year 0 | I69: Year 1 | J69: Year 2 | K69: Year 3 | L69: Year 4 | M69: Year 5 | N69: Year 6 | O69: Year 7 | P69: Year 8 | Q69: Year 9 | R69: Year 10 | S69: Year 11 | T69: Year 12 | U69: Year 13 | V69: Year 14 | W69: Year 15 | X69: Year 16 | Y69: Year 17 | Z69: Year 18 | AA69: Year 19 | AB69: Year 20 | AC69: Year 21 | AD69: Year 22 | AE69: Year 23 | AF69: Year 24 | AG69: Year 25 | AH69: Year 26 | AI69: Year 27 | AJ69: Year 28 | AK69: Year 29 | AL69: Year 30 | AM69: Year 31 | AN69: Year 32 | AO69: Year 33 | AP69: Year 34 | AQ69: Year 35 | AR69: Year 36 | AS69: Year 37 | AT69: Year 38 | AU69: Year 39 | AV69: Year 40
C70: Reserve Account Analysis | G70: Beginning of the year balance: | H70: =M8 -> 75000 | I70: =H76 -> 75000 | J70: =I76 -> 87780 | K70: 101154 | L70: 113911.4359 | M70: 128515.6252 | N70: 104273.6167 | O70: 119435.7005 | P70: 77735.22756 | Q70: 91733.99266 | R70: 107857.839 | S70: 7650.842355 | T70: 22963.23596 | U70: 39036.65874 | V70: 54243.46869 | W70: 1104.19923 | X70: -531858.333 | Y70: -514284.4605 | Z70: -496183.3719 | AA70: -479459.5951 | AB70: -460256.1502 | AC70: -994316.9998 | AD70: -1061005.851 | AE70: -1040021.728 | AF70: -1020634.287 | AG70: -998372.2315 | AH70: -1085826.286 | AI70: -1062208.471 | AJ70: -1037882.122 | AK70: -1122481.78 | AL70: -1096673.955 | AM70: -2114042.922 | AN70: -2086663.401 | AO70: -2058462.495 | AP70: -2032407.395 | AQ70: -2002489.054 | AR70: -2199258.358 | AS70: -2167517.989 | AT70: -2134825.41 | AU70: -2104620.408 | AV70: -2069936.851 | BV70: =M7 -> 0.03 | BX70: =1*(1+BV70)^1 -> 1.03 | BY70: =1*(1+BV70)^2 -> 1.0609 | BZ70: =1*(1+BV70)^3 -> 1.092727 | CA70: =1*(1+BV70)^4 -> 1.12550881 | CB70: =1*(1+BV70)^5 -> 1.159274074 | CC70: =1*(1+BV70)^6 -> 1.194052297 | CD70: =1*(1+BV70)^7 -> 1.229873865 | CE70: =1*(1+BV70)^8 -> 1.266770081 | CF70: =1*(1+BV70)^9 -> 1.304773184 | CG70: =1*(1+BV70)^10 -> 1.343916379 | CH70: =1*(1+BV70)^11 -> 1.384233871 | CI70: =1*(1+BV70)^12 -> 1.425760887 | CJ70: =1*(1+BV70)^13 -> 1.468533713 | CK70: =1*(1+BV70)^14 -> 1.512589725 | CL70: =1*(1+BV70)^15 -> 1.557967417 | CM70: =1*(1+BV70)^16 -> 1.604706439 | CN70: =1*(1+BV70)^17 -> 1.652847632 | CO70: =1*(1+BV70)^18 -> 1.702433061 | CP70: =1*(1+BV70)^19 -> 1.753506053 | CQ70: =1*(1+BV70)^20 -> 1.806111235 | CR70: =1*(1+BV70)^21 -> 1.860294572 | CS70: =1*(1+BV70)^22 -> 1.916103409 | CT70: =1*(1+BV70)^23 -> 1.973586511 | CU70: =1*(1+BV70)^24 -> 2.032794106 | CV70: =1*(1+BV70)^25 -> 2.09377793 | CW70: =1*(1+BV70)^26 -> 2.156591268 | CX70: =1*(1+BV70)^27 -> 2.221289006 | CY70: =1*(1+BV70)^28 -> 2.287927676 | CZ70: =1*(1+BV70)^29 -> 2.356565506 | DA70: =1*(1+BV70)^30 -> 2.427262471 | DB70: =1*(1+BV70)^31 -> 2.500080345 | DC70: =1*(1+BV70)^32 -> 2.575082756 | DD70: =1*(1+BV70)^33 -> 2.652335238 | DE70: =1*(1+BV70)^34 -> 2.731905296 | DF70: =1*(1+BV70)^35 -> 2.813862454 | DG70: =1*(1+BV70)^36 -> 2.898278328 | DH70: =1*(1+BV70)^37 -> 2.985226678 | DI70: =1*(1+BV70)^38 -> 3.074783478 | DJ70: =1*(1+BV70)^39 -> 3.167026983 | DK70: =1*(1+BV70)^40 -> 3.262037792
G71: Annual reserve deposits: | I71: =$M$6*$D$6 -> 11280 | J71: =$I$71*I13 -> 11618.4 | K71: =$I$71*J13 -> 11966.952 | L71: 12325.96056 | M71: 12695.73938 | N71: 13076.61156 | O71: 13468.9099 | P71: 13872.9772 | Q71: 14289.16652 | R71: 14717.84151 | S71: 15159.37676 | T71: 15614.15806 | U71: 16082.5828 | V71: 16565.06029 | W71: 17062.0121 | X71: 17573.87246 | Y71: 18101.08863 | Z71: 18644.12129 | AA71: 19203.44493 | AB71: 19779.54828 | AC71: 20372.93473 | AD71: 20984.12277 | AE71: 21613.64645 | AF71: 22262.05585 | AG71: 22929.91752 | AH71: 23617.81505 | AI71: 24326.3495 | AJ71: 25056.13998 | AK71: 25807.82418 | AL71: 26582.05891 | AM71: 27379.52068 | AN71: 28200.9063 | AO71: 29046.93348 | AP71: 29918.34149 | AQ71: 30815.89173 | AR71: 31740.36849 | AS71: 32692.57954 | AT71: 33673.35693 | AU71: 34683.55763 | AV71: 35724.06436
G72: Capital needs: | I72: =I67*-1 -> 0 | J72: 0 | K72: -1232.596056 | L72: 0 | M72: -39508.06045 | N72: 0 | O72: -57558.0969 | P72: -1428.916652 | Q72: 0 | R72: -117081.995 | S72: 0 | T72: 0 | U72: -1656.506029 | V72: -70789.19912 | W72: -550046.6283 | X72: 0 | Y72: 0 | Z72: -1920.344493 | AA72: 0 | AB72: -553840.3979 | AC72: -87061.78596 | AD72: 0 | AE72: -2226.205585 | AF72: 0 | AG72: -110383.9725 | AH72: 0 | AI72: 0 | AJ72: -109655.7976 | AK72: 0 | AL72: -1043951.025 | AM72: 0 | AN72: 0 | AO72: -2991.834149 | AP72: 0 | AQ72: -227585.1953 | AR72: 0 | AS72: 0 | AT72: -3468.355763 | AU72: 0 | AV72: -1000297.365
G73: Annual net change: | I73: =I71+I72 -> 11280 | J73: =J71+J72 -> 11618.4 | K73: 10734.35594 | L73: 12325.96056 | M73: -26812.32108 | N73: 13076.61156 | O73: -44089.187 | P73: 12444.06055 | Q73: 14289.16652 | R73: -102364.1535 | S73: 15159.37676 | T73: 15614.15806 | U73: 14426.07677 | V73: -54224.13884 | W73: -532984.6162 | X73: 17573.87246 | Y73: 18101.08863 | Z73: 16723.7768 | AA73: 19203.44493 | AB73: -534060.8496 | AC73: -66688.85123 | AD73: 20984.12277 | AE73: 19387.44087 | AF73: 22262.05585 | AG73: -87454.05493 | AH73: 23617.81505 | AI73: 24326.3495 | AJ73: -84599.65766 | AK73: 25807.82418 | AL73: -1017368.966 | AM73: 27379.52068 | AN73: 28200.9063 | AO73: 26055.09934 | AP73: 29918.34149 | AQ73: -196769.3036 | AR73: 31740.36849 | AS73: 32692.57954 | AT73: 30205.00116 | AU73: 34683.55763 | AV73: -964573.3005
G74: Sub-Total: | H74: =H70+H71-H72 -> 75000 | I74: =SUM(I70:I72) -> 86280 | J74: =SUM(J70:J72) -> 99398.4 | K74: 111888.3559 | L74: 126237.3965 | M74: 101703.3041 | N74: 117350.2282 | O74: 75346.51355 | P74: 90179.28811 | Q74: 106023.1592 | R74: 5493.685575 | S74: 22810.21911 | T74: 38577.39402 | U74: 53462.73552 | V74: 19.32985655 | W74: -531880.417 | X74: -514284.4605 | Y74: -496183.3719 | Z74: -479459.5951 | AA74: -460256.1502 | AB74: -994316.9998 | AC74: -1061005.851 | AD74: -1040021.728 | AE74: -1020634.287 | AF74: -998372.2315 | AG74: -1085826.286 | AH74: -1062208.471 | AI74: -1037882.122 | AJ74: -1122481.78 | AK74: -1096673.955 | AL74: -2114042.922 | AM74: -2086663.401 | AN74: -2058462.495 | AO74: -2032407.395 | AP74: -2002489.054 | AQ74: -2199258.358 | AR74: -2167517.989 | AS74: -2134825.41 | AT74: -2104620.408 | AU74: -2069936.851 | AV74: -3034510.151
F75: Annual Interest on Reserve Account: | G75: 0.02 | H75: 0 | I75: =IF(H76>0,$G$75*H76,0) -> 1500 | J75: 1755.6 | K75: 2023.08 | L75: 2278.228719 | M75: 2570.312504 | N75: 2085.472333 | O75: 2388.714011 | P75: 1554.704551 | Q75: 1834.679853 | R75: 2157.156781 | S75: 153.0168471 | T75: 459.2647192 | U75: 780.7331748 | V75: 1084.869374 | W75: 22.08398461 | X75: =IF(W76>0,$G$75*W76,0) -> 0 | Y75: =IF(X76>0,$G$75*X76,0) -> 0 | Z75: 0 | AA75: 0 | AB75: 0 | AC75: 0 | AD75: 0 | AE75: 0 | AF75: 0 | AG75: 0 | AH75: 0 | AI75: 0 | AJ75: 0 | AK75: 0 | AL75: 0 | AM75: 0 | AN75: 0 | AO75: 0 | AP75: 0 | AQ75: 0 | AR75: 0 | AS75: 0 | AT75: 0 | AU75: 0 | AV75: 0
G76: End of the year balance: | H76: =H74+H75 -> 75000 | I76: =I74+I75 -> 87780 | J76: =J74+J75 -> 101154 | K76: 113911.4359 | L76: 128515.6252 | M76: 104273.6167 | N76: 119435.7005 | O76: 77735.22756 | P76: 91733.99266 | Q76: 107857.839 | R76: 7650.842355 | S76: 22963.23596 | T76: 39036.65874 | U76: 54243.46869 | V76: 1104.19923 | W76: -531858.333 | X76: -514284.4605 | Y76: -496183.3719 | Z76: -479459.5951 | AA76: -460256.1502 | AB76: -994316.9998 | AC76: -1061005.851 | AD76: -1040021.728 | AE76: -1020634.287 | AF76: -998372.2315 | AG76: -1085826.286 | AH76: -1062208.471 | AI76: -1037882.122 | AJ76: -1122481.78 | AK76: -1096673.955 | AL76: -2114042.922 | AM76: -2086663.401 | AN76: -2058462.495 | AO76: -2032407.395 | AP76: -2002489.054 | AQ76: -2199258.358 | AR76: -2167517.989 | AS76: -2134825.41 | AT76: -2104620.408 | AU76: -2069936.851 | AV76: -3034510.151
H78: General Notes | P78: Cost Notes
P79: Parking Lot Repairs: $0.75 S.F. Carpet: $3.50 S.F. Restripe Parking Lot: $10/stall Vinyl Flooring: $3.75 S.F. Sidewalk Repair: $1.25 S.F. Cement Fiber Board: $10 S.F. Seal Parking Lot: $0.15 S.F. Soffit: $4.80 S.F. Building Signage: $750 Each Roofing: $1.90 S.F. Dumpster Enclosure: $12 L.F. Applicances: Unit Cost Plus Labor Dumpster Pad Concrete: $4 S.F.
